Workbook

Sheet Instructions
B3: NHHFA Financing Application Instructions:
B5: This financing application has color coded tabs that must be completed, based on the financing type
B6: being requested by the applicant:
C8: Type of financing:
C9: LIHTC 4%/9% | D9: New Construction/ Sub Rehab | E9: Refinance - No Construction | F9: Refinance - with Construction
B10: Blue Tabs | C10: x | D10: x | E10: x | F10: x
B11: Green Tabs | C11: x
B12: Red Tabs | C12: x | D12: x | F12: x
B14: All sections of the tab are required. Staff reserves the right to reject partially completed applications.
B16: Please ensure that when submitting the completed application, that Section 2 of the Development Team tab is
B17: signed and mailed to the Authority along with the applicable application fee.
B20: Details for each tab:
B22: Project Info | C22: This tab is used to gather general information about the project, including unit details
C23: and building features.
B25: Closing S&U | C25: This tab lists the financing sources and the construction/soft cost uses for closing/
C26: construction.
B28: Inc & Exp | C28: This tab captures rent and other income information, and lists the proposed
C29: operating budget.
B31: Dev Team | C31: This tab captures the members of the project's development team.
B33: Pro Forma | C33: This tab is pre-filled, and is used to analyze the income/expense trending.
B35: LIHTC Info | C35: This tab is filled out when applying for 4% and/or 9% LIHTC's.
B37: Mgt Agt Quest | C37: This tab is filled out when applying for 9% LIHTC's.
B39: Const S&U | C39: This tab should be filled out when monthly construction draws are anticipated,
C40: usually in conjunction with a CM or GC monthly draw schedule.
B42: Dev Fee | C42: This tab is used to calculate the maximum developer fee, based on occupancy type
C43: and the level of rehabilitation.

Sheet Project Info
A1: PROJECT INFORMATION
A4: 1 | B4: . | C4: Project Name:
A5: =A4+1 -> 2 | B5: . | C5: Project Address:
A6: =A5+1 -> 3 | B6: . | C6: Project Community: | H6: NH
E7: (city/town) | H7: (state) | I7: (zip code)
H9: Date Application Values Entered | I9: =TODAY() -> 2022-05-18
A11: Development Plan
A13: =A6+1 -> 4 | B13: . | C13: Development Type (please check all that apply):
B14: =IF(LEN(TRIM(G14))>0,1,0) ->  | C14: New construction | H14: Mark with an "X"
B15: =IF(LEN(TRIM(G15))>0,1,0) ->  | C15: Acquisition and rehabilitation of existing housing | H15: Mark with an "X"
B16: =IF(LEN(TRIM(G16))>0,1,0) ->  | C16: Acquisition, minimal or no rehab of existing housing | H16: Mark with an "X"
B17: =IF(LEN(TRIM(G17))>0,1,0) ->  | C17: Refinancing of residential property to extend affordability | H17: Mark with an "X"
B18: =IF(LEN(TRIM(G18))>0,1,0) ->  | C18: Other | H18: Mark with an "X"
A20: =A13+1 -> 5 | B20: . | C20: Proposed Housing Type (please check one box):
B21: =IF(LEN(TRIM(G21))>0,1,0) ->  | C21: Rental (except SRO or Assisted Living, see below) | H21: Mark with an "X"
C22: Limited Equity Cooperative | H22: Mark with an "X"
C23: Manufactured Housing Rental Park | H23: Mark with an "X"
C24: Single Room Occupancy (SRO) | H24: Mark with an "X"
C25: Assisted Living | H25: Mark with an "X"
C26: Other: | H26: Mark with an "X"
A28: 6 | C28: Project Age Designation (choose one box only):
C29: General Occupancy (No age restriction) | H29: Mark with an "X"
C30: Age-Restricted (62+, LIHTC) | H30: Mark with an "X"
C31: Age-Restricted (other, no LIHTC) | H31: Mark with an "X"
A33: =A28+1 -> 7 | B33: . | C33: Project Description:
C34: Please describe the proposed project in a few sentences. Indicate whom the
C35: project is designed to serve. Describe the current condition of the site and its
C36: ownership. Note whether the site is distressed.
A46: =A33+1 -> 8 | B46: . | C46: Development Schedule: | F46: Projected Dates
F47: MM/YYYY
B48: =IF(LEN(FIXED(G48,0,TRUE))<4,+G48+1900,+G48) -> 1900 | C48: Construction Loan Closing
B49: 1900 | C49: Construction Start | H49: =IF(F49+G49=0,"",IF(F49>12,"Use month number from 1 to 12",IF(B49<1900+(YEAR(TODAY())-1900),"year should be "&FIXED(1900+(YEAR(TODAY())-1900),0,TRUE)&" or later",""))) -> 
B50: 1900 | C50: 50% Construction Completion
B51: 1900 | C51: Construction Completion | N51: =G51 -> 0
B52: 1900 | C52: First Certificate of Occupancy
B53: 1900 | C53: Final Certificate of Occupancy
B54: 1900 | C54: Permanent Loan Closing
B55: 1900
A59: =A46+1 -> 9 | B59: . | C59: Unit Mix:
D61: LIHTC Band
D62: Market Rate | E62: LIHTC | F62: LIHTC | G62: LIHTC | H62: LIHTC | I62: Low HOME | J62: High HOME | K62: HTF | L62: 811 units | M62: Rental Assisted | N62: Total
C63: SRO | N63: =SUM(D63:M63) -> 0
C64: 0 Bedrooms | N64: 0
C65: 1 Bedrooms | N65: 0
C66: 2 Bedrooms | N66: =SUM(D66:M66) -> 0
C67: 3 Bedrooms | N67: 0
C68: 4+ Bedrooms | N68: 0
C69: Total Units | D69: =SUM(D63:D68) -> 0 | E69: =SUM(E63:E68) -> 0 | F69: =SUM(F63:F68) -> 0 | G69: 0 | H69: =SUM(H63:H68) -> 0 | I69: 0 | J69: 0 | K69: =SUM(K63:K68) -> 0 | L69: 0 | M69: 0 | N69: 0
C71: BR Count | D71: =(D63*1)+(D64*1)+(D65*1)+(D66*2)+(D67*3)+(D68*4) -> 0 | E71: 0 | F71: 0 | G71: 0 | H71: 0 | I71: 0 | J71: 0 | K71: 0 | L71: 0 | M71: 0 | N71: =SUM(D71:M71) -> 0
A73: =A59+1 -> 10 | B73: . | C73: Unit Size (Indicate the average size of units, in square feet, by bedroom size and income):
D75: =D61 -> LIHTC Band | E75: =E61 -> 0 | F75: 0 | G75: 0 | H75: 0
D76: =D62 -> Market Rate | E76: LIHTC | F76: LIHTC | G76: LIHTC | H76: LIHTC | I76: =I62 -> Low HOME | J76: =J62 -> High HOME | K76: =K62 -> HTF | L76: =L62 -> 811 units | M76: =M62 -> Rental Assisted
C77: 0 Bedrooms
C78: 1 Bedrooms
C79: 2 Bedrooms
C80: 3 Bedrooms
C81: 4+ Bedrooms
A83: =A73+1 -> 11 | B83: . | C83: Bathroom facilities (indicate the number of bathrooms in each of the units):
D85: =D61 -> LIHTC Band | E85: =E61 -> 0 | F85: =F61 -> 0 | G85: =G61 -> 0 | H85: =H61 -> 0
D86: =D76 -> Market Rate | E86: LIHTC | F86: LIHTC | G86: LIHTC | H86: LIHTC | I86: Low HOME | J86: High HOME | K86: HTF | L86: 811 units | M86: Rental Assisted
C87: 0 Bedrooms | N87: =SUM(D87:M87) -> 0
C88: 1 Bedrooms | N88: =SUM(D88:M88) -> 0
C89: 2 Bedrooms | N89: =SUM(D89:M89) -> 0
C90: 3 Bedrooms | N90: =SUM(D90:M90) -> 0
C91: 4+ Bedrooms | N91: =SUM(D91:M91) -> 0
M92: Total BR | N92: =SUM(N87:N91) -> 0
A93: =A83+1 -> 12 | B93: . | C93: Funding Applied For:
C94: Please check all the funding that is being applied for at this time, with this application: | K94: NHHFA Debt/Capital Subsidy Financing
C96: Low Income Housing Tax Credit Allocation | F96: Mark with an "X" | K96: Permanent Financing - Authority Funds | O96: Mark with an "X"
C97: Tax Exempt Bond-Related | F97: Mark with an "X" | K97: Permanent Financing - Tax Exempt Bond | O97: Mark with an "X"
C98: Regular NHHFA Allocation | F98: Mark with an "X" | H98: (See NHHFA QAP) | K98: Permanent Financing - Taxable Bond | O98: Mark with an "X"
C99: Initial Application | F99: Mark with an "X" | G99: Carryover | I99: Mark with an "X" | K99: Construction Financing - Authority Funds | O99: Mark with an "X"
C100: Commitment | F100: Mark with an "X" | G100: Final Allocation | I100: Mark with an "X"
K101: Capital Subsidy Funding through NHHFA | O101: Mark with an "X"
B102: =IF(LEN(TRIM(E102))>0,1,0) ->  | C102: Project Based Vouchers | F102: Mark with an "X"
E106: New | G106: Existing/
A107: =A93+1 -> 13 | B107: . | C107: Number of buildings planned: | E107: Construction | G107: Rehabilitation | I107: Total
C108: a. Single-family | I108: =E108+G108 -> 0
C109: b. 2-4 family | I109: 0
C110: c. Townhouse | I110: 0
C111: d. Low/Mid rise | I111: 0
C112: e. High-rise | I112: 0
C113: f. Other | I113: 0
C114: TOTAL | E114: =SUM(E108:E113) -> 0 | G114: =SUM(G108:G113) -> 0 | I114: 0
E116: Yes | G116: No
A117: 14 | B117: . | C117: Scattered Sites:
A119: 15 | B119: . | C119: Number of units: | I119: =E119+G119 -> 0
A121: =A119+1 -> 16 | B121: . | C121: Gross Square Footage
C122: a. Residential | I122: =E122+G122 -> 0
C123: b. Commercial | I123: =E123+G123 -> 0
A125: =A121+1 -> 17 | B125: . | C125: Net Rentable Square Footage: | F125: Total | H125: Percent of Gross
C126: a. Residential | G126: s.f. | H126: =IF(I122>0,F126/I122," ") -> 
C127: b. Commercial | G127: s.f. | H127: =IF(F127>0,IF(I123>0,F127/I123," ")," ") -> 
A129: =A125+1 -> 18 | B129: . | C129: Number of accessible units
A131: =A129+1 -> 19 | B131: . | C131: Fire Code Type (check):
C132: a. Concrete frame | F132: (Mark one box with an "X") | H132: =IF(E132<>" ",1,0) -> 0
C133: b. Wood frame | F133: (Mark one box with an "X") | H133: =IF(E133<>" ",1,0) -> 0
C134: c. Protected steel | F134: (Mark one box with an "X") | H134: =IF(E134<>" ",1,0) -> 0
C135: d. Masonry bearing wall | F135: (Mark one box with an "X") | H135: =IF(E135<>" ",1,0) -> 0
I136: =IF(OR(F137="yes",F137="y"),"How Many?","") -> How Many?
A137: =A131+1 -> 20 | B137: . | C137: Will buildings include elevators? | G137: ("yes" or "no") | H137: If yes, number:
A139: =A137+1 -> 21 | B139: . | C139: Are the following provided with the housing units:
C140: a. Range? | F140: ("yes" or "no") | H140: Type (gas or electric)?
C141: b. Refrigerator? | F141: ("yes" or "no")
C142: c. Microwave? | F142: ("yes" or "no")
C143: d. Dishwasher? | F143: ("yes" or "no")
C144: e. Disposal? | F144: ("yes" or "no")
C145: f. Washer/Dryer Hookup? | F145: ("yes" or "no")
C146: g. Washer & Dryer? | F146: ("yes" or "no")
C147: h. Wall-to-wall Carpet? | F147: ("yes" or "no")
C148: i. Window Air Conditioner? | F148: ("yes" or "no")
C149: j. Central Air Conditioning? | F149: ("yes" or "no")
A151: =A139+1 -> 22 | B151: . | C151: Are the following included in the rent:
C152: a. Heat? | F152: ("yes" or "no")
C153: b. Domestic Electricity? | F153: ("yes" or "no")
C154: c. Cooking Fuel? | F154: ("yes" or "no")
C155: d. Hot Water? | F155: ("yes" or "no")
C156: e. Central A/C (if any)? | F156: ("yes" or "no")
H157: Hot Water:
A158: =A151+1 -> 23 | B158: . | C158: Type of heating fuel: | F158: Propane | G158: =IF(E158<>" ",1,0) -> 0 | I158: Propane
C159: (Check one with "X") | F159: Natural Gas | G159: =IF(E159<>" ",1,0) -> 0 | I159: Natural Gas
F160: Oil | G160: =IF(E160<>" ",1,0) -> 0 | I160: Oil
F161: Electric | G161: =IF(E161<>" ",1,0) -> 0 | I161: Electric
A163: =A158+1 -> 24 | B163: . | C163: No. of parking spaces: | I163: =IF(E163+G163=0,0,(E163+G163)) -> 0
E164: Enclosed | G164: Outdoor | I164: Total
A167: =A163+1 -> 25 | B167: . | C167: Will acquisition/rehabilitation require relocation of existing tenants? | I167: ("yes" or "no")
C168: ( If yes, please include relocation plan as Exhibit 29.)
A170: =A167+1 -> 26 | B170: . | C170: Scope of rehabilitation. If rehabilitation, please describe the following (or type N/A).
C171: a. Major systems to be replaced:
C175: b. Substandard conditions and structural deficiencies to be repaired:
C179: c. Special features/adaptations for special needs clients to be housed:
A184: =A170+1 -> 27 | B184: . | C184: Amount of demolition, if any:
A188: Information on Site and Existing Buildings
E190: Square Feet | F190: Square Feet | G190: Acres | H190: Acres
A191: =A184+1 -> 28 | B191: . | C191: Size of Site: | F191: =IF(E191>0,"",IF(G191>0,G191*43560," ")) ->  | H191: =IF(G191>0,"",IF(E191>0,E191/43560," ")) -> 
A192: =A191+1 -> 29 | B192: . | C192: Buildable area: | F192: =IF(E192>0,"",IF(G192>0,G192*43560," ")) ->  | H192: =IF(G192>0,"",IF(E192>0,E192/43560," ")) -> 
H193: =IF(G193>0,G193*43560," ") -> 
C195: Existing Conditions:
A196: =A192+1 -> 30 | B196: . | C196: What is the present use of the property?
A197: =A196+1 -> 31 | B197: . | C197: Number of existing structures:
A198: =A197+1 -> 32 | B198: . | C198: Gross s.f. of existing structures:
A199: =A198+1 -> 33 | B199: . | C199: If rehabilitation: | G199: units | H199: bedrooms
C200: a. Number of existing residential units/bedrooms:
C201: b. Number of units/bedrooms currently occupied:
A202: =A199+1 -> 34 | B202: . | C202: If site includes commercial space:
C203: a. Square footage of existing commercial space: | H203: square feet
C204: b. Square footage currently occupied: | H204: square feet
A205: =A202+1 -> 35 | B205: . | C205: What are the surrounding land uses?
C209: Utilities:
A210: =A205+1 -> 36 | B210: . | C210: Please answer "yes" or "no" as to whether the following utilities are available on the site:
C211: a. San. sewer | E211: If no, distance from site: | H211: feet | I211: =IF(OR(D211="yes",D211="no"),1,0) -> 1
C212: b. Storm sewer | E212: If no, distance from site: | H212: feet | I212: =IF(OR(D212="yes",D212="no"),1,0) -> 1
C213: c. Public water | E213: If no, distance from site: | H213: feet | I213: =IF(OR(D213="yes",D213="no"),1,0) -> 1
C214: d. Electricity | E214: If no, distance from site: | H214: feet | I214: =IF(OR(D214="yes",D214="no"),1,0) -> 1
C215: e. Gas | E215: If no, distance from site: | H215: feet | I215: =IF(OR(D215="yes",D215="no"),1,0) -> 1
C216: f. If any of the above are not available, is plan attached telling how such service will be extended
C217: to the site? | E217: ("yes" or "no") | G217: (Please attach as part of Exhibit 1.)
C222: Zoning:
A223: =A210+1 -> 37 | B223: . | C223: Does the present zoning permit the proposed development? | I223: ("yes" or "no") | J223: =IF(OR(H223="yes",H223="no"),1,0) -> 1
C224: Please attach evidence of present zoning (Exhibit 19), including zoning map and
C225: regulations. Highlight any special use or dimensional restrictions on the property.
A227: =A223+1 -> 38 | B227: . | C227: If the present zoning does not allow for the proposed use as designed, has the needed zoning
C228: change/variance/special permit/subdivision approval been obtained? | I228: ("yes" or "no")
C229: If not, please attach (as part of Exhibit 19) the current status and
C230: current schedule for obtaining necessary approval.
A232: =A227+1 -> 39 | B232: . | C232: Are any other efforts for local approvals being undertaken? | I232: ("yes" or "no")
C233: If yes, please attach (as part of Exhibit 19) the current status and anticipated
C234: schedule for such efforts.
C236: Site Control:
A237: =A232+1 -> 40 | B237: . | C237: What form of site control do you have? | G237: (Mark one box)
B238: =IF(LEN(TRIM(H238))>0,1,0) -> 1 | E238: Ownership | H238: (Mark one box with an "X")
B239: =IF(LEN(TRIM(H239))>0,1,0) -> 1 | E239: Purchase and Sale Agreement(s) | H239: (Mark one box with an "X")
B240: =IF(LEN(TRIM(H240))>0,1,0) -> 1 | E240: Option | H240: (Mark one box with an "X")
B241: =IF(LEN(TRIM(H241))>0,1,0) -> 1 | D241: Other: | H241: (Mark one box with an "X")
G242: Include copies of the appropriate site control documents as part of Exhibit 3.
A244: =A237+1 -> 41 | B244: . | C244: If site not presently owned by sponsor, please answer the following:
C245: a. Type of Agreement:
C246: b. Agreement Date: | G246: Expiration Date:
C247: c. Name of Seller:
C248: d. Principals of seller corporation:
C250: e. Purchase price if under agreement:$
C251: f. Is there any identity of interest between buyer and seller? | I251: ("yes" or "no")
A253: =A244+1 -> 42 | B253: . | C253: In the past three years, have there been any defaults on any mortgage on the property or other
C254: forms of financial distress?...... | F254: ("yes" or "no") | H254: =IF(E254<>" ",1,0) -> 0
C255: If yes, please attach description as part of Exhibit 10.
A257: =A253+1 -> 43 | B257: . | C257: Are there any outstanding liens on the property? | H257: ("yes" or "no") | J257: =IF(G257<>" ",1,0) -> 0
C260: Amenities and Services:
A261: =A257+1 -> 44 | B261: . | C261: Please indicate distance from site and locate on city/town map (Exhibit 1).
F262: Distance
C263: a. Shopping facilities | G263: miles
C264: b. Schools | G264: miles
C265: c. Hospitals | G265: miles
C266: d. Parks and recreational facilities | G266: miles
C267: e. Police station | G267: miles
C268: f. Fire station | G268: miles
C269: g. Public transportation | G269: miles
C270: h. Houses of worship | G270: miles
C271: i. City/Town Hall | G271: miles
A275: Environmental Information
A277: =A261+1 -> 45 | B277: . | C277: Is there any evidence of underground storage tanks or releases of | I277: ("yes" or "no") | J277: =IF(H277<>" ",1,0) -> 0
... 34 more rows

Sheet Closing S&U
A1: CLOSING SOURCES AND USES OF FUNDS
A2: =IF(+'Project Info'!E4="","Un-named Project",+'Project Info'!E4) -> Un-named Project
A3: Sources of Funds
C5: Private Equity: | G5: Amount $
A6: 1 | B6: . | C6: Developer's Cash Equity
A7: =A6+1 -> 2 | C7: LIHTC Equity | H7: Calculated | I7: ='LIHTC Info'!H42 -> 0
A8: 3 | B8: . | C8: HTC Equity | H8: Calculated | I8: ='LIHTC Info'!H43 -> 0
A9: 4 | B9: . | C9: Other Equity:
A10: 5 | B10: . | C10: Developer Fee Loan
A11: 6 | B11: . | C11: Other Source:
A12: 7 | C12: Total Private Equity | G12: =SUM(G6:G11) -> 0 | H12: Equity/Subsidy Per Unit:
I13: =IFERROR((G7+F20)/'Project Info'!N69,0) -> 0
C14: Public Equity: | D14: Source | F14: Amount $ | G14: =IFERROR(IF((((G7+F20)/'Project Info'!N69)>230000),"EQUITY & SUBSIDY EXCEEDS QAP MAXIMUM",""),"") -> 
A15: =A12+1 -> 8 | B15: . | C15: Grant: | G15: Does project fall into a high-cost category per HFA:109.04.C? Yes/No
A16: =A15+1 -> 9 | B16: . | C16: Grant:
A17: =A16+1 -> 10 | B17: . | C17: Total Public Equity | F17: =SUM(F15:F16) -> 0 | G17: LIMIT for TDC Weighted Avg: | I17: =IF(I15="yes",300000,280000) -> 300000
C19: Subordinate Debt: | F19: Amount $ | G19: Rate % | H19: Amortize Yrs | I19: Term Yrs | L19: Capital Subsidy Limits: Refer to Underwriting Standards for Multi-Family Finance, Part 2, Section 2.04 for current Capital Subsidy Limits
A20: =A17+1 -> 11 | B20: . | C20: NH Housing Capital Subsidy Funds | G20: 0 | H20: 0
A22: =A20+1 -> 12 | B22: . | C22: Subordinate Debt | G22: 0
C23: Source:
A24: =A22+1 -> 13 | B24: . | C24: Subordinate Debt
C25: Source:
A26: =A24+1 -> 14 | B26: . | C26: Subordinate Debt
C27: Source:
A28: =A26+1 -> 15 | B28: . | C28: Subordinate Debt
C29: Source:
A30: =A28+1 -> 16 | B30: . | C30: Total Subordinate Debt | F30: =F20+F22+F24+F26+F28 -> 0
C32: Long Term Debt (Senior): | F32: Amount $ | G32: Rate % | H32: Amortize Yrs | I32: Term Yrs
A33: =A30+1 -> 17 | B33: . | C33: NH Housing Long-Term Loan | L33: Long Term Debt Limits, Rate, Amortization, and Term: Refer to Underwriting Standards for Multi-Family Finance, Part 2 Sections 2.04-2.07
B34: .
A35: =A33+1 -> 18 | B35: . | C35: Other Long-Term Mortgage
C36: Source:
A37: =A35+1 -> 19 | B37: . | C37: Other Long-Term Mortgage
C38: Source: | H38: TDC/bedroom: | I38: =IFERROR(F41/'Project Info'!N71,0) -> 0
A39: =A37+1 -> 20 | B39: . | C39: Total Long-Term Senior Debt | F39: =F33+F35+F37 -> 0 | H39: TDC/Unit: | I39: =IFERROR(F41/'Project Info'!N69,0) -> 0
H40: TDC Wtd Avg: | I40: =((2*I39)+I38)/3 -> 0
A41: =A39+1 -> 21 | B41: . | C41: Total Long-Term Sources | F41: =G12+F17+F30+F39 -> 0 | G41: =IFERROR(IF(I40>I17,"WARNING - TDC EXCEEDS QAP LIMIT!!",""),"") -> 
F42: =IF(F41<>G195,"Sources and Uses do NOT Match!","Ok, Sources and Uses Match!") -> Ok, Sources and Uses Match! | I42: =IF(F41<>G195,F41-G195,"") -> 
C43: Construction/Bridge Financing: | F43: Amount $ | G43: Rate % | H43: Term Mos
A44: =A41+1 -> 22 | B44: . | C44: Construction Loan
C45: Source:
C46: Repaid at: | F46: (event)
A47: =A44+1 -> 23 | B47: . | C47: Other Interim Loan
C48: Source:
C49: Repaid at: | F49: (event)
A50: =A47+1 -> 24 | B50: . | C50: Tax Credit Bridge Loan
C51: Source:
C52: Repaid at: | F52: (event)
C55: Uses of Funds
C56: NOTE: Construction cost breakout by trade is only required on the final application submitted to Apricot
C58: Direct Construction:
A59: =A50+1 -> 25 | B59: . | C59: Who prepared the estimates?
A60: =A59+1 -> 26 | B60: . | C60: What is basis for estimates?
C62: Division | D62: Trade Item | F62: Amount $ | G62: Trade Description
A63: =A60+1 -> 27 | B63: . | C63: 3 | D63: Concrete
A64: =A63+1 -> 28 | B64: . | C64: 4 | D64: Masonry
A65: 29 | B65: . | C65: 5 | D65: Metals
A66: 30 | B66: . | C66: 6 | D66: Rough Carpentry
A67: 31 | B67: . | C67: 6 | D67: Finish Carpentry
A68: 32 | B68: . | C68: 7 | D68: Waterproofing
A69: 33 | B69: . | C69: 7 | D69: Insulation
A70: 34 | B70: . | C70: 7 | D70: Roofing
A71: 35 | B71: . | C71: 7 | D71: Siding
A72: 36 | B72: . | C72: 8 | D72: Doors
A73: 37 | B73: . | C73: 8 | D73: Windows
A74: 38 | B74: . | C74: 8 | D74: Glass
A75: 39 | B75: . | C75: 9 | D75: Drywall
A76: 40 | B76: . | C76: 9 | D76: Acoustical
A77: 41 | B77: . | C77: 9 | D77: Wood Flooring
A78: 42 | B78: . | C78: 9 | D78: Resilient Flooring
A79: 43 | B79: . | C79: 9 | D79: Paint & Decorating
A80: 44 | B80: . | C80: 9 | D80: Tile
A81: 45 | B81: . | C81: 10 | D81: Specialties
A82: 46 | B82: . | C82: 11 | D82: Special Equipment
A83: 47 | B83: . | C83: 11 | D83: Cabinets
A84: 48 | B84: . | C84: 11 | D84: Appliances
A85: 49 | B85: . | C85: 12 | D85: Blinds & Shades
A86: 50 | B86: . | C86: 12 | D86: Carpet
A87: 51 | B87: . | C87: 13 | D87: Special Construction
A88: 52 | B88: . | C88: 14 | D88: Elevators
A89: 53 | B89: . | C89: 15 | D89: Plumbing & Hot Water
A90: 54 | B90: . | C90: 15 | D90: Heat & Ventilation
A91: 55 | B91: . | C91: 15 | D91: Air Conditioning
A92: 56 | B92: . | C92: 16 | D92: Electrical
A93: 57 | B93: . | D93: Accessory Buildings
A94: 58 | B94: . | D94: Other/Misc
A95: 59 | B95: . | D95: Subtotal Structural | F95: =SUM(F63:F94) -> 0
A96: 60 | C96: 2 | D96: Demolition
A97: 61 | B97: . | C97: 2 | D97: Earth Work
A98: 62 | B98: . | C98: 2 | D98: Site Utilities
A99: 63 | B99: . | C99: 2 | D99: Roads & Walks
A100: 64 | B100: . | C100: 2 | D100: Site Improvement
A101: 65 | B101: . | C101: 2 | D101: Lawns & Planting
A102: 66 | B102: . | C102: 2 | D102: Unusual Site Conditions
A103: 67 | B103: . | D103: Subtotal Site Work | F103: =SUM(F96:F102) -> 0
A104: 68 | B104: . | D104: Total Improvements | F104: =F103+F95 -> 0
A105: 69 | B105: . | D105: General Conditions | H105: As % of Total Improvements: | I105: =IF(F104=0,"",F105/F104) -> 
A106: 70 | B106: . | D106: Subtotal | F106: =F105+F104 -> 0
A107: 71 | B107: . | D107: Builders Overhead | H107: As % of Subtotal: | I107: =IF(F106=0,"",F107/F106) -> 
A108: 72 | B108: . | D108: Builders Profit | H108: As % of Subtotal: | I108: =IF(F106=0,"",F108/F106) -> 
A109: 73 | B109: . | D109: TOTAL | E109: (computed for you) | F109: =SUM(F106:F108) -> 0 | H109: Cost/Sq.Ft.: | I109: =IF('Project Info'!I122+'Project Info'!I123>0,F109/('Project Info'!I122+'Project Info'!I123),0) -> 0
C112: Development Budget:
E113: Residential | F113: Non- | G113: Total | H113: Comments
C114: ACQUISITION & CONSTRUCTION | F114: Residential | L114: Construction Costs
A115: =A109+1 -> 74 | B115: . | C115: Land | G115: =E115+F115 -> 0 | L115: Including Contingency
A116: =A115+1 -> 75 | B116: . | C116: Existing Building | G116: =E116+F116 -> 0 | L116: Total Construction | M116: =G117+G118 -> 0
A117: =A116+1 -> 76 | B117: . | C117: Construction Budget | E117: =F109 -> 0 | G117: =E117+F117 -> 0
A118: =A117+1 -> 77 | B118: . | C118: Construction Contingency | G118: =E118+F118 -> 0 | H118: =IF(AND(G117>0,G118>0),+G118/G117*100,0) -> 0 | I118: % of construct. | L118: Construction Per Sq FT | M118: =IFERROR(M116/'Project Info'!I122,"") -> 
A119: =A118+1 -> 78 | B119: . | G119: =E119+F119 -> 0
C120: Subtotal | E120: =SUM(E115:E119) -> 0 | F120: =SUM(F115:F119) -> 0 | G120: =SUM(G115:G119) -> 0 | J120: =IF(G120=0,"",G120/$G$195) ->  | L120: Construction Per unit | M120: =IFERROR(M116/'Project Info'!N69,"") -> 
C121: ARCHITECTURAL/ ENGINEERING/PROFESSIONAL FEES
A122: =A119+1 -> 79 | B122: . | C122: Architect Fee-Design | G122: =E122+F122 -> 0 | H122: =IF(AND(G122>0,G117>0),+G122/G117*100,0) -> 0 | I122: % of construct.
A123: =A122+1 -> 80 | C123: Architect Fee-Inspection | G123: 0
A124: 81 | B124: . | C124: Engineering Fees | G124: 0
A125: 82 | B125: . | C125: Historic Consultant Fees | G125: 0
A126: 83 | B126: . | C126: Solar Consultant Fees | G126: 0
A127: 84 | B127: . | G127: 0
A128: 85 | B128: . | G128: 0
C129: Subtotal | E129: =SUM(E122:E128) -> 0 | F129: =SUM(F122:F128) -> 0 | G129: =SUM(G122:G128) -> 0 | J129: =IF(G129=0,"",G129/$G$195) -> 
C130: INTERIM CONSTRUCTION EXPENSE
A131: =A128+1 -> 86 | B131: . | C131: Const. Loan Origination Fee | G131: =E131+F131 -> 0
A132: =A131+1 -> 87 | B132: . | C132: Const. Interest | G132: 0
A133: 88 | B133: . | C133: Const. Insurance | G133: 0
A134: 89 | B134: . | C134: Const. Bond Fee | G134: 0
A135: 90 | B135: . | C135: Lender's Counsel | G135: 0
A136: 91 | B136: . | C136: Taxes During Construction | G136: 0
A137: 92 | C137: Permits | G137: 0
A138: 93 | B138: . | G138: 0
A139: 94 | B139: . | G139: 0
C140: Subtotal | E140: =SUM(E131:E139) -> 0 | F140: =SUM(F131:F139) -> 0 | G140: =SUM(G131:G139) -> 0 | J140: =IF(G140=0,"",G140/$G$195) -> 
C141: FINANCING FEES AND EXPENSE
A142: =A139+1 -> 95 | B142: . | C142: Perm. Loan Origination Fee | G142: =E142+F142 -> 0
A143: =A142+1 -> 96 | B143: . | C143: Perm. Loan Credit Enhance | G143: 0
A144: 97 | B144: . | C144: Tax Credit Fee | G144: 0
A145: 98 | B145: . | C145: Title Insurance and Record | G145: 0
A146: 99 | B146: . | C146: Transfer Tax | G146: 0
A147: 100 | B147: . | C147: Lender's Counsel | G147: 0
A148: 101 | B148: . | C148: Bond Premium | G148: 0
A149: 102 | B149: . | C149: Financing Application Fee | G149: 0
A150: 103 | B150: . | C150: Upfront MIP Fee | G150: 0
A151: =A149+1 -> 103 | B151: . | C151: FFB Trustee Fee | G151: 0
A152: =A150+1 -> 104 | B152: . | C152: Soft Cost Contingency | G152: 0
A153: =A152+1 -> 105 | B153: . | G153: 0
C154: Subtotal | E154: =SUM(E142:E153) -> 0 | F154: =SUM(F142:F153) -> 0 | G154: =SUM(G142:G153) -> 0 | J154: =IF(G154=0,"",G154/$G$195) -> 
C155: OTHER SOFT COSTS
A156: =A153+1 -> 106 | B156: . | C156: Appraisal | G156: =E156+F156 -> 0
A157: =A156+1 -> 107 | B157: . | C157: Market Study | G157: 0
A158: 108 | B158: . | C158: Environmental Report | G158: 0
A159: 109 | B159: . | C159: Site Survey | G159: 0
A160: 110 | B160: . | C160: Relocation Costs | G160: 0
A161: 111 | B161: . | C161: Legal Fees | G161: 0
A162: 112 | B162: . | C162: Accounting Fees | G162: 0
A163: =A161+1 -> 112 | B163: . | C163: NHHFA Const. Admin. Svcs. Fee | G163: 0
A164: =A162+1 -> 113 | B164: . | G164: 0
C165: Subtotal | E165: =SUM(E156:E164) -> 0 | F165: =SUM(F156:F164) -> 0 | G165: =SUM(G156:G164) -> 0 | J165: =IF(G165=0,"",G165/$G$195) -> 
L169: Identity of Interest
E170: Residential | F170: Non- | G170: Total | H170: Comments | L170: If construction > $2.5 Million = 18% MAX
C171: DEVELOPER FEE | F171: Residential | L171: If construction < $2.5 Million = 20% MAX
A172: =A164+1 -> 114 | B172: . | C172: Devel. Overhead and Profit | G172: =E172+F172 -> 0 | H172: Reference "Dev Fee" Tab | L172: Identity of Interest Check | M172: =SUM((F105+F107+F108+E174)/E195) -> 
A173: =A172+1 -> 115 | B173: . | C173: Development Consultant Fee | G173: =E173+F173 -> 0 | H173: Must be taken from dev. Fee
C174: Subtotal | E174: =SUM(E172:E173) -> 0 | F174: =SUM(F172:F173) -> 0 | G174: =E174+F174 -> 0 | J174: =IF(G174=0,"",G174/$G$195) -> 
C175: SYNDICATION EXPENSES
A176: =A173+1 -> 116 | B176: . | C176: Syndication Legal | G176: =E176+F176 -> 0
A177: =A176+1 -> 117 | B177: . | C177: Syndication Accounting | G177: 0
A178: 118 | B178: . | C178: Syndication Fees | G178: 0
A179: 119 | B179: . | C179: Syndication Consultant | G179: 0
A180: 120 | B180: . | C180: Bridge Loan Origination Fee | G180: 0
A181: 121 | B181: . | C181: Bridge Loan Interest | G181: 0
A182: 122 | B182: . | C182: Investor Servicing (capital) | G182: 0
A183: 123 | B183: . | G183: 0
C184: Subtotal | E184: =SUM(E176:E183) -> 0 | F184: =SUM(F176:F183) -> 0 | G184: =SUM(G176:G183) -> 0 | J184: =IF(G184=0,"",G184/$G$195) -> 
C185: RESERVES (see NHHFA Policies)
A186: =A183+1 -> 124 | B186: . | C186: Operating Reserve | G186: =E186+F186 -> 0 | H186: Calculated | I186: =('Pro Forma'!F43/12*4)+('Inc & Exp'!G217/12*4) -> 0
A187: =A186+1 -> 125 | B187: . | C187: FFB Operating Reserve | G187: =E187+F187 -> 0 | H187: Calculated | I187: ='Inc & Exp'!G211/12*2 -> 0
A188: =A187+1 -> 126 | B188: . | C188: Replacement Reserve | G188: 0 | H188: Calculated | I188: ='Inc & Exp'!F206*'Project Info'!N69 -> 0
A189: =A188+1 -> 127 | B189: . | C189: Insurance Escrow | G189: 0
A190: 128 | B190: . | C190: Real Estate Tax Escrow | G190: 0
A191: 129 | B191: . | C191: Tax Credit Monitor Fee | G191: 0 | H191: Calculated | I191: =IF(ISBLANK('Project Info'!E96),'Project Info'!N69*530, 'Project Info'!N69*690) -> 0
A192: 130 | B192: . | G192: 0 | H192: HOME/HTF Monitoring Fee $1000 each
C193: Subtotal | E193: =SUM(E186:E192) -> 0 | F193: =SUM(F186:F192) -> 0 | G193: =SUM(G186:G192) -> 0 | J193: =IF(G193=0,"",G193/$G$195) -> 
A195: =A192+1 -> 131 | B195: . | C195: Total Development Cost | E195: =E120+E129+E140+E154+E165+E174+E184+E193 -> 0 | F195: =F120+F129+F140+F154+F165+F174+F184+F193 -> 0 | G195: =F195+E195 -> 0
A197: =A195+1 -> 132 | B197: . | C197: Total Net* Development Cost | E197: =E195-E184 -> 0 | F197: =F195-F184 -> 0 | G197: =SUM(E197:F197) -> 0
C198: *TDC less any costs associated with syndicating tax credits
G200: =IF(F41<>G195," Sources and Uses do NOT Match!"," Ok, Sources and Uses Match!") -> Ok, Sources and Uses Match!
G201: =IF(F41>G195,"Sources exceed Uses by:",IF(F41<G195,"Uses exceed Sources by:","")) ->  | H201: =IF(F41<>G195,F41-G195,"") ->  | I201: =IF(E200<>G200,E200-G200,"") -> 
C204: Debt Service Requirements:
A205: =A197+1 -> 133 | C205: Minimum Debt Service Coverage | F205: 1.15

Sheet Inc & Exp
A1: OPERATING PRO-FORMA
A2: ='Closing S&U'!A2 -> Un-named Project
M3: Lesser of Test - Rents
A4: Operating Income | M4: See Underwriting Standards for Policy
C5: Rent Schedule: | D5: Max LIHTC | E5: Contract | F5: Utility | G5: % of LIHTC | H5: Contract Rent | I5: No. of | M5: Market Rents per market study report:
A6: 1 | C6: ='Project Info'!D62 -> Market Rate | D6: Gross Rent | E6: Rent | F6: Allowance | G6: Max | H6: + Utility Allow. | I6: Units | O6: @ 90%
C7: SRO | G7: =IFERROR(H7/D7,"") ->  | H7: =IF(I7>0,E7+F7,"") ->  | I7: ='Project Info'!D63 -> 0 | J7: =(E7*I7)*12 -> 0 | M7: 1 BD | O7: =N7*0.9 -> 0
C8: 0 Bedroom | I8: ='Project Info'!D64 -> 0 | J8: 0 | M8: 2 BD | O8: =N8*0.9 -> 0
C9: 1 Bedroom | I9: ='Project Info'!D65 -> 0 | J9: 0 | M9: 3 BD | O9: =N9*0.9 -> 0
C10: 2 Bedroom | I10: ='Project Info'!D66 -> 0 | J10: 0
C11: 3 Bedroom | I11: ='Project Info'!D67 -> 0 | J11: 0 | M11: HTF Rents (see HTF Rents) | Q11: Lesser of Results
C12: 4 Bedroom | I12: ='Project Info'!D68 -> 0 | J12: 0 | O12: @ 98%
H13: Subtotal | I13: =SUM(I7:I12) -> 0 | M13: 1 BD | O13: =N13*0.98 -> 0
A14: =A6+1 -> 2 | C14: ='Project Info'!E62 -> LIHTC | D14: ='Project Info'!E61 -> 0 | M14: 2 BD | O14: =N14*0.98 -> 0
C15: SRO | G15: =IFERROR(H15/D15,"") ->  | H15: =IF(I15>0,E15+F15,"") ->  | I15: ='Project Info'!E63 -> 0 | J15: =(E15*I15)*12 -> 0 | M15: 3 BD | O15: =N15*0.98 -> 0
C16: 0 Bedroom | I16: ='Project Info'!E64 -> 0 | J16: 0
C17: 1 Bedroom | I17: ='Project Info'!E65 -> 0 | J17: 0 | M17: HOME Rents | Q17: Lesser of Results
C18: 2 Bedroom | I18: ='Project Info'!E66 -> 0 | J18: 0 | O18: @ 98%
C19: 3 Bedroom | I19: ='Project Info'!E67 -> 0 | J19: 0 | M19: 1 BD LH | O19: =N19*0.98 -> 0
C20: 4 Bedroom | I20: ='Project Info'!E68 -> 0 | J20: 0 | M20: 2 BD LH | O20: 0
H21: Subtotal | I21: =SUM(I15:I20) -> 0 | M21: 3 BD LH | O21: 0
A22: =A14+1 -> 3 | C22: ='Project Info'!G62 -> LIHTC | D22: ='Project Info'!F61 -> 0 | M22: 1 BD HH | O22: 0
C23: SRO | G23: =IFERROR(H23/D23,"") ->  | H23: =IF(I23>0,E23+F23,"") ->  | I23: ='Project Info'!F63 -> 0 | J23: =(E23*I23)*12 -> 0 | M23: 2 BD HH | O23: 0
C24: 0 Bedroom | I24: ='Project Info'!F64 -> 0 | J24: 0 | M24: 3 BD HH | O24: 0
C25: 1 Bedroom | I25: ='Project Info'!F65 -> 0 | J25: 0
C26: 2 Bedroom | I26: ='Project Info'!F66 -> 0 | J26: 0 | M26: LIHTC 50% Rents | Q26: Lesser of Results
C27: 3 Bedroom | I27: ='Project Info'!F67 -> 0 | J27: 0 | O27: @ 98%
C28: 4 Bedroom | I28: ='Project Info'!F68 -> 0 | J28: 0 | M28: 1 BD | O28: =N28*0.98 -> 0
H29: Subtotal | I29: =SUM(I23:I28) -> 0 | M29: 2 BD | O29: =N29*0.98 -> 0
A30: =A22+1 -> 4 | C30: ='Project Info'!G62 -> LIHTC | D30: ='Project Info'!G61 -> 0 | M30: 3 BD | O30: =N30*0.98 -> 0
C31: SRO | G31: =IFERROR(H31/D31,"") ->  | H31: =IF(I31>0,E31+F31,"") ->  | I31: ='Project Info'!G63 -> 0 | J31: =(E31*I31)*12 -> 0
C32: 0 Bedroom | I32: ='Project Info'!G64 -> 0 | J32: 0 | M32: LIHTC 60% Rents | Q32: Lesser of Results
C33: 1 Bedroom | I33: ='Project Info'!G65 -> 0 | J33: 0 | O33: @ 98%
C34: 2 Bedroom | I34: ='Project Info'!G66 -> 0 | J34: 0 | M34: 1 BD | O34: =N34*0.98 -> 0
C35: 3 Bedroom | I35: ='Project Info'!G67 -> 0 | J35: 0 | M35: 2 BD | O35: =N35*0.98 -> 0
C36: 4 Bedroom | I36: ='Project Info'!G68 -> 0 | J36: 0 | M36: 3 BD | O36: =N36*0.98 -> 0
H37: Subtotal | I37: =SUM(I31:I36) -> 0
A38: =A30+1 -> 5 | C38: ='Project Info'!H62 -> LIHTC | D38: ='Project Info'!H61 -> 0 | M38: 811 Rents | Q38: Greater of Results
C39: SRO | G39: =IFERROR(H39/D39,"") ->  | H39: =IF(I39>0,E39+F39,"") ->  | I39: ='Project Info'!H63 -> 0 | J39: =(E39*I39)*12 -> 0 | O39: FMR | P39: Market (98%)
C40: 0 Bedroom | I40: ='Project Info'!H64 -> 0 | J40: 0 | M40: 1 BD | Q40: =IF(O40>P40,O40,P40) -> 0
C41: 1 Bedroom | I41: ='Project Info'!H65 -> 0 | J41: 0 | M41: 2 BD | Q41: =IF(O41>P41,O41,P41) -> 0
C42: 2 Bedroom | I42: ='Project Info'!H66 -> 0 | J42: 0 | M42: 3 BD | Q42: =IF(O42>P42,O42,P42) -> 0
C43: 3 Bedroom | I43: ='Project Info'!H67 -> 0 | J43: 0
C44: 4 Bedroom | I44: ='Project Info'!H68 -> 0 | J44: 0
H45: Subtotal | I45: =SUM(I39:I44) -> 0 | M45: Lesser of Test Results = Contract Rent + UA
C49: Rent Schedule (Continued):
D50: Max LIHTC | E50: Contract | F50: Utility | G50: % ofLIHTC | H50: Contract Rent | I50: No. of
A51: =A38+1 -> 6 | C51: ='Project Info'!I62 -> Low HOME | D51: Gross Rent | E51: Rent | F51: Allowance | G51: Max | H51: + Utility Allow. | I51: Units
C52: SRO | G52: =IFERROR(H52/D52,"") ->  | H52: =IF(I52>0,E52+F52,"") ->  | I52: ='Project Info'!I63 -> 0 | J52: =(E52*I52)*12 -> 0
C53: 0 Bedroom | I53: ='Project Info'!I64 -> 0 | J53: 0
C54: 1 Bedroom | I54: ='Project Info'!I65 -> 0 | J54: 0
C55: 2 Bedroom | I55: ='Project Info'!I66 -> 0 | J55: 0
C56: 3 Bedroom | I56: ='Project Info'!I67 -> 0 | J56: 0
C57: 4 Bedroom | I57: ='Project Info'!I68 -> 0 | J57: 0
H58: Subtotal | I58: =SUM(I52:I57) -> 0
A59: =A51+1 -> 7 | C59: ='Project Info'!J62 -> High HOME
C60: SRO | G60: =IFERROR(H60/D60,"") ->  | H60: =IF(I60>0,E60+F60,"") ->  | I60: ='Project Info'!J63 -> 0 | J60: =(E60*I60)*12 -> 0
C61: 0 Bedroom | I61: ='Project Info'!J64 -> 0 | J61: 0
C62: 1 Bedroom | I62: ='Project Info'!J65 -> 0 | J62: 0
C63: 2 Bedroom | I63: ='Project Info'!J66 -> 0 | J63: 0
C64: 3 Bedroom | I64: ='Project Info'!J67 -> 0 | J64: 0
C65: 4 Bedroom | I65: ='Project Info'!J68 -> 0 | J65: 0
H66: Subtotal | I66: =SUM(I60:I65) -> 0
A67: =A59+1 -> 8 | C67: ='Project Info'!K62 -> HTF
C68: SRO | G68: =IFERROR(H68/D68,"") ->  | H68: =IF(I68>0,E68+F68,"") ->  | I68: ='Project Info'!K63 -> 0 | J68: =(E68*I68)*12 -> 0
C69: 0 Bedroom | I69: ='Project Info'!K64 -> 0 | J69: 0
C70: 1 Bedroom | I70: ='Project Info'!K65 -> 0 | J70: 0
C71: 2 Bedroom | I71: ='Project Info'!K66 -> 0 | J71: 0
C72: 3 Bedroom | I72: ='Project Info'!K67 -> 0 | J72: 0
C73: 4 Bedroom | I73: ='Project Info'!K68 -> 0 | J73: 0
H74: Subtotal | I74: =SUM(I68:I73) -> 0
A75: =A67+1 -> 9 | C75: ='Project Info'!L62 -> 811 units
C76: SRO | G76: =IFERROR(H76/D76,"") ->  | H76: =IF(I76>0,E76+F76,"") ->  | I76: ='Project Info'!L63 -> 0 | J76: =(E76*I76)*12 -> 0
C77: 0 Bedroom | I77: ='Project Info'!L64 -> 0 | J77: 0
C78: 1 Bedroom | I78: ='Project Info'!L65 -> 0 | J78: 0
C79: 2 Bedroom | I79: ='Project Info'!L66 -> 0 | J79: 0
C80: 3 Bedroom | I80: ='Project Info'!L67 -> 0 | J80: 0
C81: 4 Bedroom | I81: ='Project Info'!L68 -> 0 | J81: 0
H82: Subtotal | I82: =SUM(I76:I81) -> 0
A83: =A75+1 -> 10 | C83: ='Project Info'!M62 -> Rental Assisted
C84: SRO | G84: =IFERROR(H84/D84,"") ->  | H84: =IF(I84>0,E84+F84,"") ->  | I84: ='Project Info'!M63 -> 0 | J84: =(E84*I84)*12 -> 0
C85: 0 Bedroom | I85: ='Project Info'!M64 -> 0 | J85: 0
C86: 1 Bedroom | I86: ='Project Info'!M65 -> 0 | J86: 0
C87: 2 Bedroom | I87: ='Project Info'!M66 -> 0 | J87: 0
C88: 3 Bedroom | I88: ='Project Info'!M67 -> 0 | J88: 0
C89: 4 Bedroom | I89: ='Project Info'!M68 -> 0 | J89: 0
H90: Subtotal | I90: =SUM(I84:I89) -> 0
C94: Commercial Income: | F94: (average) $ / sq. ft.
A95: =A83+1 -> 11 | C95: Square Feet: | D95: ='Project Info'!F127 -> 0 | E95: @ | G95: = Comm. Income: | I95: =D95*F95 -> 0
C97: Vacancy Rates: | D97: Year 1 | E97: Year 2 | F97: Year 3 | G97: Year 4 | H97: Year 5 | I97: Year 6 and up
A98: =A95+1 -> 12 | C98: Market Rate | D98: 0.05 | E98: 0.05 | F98: 0.05 | G98: 0.05 | H98: 0.05 | I98: 0.05
A99: =A98+1 -> 13 | C99: LIHTC | D99: 0.05 | E99: 0.05 | F99: 0.05 | G99: 0.05 | H99: 0.05 | I99: 0.05
A100: 14 | C100: HOME | D100: 0.05 | E100: 0.05 | F100: 0.05 | G100: 0.05 | H100: 0.05 | I100: 0.05
A101: 15 | C101: HTF | D101: 0.05 | E101: 0.05 | F101: 0.05 | G101: 0.05 | H101: 0.05 | I101: 0.05
A102: 16 | C102: 811 | D102: 0.05 | E102: 0.05 | F102: 0.05 | G102: 0.05 | H102: 0.05 | I102: 0.05
A103: 17 | C103: Rent Assisted | D103: 0.05 | E103: 0.05 | F103: 0.05 | G103: 0.05 | H103: 0.05 | I103: 0.05
A104: 18 | C104: Commercial Space | D104: 0.05 | E104: 0.05 | F104: 0.05 | G104: 0.05 | H104: 0.05 | I104: 0.05
A106: =A104+1 -> 19 | C106: Laundry Income (annual): | F106: $
A108: =A106+1 -> 20 | C108: Other Income: | F108: $
C109: Trending Assumptions
C110: for Rents: | E110: Year 2 % | F110: Year 3 % | G110: Year 4 % | H110: Year 5 % | I110: Years 6-20 %
A111: =A108+1 -> 21 | C111: Market Rate | E111: 0.02 | F111: 0.02 | G111: 0.02 | H111: 0.02 | I111: 0.025 | J111: =IF(AND(I13>0,SUM(E111:H111)<0.000001),1,0) -> 0
A112: =A111+1 -> 22 | C112: LIHTC | E112: 0.02 | F112: 0.02 | G112: 0.02 | H112: 0.02 | I112: 0.025 | J112: =IF(AND(I21>0,SUM(E112:H112)<0.000001),1,0) -> 0
A113: 23 | C113: HOME | E113: 0.02 | F113: 0.02 | G113: 0.02 | H113: 0.02 | I113: 0.025 | J113: =IF(AND(I29>0,SUM(E113:H113)<0.000001),1,0) -> 0
A114: 24 | C114: HTF | E114: 0.02 | F114: 0.02 | G114: 0.02 | H114: 0.02 | I114: 0.025 | J114: =IF(AND(I37>0,SUM(E114:H114)<0.000001),1,0) -> 0
A115: =A113+1 -> 24 | C115: 811 | E115: 0.02 | F115: 0.02 | G115: 0.02 | H115: 0.02 | I115: 0.025 | J115: =IF(AND(I44>0,SUM(E115:H115)<0.000001),1,0) -> 0
A116: =A114+1 -> 25 | C116: Rent Assisted | E116: 0.02 | F116: 0.02 | G116: 0.02 | H116: 0.02 | I116: 0.025 | J116: =IF(AND(I45>0,SUM(E116:H116)<0.000001),1,0) -> 0
A117: 26 | C117: Commercial Space Rental | E117: 0.02 | F117: 0.02 | G117: 0.02 | H117: 0.02 | I117: 0.025 | J117: =IF(AND(D95>0,SUM(E117:H117)<0.000001),1,0) -> 0
A118: 27 | C118: Other Income | E118: 0.02 | F118: 0.02 | G118: 0.02 | H118: 0.02 | I118: 0.025
C120: Note: Current Authority underwriting standard on trending: 2% on income, 3% on oper exp incl replacement reserve.
C122: Operating Subsidy and Capitalized Operating Reserves:
A124: =A118+1 -> 28 | C124: Yearly Draws on Subsidies and Reserves:(if any) | G124: Note: This section locked …for Authority staff only
C126: Source I ($) | D126: Source II ($) | E126: Source III ($) | G126: Source I ($) | H126: Source II ($) | I126: Source III ($)
B127: NAME | E127: Operating Reserves | G127: =C127 -> 0 | H127: =D127 ->  | I127: =E127 -> Operating Reserves
B128: Year 1 | C128: 0 | F128: Year 11 | G128: =C137*1.0125 -> 0
B129: Year 2 | C129: =C128*1.0125 -> 0 | F129: Year 12 | G129: =G128*1.0125 -> 0
B130: Year 3 | C130: 0 | F130: Year 13 | G130: 0
B131: Year 4 | C131: 0 | F131: Year 14 | G131: 0
B132: Year 5 | C132: 0 | F132: Year 15 | G132: 0
B133: Year 6 | C133: 0 | F133: Year 16 | G133: 0
B134: Year 7 | C134: 0 | F134: Year 17 | G134: 0
B135: Year 8 | C135: 0 | F135: Year 18 | G135: 0
B136: Year 9 | C136: 0 | F136: Year 19 | G136: 0
B137: Year 10 | C137: 0 | F137: Year 20 | G137: 0
A139: =A124+1 -> 29 | B139: . | C139: Annual Operating Income (year 1) : | F139: =(SUM(J7:J12)*(1-D98))+(SUM(J15:J20)*(1-D99))+(SUM(J23:J28)*(1-D99))+(SUM(J31:J36)*(1-D99))+(SUM(J39:J44)*(1-D99))+(SUM(J52:J57)*(1-D100))+(SUM(J60:J65)*(1-D100))+(SUM(J68:J73)*(1-D101))+(SUM(J76:J81)*(1-D102))+(SUM(J84:J89)*(1-D103)+(SUM(I95*(1-D104))+G106+G108+(C128+D128+E128))) -> 0
A142: Operating Expenses
B144: Annual Operating Exp.: | E144: Residential | F144: Commercial | G144: Total | H144: Comments
A145: =A139+1 -> 30 | C145: Management Fee | G145: =E145+F145 -> 0 | H145: =IF(F139=0,"",G145/F139) ->  | I145: of total op. Inc.
A146: =A145+1 -> 31 | C146: Payroll, Administrative | G146: 0
A147: 32 | C147: Payroll Taxes & Benefits, Admin | G147: 0
A148: 33 | C148: Legal | G148: 0
A149: 34 | C149: Audit | G149: 0
A150: 35 | C150: Marketing | G150: 0
A151: 36 | C151: Telephone | G151: 0
A152: 37 | C152: Office Supplies | G152: 0
A153: 38 | C153: Accounting & Data Processing | G153: 0
A154: 39 | C154: Investor Servicing Fees | G154: 0 | H154: Paid "below the line"
A155: 40 | C155: Other Fees: | G155: 0
A156: 41 | C156: Other: | G156: 0
A157: 42 | C157: Other: | G157: 0
A158: 43 | C158: Subtotal: Administrative | E158: =SUM(E145:E157) -> 0 | F158: =SUM(F145:F157) -> 0 | G158: =SUM(G145:G157) -> 0
A160: =A158+1 -> 44 | C160: Payroll, Maintenance | G160: =E160+F160 -> 0
A161: =A160+1 -> 45 | C161: Payroll Taxes & Benefits, Maint | G161: 0
A162: 46 | C162: Janitorial Materials | G162: 0
A163: 47 | C163: Landscaping | G163: 0
A164: 48 | C164: Decorating (inter. only) | G164: 0
A165: 49 | C165: Repairs (inter. & ext.) | G165: 0
A166: 50 | C166: Elevator Maintenance | G166: 0
A167: 51 | C167: Trash Removal | G167: 0
A168: 52 | C168: Snow Removal | G168: 0
A169: 53 | C169: Extermination | G169: 0
A170: 54 | C170: Recreation | G170: 0
A171: 55 | C171: Other: | G171: 0
A172: 56 | C172: Subtotal: Maintenance | E172: =SUM(E160:E171) -> 0 | F172: =SUM(F160:F171) -> 0 | G172: =SUM(G160:G171) -> 0
A174: =A172+1 -> 57 | C174: Direct Service Staff / Contract staff | G174: =E174+F174 -> 0
C175: Food Supplies | G175: =E175+F175 -> 0
C176: Program Supplies | G176: =E176+F176 -> 0
C177: Subtotal: Resident Services | E177: =SUM(E174:E176) -> 0 | F177: =SUM(F174:F176) -> 0 | G177: =SUM(G174:G176) -> 0
A179: =A174+1 -> 58 | C179: Security | G179: =E179+F179 -> 0
A181: =A179+1 -> 59 | C181: Electricity | G181: =E181+F181 -> 0
A182: =A181+1 -> 60 | C182: Natural Gas | G182: =E182+F182 -> 0
A183: =A182+1 -> 61 | C183: Oil | G183: =E183+F183 -> 0
A184: =A183+1 -> 62 | C184: Water & Sewer | G184: =E184+F184 -> 0
A185: =A184+1 -> 63 | C185: Subtotal: Utilities | E185: =SUM(E181:E184) -> 0 | F185: =SUM(F181:F184) -> 0 | G185: =SUM(G181:G184) -> 0
A187: =A185+1 -> 64 | C187: Replacement Reserve | G187: =E187+F187 -> 0 | H187: Calculated | I187: =500*'Project Info'!N69 -> 0
A189: =A187+1 -> 65 | C189: Real Estate Taxes | G189: =E189+F189 -> 0
A190: =A189+1 -> 66 | C190: Other Taxes | G190: =E190+F190 -> 0
A191: =A190+1 -> 67 | C191: Insurance | G191: =E191+F191 -> 0
A192: =A191+1 -> 68 | C192: Other | G192: =E192+F192 -> 0
A193: =A192+1 -> 69 | C193: Subtotal: Taxes, Insurance | E193: =SUM(E189:E192) -> 0 | F193: =SUM(F189:F192) -> 0 | G193: =E193+F193 -> 0
D194: Total Expenses (w/o Res. Serv) | E194: =E158+E172+E177+E179+E185+E193 -> 0 | F194: =F158+F172+F177+F179+F185+F193 -> 0 | G194: =G158+G172+G177+G179+G185+G193 -> 0 | H194: PUPM
A195: =A193+1 -> 70 | C195: Total All Expenses | E195: =E158+E172+E177+E179+E185+E187+E193 -> 0 | F195: =F158+F172+F177+F179+F185+F187+F193 -> 0 | G195: =G158+G172+G177+G179+G185+G187+G193 -> 0 | H195: =IF('Project Info'!N69<=0,"",G195/'Project Info'!N69/12) -> 
C197: Other Operating Expense Assumptions
C198: Trending Assumptions for Expenses | F198: Year 2 % | G198: Year 3 % | H198: Year 4 % | I198: Year 5-15 %
A199: =A195+1 -> 71 | C199: Sewer & Water | F199: 0.03 | G199: 0.03 | H199: 0.03 | I199: 0.03
A200: =A199+1 -> 72 | C200: Real Estate Taxes | F200: 0.03 | G200: 0.03 | H200: 0.03 | I200: 0.03
A201: =A200+1 -> 73 | C201: All Other Operating Expenses, incl repl reserve | F201: 0.03 | G201: 0.03 | H201: 0.03 | I201: 0.03
C205: Reserve Requirements:
A206: =A201+1 -> 74 | C206: Replacement Reserve Requirement 1st Yr | G206: per unit per year
A207: =A206+1 -> 75 | C207: Operating Reserve Requirement | G207: per unit per year
C209: Debt Service: | G209: Annual
G210: Payment
A211: =A207+1 -> 76 | C211: NHHFA Permanent Loan | G211: =IF('Closing S&U'!H33<>0,(PMT(('Closing S&U'!G33/12),('Closing S&U'!H33*12),-'Closing S&U'!F33)*12),0) -> 0
A212: =A211+1 -> 77 | G212: =IF('Closing S&U'!H34<>0,(PMT(('Closing S&U'!G34/12),('Closing S&U'!H34*12),-'Closing S&U'!F34)*12),0) -> 0
A213: =A212+1 -> 78 | C213: Other Permanent Mortgage | G213: =IF('Closing S&U'!H35<>0,(PMT(('Closing S&U'!G35/12),('Closing S&U'!H35*12),-'Closing S&U'!F35)*12),0) -> 0
C214: Source: | D214: =IF('Closing S&U'!D36="","",IF(LEN(TRIM('Closing S&U'!D36))>1,+'Closing S&U'!D36,"")) -> 
A215: =A213+1 -> 79 | C215: Other Permanent Mortgage | G215: =IF('Closing S&U'!H37<>0,(PMT(('Closing S&U'!G37/12),('Closing S&U'!H37*12),-'Closing S&U'!F37)*12),0) -> 0
C216: Source: | D216: =IF('Closing S&U'!D38="","",IF(LEN(TRIM('Closing S&U'!D38))>1,+'Closing S&U'!D38,"")) -> 
A217: =A215+1 -> 80 | C217: Total Debt Service (Annual) | G217: =SUM(G211:G213)+G215 -> 0
A219: =A217+1 -> 81 | C219: Net Operating Income | G219: =F139-G195 -> 0 | H219: (in year one)
A221: =A219+1 -> 82 | C221: Debt Service Coverage Ratio | G221: =IF(G217>0,G219/G217,0) -> 0 | H221: (in year one)
C224: Affordability: Income Information and Maximum Allowable Rents
D225: See website for income limits and rents <www.nhhfa.org >under Data section
A226: =A221+1 -> 83 | C226: Median Income For Site: | F226: Median Area Income $
A228: =A226+1 -> 84 | C228: As of (date): | F228: Area used is
A230: =A228+1 -> 85 | C230: Income, Adjusted by Household Size: | G230: 0.8 | H230: 0.6 | I230: 0.5
E231: =0.7*$H$226 -> 0 | F231: 1 person | H231: =E231*0.6 -> 0 | I231: =E231*0.5 -> 0
E232: =0.8*$H$226 -> 0 | F232: 2 person | H232: 0 | I232: 0
E233: =0.9*$H$226 -> 0 | F233: 3 person | H233: 0 | I233: 0
E234: =$H$226 -> 0 | F234: 4 person | H234: 0 | I234: 0
... 6 more rows

Sheet Dev Team
A1: DEVELOPMENT TEAM SUMMARY
D2: ='Closing S&U'!A2 -> Un-named Project | J2: =IF('Project Info'!J9="","",'Project Info'!J9) -> 
A4: 1 | B4: . | C4: Developer/Sponsor Type (Please check one box) | H4: (check one)
C5: Any form of for-profit corporation, partnership, or individual | J5: =IF(H5<>" ",1,0) -> 0
C6: Non-profit corporation | J6: =IF(H6<>" ",1,0) -> 0
C7: Limited equity housing cooperative | J7: =IF(H7<>" ",1,0) -> 0
C8: Other: | J8: =IF(H8<>" ",1,0) -> 0
A10: =A4+1 -> 2 | B10: . | C10: Developer/Sponsor:
D11: Legal Name
D12: Address
D14: Contact Person
D15: Email Address
D16: Telephone No. / Fax. No.
A18: =A10+1 -> 3 | B18: . | C18: Proposed Owner/Mortgagor:
D19: Form of Legal Entity
D20: Legal Name
D21: Address
D23: Soc.Sec.No./Fed Tax ID#
D24: Principals
D25: Contact Person
D26: Email Address
D27: Telephone No. / Fax. No.
A29: =A18+1 -> 4 | B29: . | C29: General Partner (if applicable):
D30: Form of Legal Entity
D31: Legal Name
D32: Address
D34: Soc.Sec.No./Fed Tax ID#
D35: Principal (if corporation)
D36: Contact Person
D37: Email Address
D38: % of Ownership
D39: Telephone No. / Fax. No.
A41: =A29+1 -> 5 | B41: . | C41: General Partner (if applicable):
D42: Form of Legal Entity
D43: Legal Name
D44: Address
D46: Soc.Sec.No./Fed Tax ID#
D47: Principal (if corporation)
D48: Contact Person
D49: Email Address
D50: % of Ownership
D51: Telephone No. / Fax. No.
A55: =A41+1 -> 6 | B55: . | C55: Development Consultant:
D56: Company Name
D57: Address
D59: Contact Person
D60: Email Address
D61: Telephone/Fax#
A63: =A130+1 -> 15 | B63: . | C63: Solar/Energy Consultant
D64: Company Name
D65: Address
D67: Contact Person
D68: Email Address
D69: Telephone/Fax#
A71: =A120+1 -> 13 | B71: . | C71: Historic Consultant
D72: Company Name
D73: Address
D75: Contact Person
D76: Email Address
D77: Telephone/Fax#
A79: =A55+1 -> 7 | B79: . | C79: Contractor:
D80: Company Name
D81: Address
D83: Contact Person
D84: Email Address
D85: Telephone/Fax#
A87: =A79+1 -> 8 | B87: . | C87: Architect:
D88: Company Name
D89: Address
D91: Contact Person
D92: Email Address
D93: Telephone/Fax#
A96: =A87+1 -> 9 | B96: . | C96: Management Agent:
D97: Company Name
D98: Address
D100: Contact Person
D101: Email Address
D102: Telephone/Fax#
A104: =A96+1 -> 10 | B104: . | C104: Attorney (Real Estate):
D105: Company Name
D106: Address
D108: Contact Person
D109: Email Address
D110: Telephone/Fax#
A112: =A104+1 -> 11 | B112: . | C112: Attorney (Tax):
D113: Company Name
D114: Address
D116: Contact Person
D117: Email Address
D118: Telephone/Fax#
A120: =A112+1 -> 12 | B120: . | C120: Syndicator or Other Buyer of Equity:
D121: Company Name
D122: Address
D124: Contact Person
D125: Email Address
D126: Telephone/Fax#
A130: =A71+1 -> 14 | B130: . | C130: Service Provider or Coordinator:
D131: Name
D132: Address
D134: Contact Person
D135: Email Address
D136: Telephone/Fax#
A137: =A63+1 -> 16 | B137: . | C137: Local Elected Town Official (CEO - to be contacted by NH Housing
C138: as per Section 42 requirements)
D139: Name
B140: Please do not | D140: Address
B141: use Town Manager | D141: Contact Person
B142: Must be "ELECTED" | D142: Email Address
D143: Telephone/Fax#
A145: =A137+1 -> 17 | B145: .
C146: Other role | D146: Company Name
D147: Address
D149: Contact Person
D150: Email Address
D151: Telephone/Fax#
A153: =A145+1 -> 18 | B153: . | C153: Is there any identity of interest between any members of the development team?
E154: ("yes" or "no") | G154: If yes, explain below.
A169: CERTIFICATION PAGE
C171: Project Name | D171: =IF(+'Project Info'!E4="","Un-named Project",+'Project Info'!E4) -> Un-named Project
C173: Date:
D174: (month) | E174: (day) | F174: (year)
C176: The applicant hereby certifies that this application is complete and accurate to the best of
C177: his/her knowledge, and that no material misrepresentation is made herein by the applicant.
C178: The applicant agrees that this application may be relied upon by the N.H. Housing
C179: Housing Finance Authority and other funding sources.
C181: In the event of any extraordinary circumstances, the applicant agrees to pay for any reasonable
C182: legal and third party costs incurred by the Authority which are associated with processing this
C183: application.
C185: By submitting this application, applicant gives permission to N.H. Housing Finance Authority and its
C186: agents to investigate all representations made and attachments included.
C187: This includes permission to access personal and business credit reports.
D193: Applicant Signature | G193: Date

Sheet Pro Forma
B2: NH Housing Financing Application | J2: Page 1 of 4
B3: ='Closing S&U'!A2 -> Un-named Project
B4: 20-Year Operating Proforma (Years 1-5)
F7: Year 1 | G7: Year 2 | H7: Year 3 | I7: Year 4 | J7: Year 5
E8: Calendar Year : | F8: =IF(+'Project Info'!G51>0,+'Project Info'!B51," N/A ") -> N/A | G8: =IF(F8>0,F8+1," N/A ") -> N/A | H8: =IF(G8>0,G8+1," N/A ") -> N/A | I8: =IF(H8>0,H8+1," N/A ") -> N/A | J8: =IF(I8>0,I8+1," N/A ") -> N/A
C9: INCOME:
D10: Market Rate Units | F10: =SUM('Inc & Exp'!J7:J12) -> 0 | G10: =F10*(1+'Inc & Exp'!E111) -> 0 | H10: =G10*(1+'Inc & Exp'!F111) -> 0 | I10: =H10*(1+'Inc & Exp'!G111) -> 0 | J10: =I10*(1+'Inc & Exp'!H111) -> 0
D11: Tax Credit Units | F11: =SUM('Inc & Exp'!J15:J44) -> 0 | G11: =F11*(1+'Inc & Exp'!E112) -> 0 | H11: =G11*(1+'Inc & Exp'!F112) -> 0 | I11: =H11*(1+'Inc & Exp'!G112) -> 0 | J11: =I11*(1+'Inc & Exp'!H112) -> 0
D12: HOME Units | F12: =SUM('Inc & Exp'!J52:J65) -> 0 | G12: =F12*(1+'Inc & Exp'!E113) -> 0 | H12: =G12*(1+'Inc & Exp'!F113) -> 0 | I12: =H12*(1+'Inc & Exp'!G113) -> 0 | J12: =I12*(1+'Inc & Exp'!H113) -> 0
D13: HTF Units | F13: =SUM('Inc & Exp'!J68:J73) -> 0 | G13: =F13*(1+'Inc & Exp'!E114) -> 0 | H13: =G13*(1+'Inc & Exp'!F114) -> 0 | I13: =H13*(1+'Inc & Exp'!G114) -> 0 | J13: =I13*(1+'Inc & Exp'!H114) -> 0
D14: 811 Units | F14: =SUM('Inc & Exp'!J76:J81) -> 0 | G14: =F14*(1+'Inc & Exp'!E115) -> 0 | H14: =G14*(1+'Inc & Exp'!F115) -> 0 | I14: =H14*(1+'Inc & Exp'!G115) -> 0 | J14: =I14*(1+'Inc & Exp'!H115) -> 0
D15: Rental Assisted Units | F15: =SUM('Inc & Exp'!J84:J89) -> 0 | G15: =F15*(1+'Inc & Exp'!E116) -> 0 | H15: =G15*(1+'Inc & Exp'!F116) -> 0 | I15: =H15*(1+'Inc & Exp'!G116) -> 0 | J15: =I15*(1+'Inc & Exp'!H116) -> 0
C16: Gross Potential Income | F16: =SUM(F10:F15) -> 0 | G16: =SUM(G10:G15) -> 0 | H16: =SUM(H10:H15) -> 0 | I16: =SUM(I10:I15) -> 0 | J16: =SUM(J10:J15) -> 0
D17: Less vacancy | F17: =(F10*'Inc & Exp'!$D$98)+(F11*'Inc & Exp'!$D$99)+(F12*'Inc & Exp'!$D$100)+(F13*'Inc & Exp'!$D$101)+(F14*'Inc & Exp'!D102)+(F15*'Inc & Exp'!D103) -> 0 | G17: =(G10*'Inc & Exp'!E$98)+(G11*'Inc & Exp'!E$99)+(G12*'Inc & Exp'!E$100)+(G13*'Inc & Exp'!E$101)+(G14*'Inc & Exp'!E102)+(G15*'Inc & Exp'!E$103) -> 0 | H17: =(H10*'Inc & Exp'!F$98)+(H11*'Inc & Exp'!F$99)+(H12*'Inc & Exp'!F$100)+(H13*'Inc & Exp'!F$101)+(H14*'Inc & Exp'!F102)+(H15*'Inc & Exp'!F$103) -> 0 | I17: =(I10*'Inc & Exp'!G$98)+(I11*'Inc & Exp'!G$99)+(I12*'Inc & Exp'!G$100)+(I13*'Inc & Exp'!G$101)+(I14*'Inc & Exp'!G102)+(I15*'Inc & Exp'!G$103) -> 0 | J17: =(J10*'Inc & Exp'!H$98)+(J11*'Inc & Exp'!H$99)+(J12*'Inc & Exp'!H$100)+(J13*'Inc & Exp'!H$101)+(J14*'Inc & Exp'!H102)+(J15*'Inc & Exp'!H$103) -> 0
C18: Effective Gross Residential Income | F18: =F16-F17 -> 0 | G18: =G16-G17 -> 0 | H18: =H16-H17 -> 0 | I18: =I16-I17 -> 0 | J18: =J16-J17 -> 0
D19: Commercial Income | F19: ='Inc & Exp'!I95 -> 0 | G19: =F19*(1+'Inc & Exp'!E117) -> 0 | H19: =G19*(1+'Inc & Exp'!F117) -> 0 | I19: =H19*(1+'Inc & Exp'!G117) -> 0 | J19: =I19*(1+'Inc & Exp'!H117) -> 0
D20: Less vacancy | F20: =F19*'Inc & Exp'!$D104 -> 0 | G20: =G19*'Inc & Exp'!$E104 -> 0 | H20: =H19*'Inc & Exp'!$F104 -> 0 | I20: =I19*'Inc & Exp'!$G104 -> 0 | J20: =J19*'Inc & Exp'!$H104 -> 0
D21: Net Commercial Income | F21: =F19-F20 -> 0 | G21: =G19-G20 -> 0 | H21: =H19-H20 -> 0 | I21: =I19-I20 -> 0 | J21: =J19-J20 -> 0
C22: Effective Rental Income | F22: =F18+F21 -> 0 | G22: =G18+G21 -> 0 | H22: =H18+H21 -> 0 | I22: =I18+I21 -> 0 | J22: =J18+J21 -> 0
D23: Other Income | F23: ='Inc & Exp'!G106+'Inc & Exp'!G108 -> 0 | G23: =F23*(1+'Inc & Exp'!E118) -> 0 | H23: =G23*(1+'Inc & Exp'!F118) -> 0 | I23: =H23*(1+'Inc & Exp'!G118) -> 0 | J23: =I23*(1+'Inc & Exp'!H118) -> 0
C24: Total Gross Income | F24: =F22+F23 -> 0 | G24: =G22+G23 -> 0 | H24: =H22+H23 -> 0 | I24: =I22+I23 -> 0 | J24: =J22+J23 -> 0
D25: Operating Subsidies | F25: ='Inc & Exp'!C128+'Inc & Exp'!D128 -> 0 | G25: ='Inc & Exp'!C129+'Inc & Exp'!D129 -> 0 | H25: ='Inc & Exp'!C130+'Inc & Exp'!D130 -> 0 | I25: ='Inc & Exp'!C131+'Inc & Exp'!D131 -> 0 | J25: ='Inc & Exp'!C132+'Inc & Exp'!D132 -> 0
D26: Draw on Operating Reserves | F26: ='Inc & Exp'!E128 -> 0 | G26: ='Inc & Exp'!E129 -> 0 | H26: ='Inc & Exp'!E130 -> 0 | I26: ='Inc & Exp'!E131 -> 0 | J26: ='Inc & Exp'!E132 -> 0
C27: Total Effective Income | F27: =F24+F25+F26 -> 0 | G27: =G24+G25+G26 -> 0 | H27: =H24+H25+H26 -> 0 | I27: =I24+I25+I26 -> 0 | J27: =J24+J25+J26 -> 0
C29: EXPENSES:
D30: Administrative | F30: ='Inc & Exp'!G158 -> 0 | G30: =F30*(1+'Inc & Exp'!F$201) -> 0 | H30: =G30*(1+'Inc & Exp'!G200) -> 0 | I30: =H30*(1+'Inc & Exp'!H200) -> 0 | J30: =I30*(1+'Inc & Exp'!I200) -> 0
D31: Maintenance & Repair | F31: ='Inc & Exp'!G172 -> 0 | G31: =F31*(1+'Inc & Exp'!F$201) -> 0 | H31: =G31*(1+'Inc & Exp'!G201) -> 0 | I31: =H31*(1+'Inc & Exp'!H201) -> 0 | J31: =I31*(1+'Inc & Exp'!I201) -> 0
D32: Resident Services | F32: ='Inc & Exp'!G177 -> 0 | G32: =F32*(1+'Inc & Exp'!F$201) -> 0 | H32: =G32*(1+'Inc & Exp'!G$201) -> 0 | I32: =H32*(1+'Inc & Exp'!H$201) -> 0 | J32: =I32*(1+'Inc & Exp'!I$201) -> 0
D33: Security | F33: ='Inc & Exp'!G179 -> 0 | G33: =F33*(1+'Inc & Exp'!F$201) -> 0 | H33: =G33*(1+'Inc & Exp'!G$201) -> 0 | I33: =H33*(1+'Inc & Exp'!H$201) -> 0 | J33: =I33*(1+'Inc & Exp'!I$201) -> 0
D34: Electricity | F34: ='Inc & Exp'!G181 -> 0 | G34: =F34*(1+'Inc & Exp'!F$201) -> 0 | H34: =G34*(1+'Inc & Exp'!G$201) -> 0 | I34: =H34*(1+'Inc & Exp'!H$201) -> 0 | J34: =I34*(1+'Inc & Exp'!I$201) -> 0
D35: Gas | F35: ='Inc & Exp'!G182 -> 0 | G35: =F35*(1+'Inc & Exp'!F$201) -> 0 | H35: =G35*(1+'Inc & Exp'!G$201) -> 0 | I35: =H35*(1+'Inc & Exp'!H$201) -> 0 | J35: =I35*(1+'Inc & Exp'!I$201) -> 0
D36: Oil | F36: ='Inc & Exp'!G183 -> 0 | G36: =F36*(1+'Inc & Exp'!F$201) -> 0 | H36: =G36*(1+'Inc & Exp'!G$201) -> 0 | I36: =H36*(1+'Inc & Exp'!H$201) -> 0 | J36: =I36*(1+'Inc & Exp'!I$201) -> 0
D37: Water & Sewer | F37: ='Inc & Exp'!G184 -> 0 | G37: =F37*(1+'Inc & Exp'!F199) -> 0 | H37: =G37*(1+'Inc & Exp'!G199) -> 0 | I37: =H37*(1+'Inc & Exp'!H199) -> 0 | J37: =I37*(1+'Inc & Exp'!I199) -> 0
D38: Replacement Reserve | F38: ='Inc & Exp'!G187 -> 0 | G38: =F38*(1+'Inc & Exp'!F201) -> 0 | H38: =G38*(1+'Inc & Exp'!G201) -> 0 | I38: =H38*(1+'Inc & Exp'!H201) -> 0 | J38: =I38*(1+'Inc & Exp'!I201) -> 0
D39: Real Estate Taxes | F39: ='Inc & Exp'!G189 -> 0 | G39: =F39*(1+'Inc & Exp'!F200) -> 0 | H39: =G39*(1+'Inc & Exp'!G200) -> 0 | I39: =H39*(1+'Inc & Exp'!H200) -> 0 | J39: =I39*(1+'Inc & Exp'!I200) -> 0
D40: Other Taxes | F40: ='Inc & Exp'!G190 -> 0 | G40: =F40*(1+'Inc & Exp'!F$201) -> 0 | H40: =G40*(1+'Inc & Exp'!G$201) -> 0 | I40: =H40*(1+'Inc & Exp'!H$201) -> 0 | J40: =I40*(1+'Inc & Exp'!I$201) -> 0
D41: Insurance | F41: ='Inc & Exp'!G191 -> 0 | G41: =F41*(1+'Inc & Exp'!F$201) -> 0 | H41: =G41*(1+'Inc & Exp'!G$201) -> 0 | I41: =H41*(1+'Inc & Exp'!H$201) -> 0 | J41: =I41*(1+'Inc & Exp'!I$201) -> 0
D42: Other: | E42: =IF(+'Inc & Exp'!D192=""," ",'Inc & Exp'!D192) ->  | F42: ='Inc & Exp'!G192 -> 0 | G42: =F42*(1+'Inc & Exp'!F$201) -> 0 | H42: =G42*(1+'Inc & Exp'!G$201) -> 0 | I42: =H42*(1+'Inc & Exp'!H$201) -> 0 | J42: =I42*(1+'Inc & Exp'!I$201) -> 0
C43: Total Operating Expenses | F43: =SUM(F30:F42) -> 0 | G43: =SUM(G30:G42) -> 0 | H43: =SUM(H30:H42) -> 0 | I43: =SUM(I30:I42) -> 0 | J43: =SUM(J30:J42) -> 0
C45: NET OPERATING INCOME | F45: =F27-F43 -> 0 | G45: =G27-G43 -> 0 | H45: =H27-H43 -> 0 | I45: =I27-I43 -> 0 | J45: =J27-J43 -> 0
D47: Debt Service | F47: ='Inc & Exp'!$G$217 -> 0 | G47: ='Inc & Exp'!$G$217 -> 0 | H47: ='Inc & Exp'!$G$217 -> 0 | I47: ='Inc & Exp'!$G$217 -> 0 | J47: ='Inc & Exp'!$G$217 -> 0
D48: Debt Service Coverage | F48: =IF(F47>0,F45/F47,"") ->  | G48: =IF(G47>0,G45/G47," ") ->  | H48: =IF(H47>0,H45/H47," ") ->  | I48: =IF(I47>0,I45/I47," ") ->  | J48: =IF(J47>0,J45/J47," ") -> 
D49: Project Cash Flow | F49: =F45-F47 -> 0 | G49: =G45-G47 -> 0 | H49: =H45-H47 -> 0 | I49: =I45-I47 -> 0 | J49: =J45-J47 -> 0
B54: =B2 -> NH Housing Financing Application | J54: Page 2 of 4
B55: 20-Year Operating Proforma (Years 6-10)
F58: Year 6 | G58: Year 7 | H58: Year 8 | I58: Year 9 | J58: Year 10
E59: Calendar Year: | F59: =IF(J8>0,J8+1," N/A") -> N/A | G59: =IF(F59>0,F59+1," N/A") -> N/A | H59: =IF(G59>0,G59+1," N/A") -> N/A | I59: =IF(H59>0,H59+1," N/A") -> N/A | J59: =IF(I59>0,I59+1," N/A") -> N/A
C60: INCOME:
D61: Market Rate Units | F61: =J10*(1+'Inc & Exp'!$I111) -> 0 | G61: =F61*(1+'Inc & Exp'!$I$111) -> 0 | H61: =G61*(1+'Inc & Exp'!$I111) -> 0 | I61: =H61*(1+'Inc & Exp'!$I111) -> 0 | J61: =I61*(1+'Inc & Exp'!$I111) -> 0
D62: Tax Credit Units | F62: =J11*(1+'Inc & Exp'!$I112) -> 0 | G62: =F62*(1+'Inc & Exp'!$I112) -> 0 | H62: =G62*(1+'Inc & Exp'!$I112) -> 0 | I62: =H62*(1+'Inc & Exp'!$I112) -> 0 | J62: =I62*(1+'Inc & Exp'!$I112) -> 0
D63: HOME Units | F63: =J12*(1+'Inc & Exp'!$I113) -> 0 | G63: =F63*(1+'Inc & Exp'!$I113) -> 0 | H63: =G63*(1+'Inc & Exp'!$I113) -> 0 | I63: =H63*(1+'Inc & Exp'!$I113) -> 0 | J63: =I63*(1+'Inc & Exp'!$I113) -> 0
D64: HTF Units | F64: =J13*(1+'Inc & Exp'!$I114) -> 0 | G64: =F64*(1+'Inc & Exp'!$I114) -> 0 | H64: =G64*(1+'Inc & Exp'!$I114) -> 0 | I64: =H64*(1+'Inc & Exp'!$I114) -> 0 | J64: =I64*(1+'Inc & Exp'!$I114) -> 0
D65: 811 Units | F65: =J14*(1+'Inc & Exp'!$I115) -> 0 | G65: =F65*(1+'Inc & Exp'!$I115) -> 0 | H65: =G65*(1+'Inc & Exp'!$I115) -> 0 | I65: =H65*(1+'Inc & Exp'!$I115) -> 0 | J65: =I65*(1+'Inc & Exp'!$I115) -> 0
D66: Rental Assisted Units | F66: =J15*(1+'Inc & Exp'!$I116) -> 0 | G66: =F66*(1+'Inc & Exp'!$I116) -> 0 | H66: =G66*(1+'Inc & Exp'!$I116) -> 0 | I66: =H66*(1+'Inc & Exp'!$I116) -> 0 | J66: =I66*(1+'Inc & Exp'!$I116) -> 0
C67: Gross Potential Income | F67: =SUM(F61:F66) -> 0 | G67: =SUM(G61:G66) -> 0 | H67: =SUM(H61:H66) -> 0 | I67: =SUM(I61:I66) -> 0 | J67: =SUM(J61:J66) -> 0
D68: Less vacancy | F68: =(F61*'Inc & Exp'!$I$98)+(F62*'Inc & Exp'!$I$99)+(F63*'Inc & Exp'!$I$100)+(F64*'Inc & Exp'!$I$101)+(F65*'Inc & Exp'!$I$102)+(F66*'Inc & Exp'!$I$103) -> 0 | G68: =(G61*'Inc & Exp'!$I$98)+(G62*'Inc & Exp'!$I$99)+(G63*'Inc & Exp'!$I$100)+(G64*'Inc & Exp'!$I$101)+(G65*'Inc & Exp'!$I$102)+(G66*'Inc & Exp'!$I$103) -> 0 | H68: =(H61*'Inc & Exp'!$I$98)+(H62*'Inc & Exp'!$I$99)+(H63*'Inc & Exp'!$I$100)+(H64*'Inc & Exp'!$I$101)+(H65*'Inc & Exp'!$I$102)+(H66*'Inc & Exp'!$I$103) -> 0 | I68: =(I61*'Inc & Exp'!$I$98)+(I62*'Inc & Exp'!$I$99)+(I63*'Inc & Exp'!$I$100)+(I64*'Inc & Exp'!$I$101)+(I65*'Inc & Exp'!$I$102)+(I66*'Inc & Exp'!$I$103) -> 0 | J68: =(J61*'Inc & Exp'!$I$98)+(J62*'Inc & Exp'!$I$99)+(J63*'Inc & Exp'!$I$100)+(J64*'Inc & Exp'!$I$101)+(J65*'Inc & Exp'!$I$102)+(J66*'Inc & Exp'!$I$103) -> 0
C69: Effective Gross Residential Income | F69: =F67-F68 -> 0 | G69: =G67-G68 -> 0 | H69: =H67-H68 -> 0 | I69: =I67-I68 -> 0 | J69: =J67-J68 -> 0
D70: Commercial Income | F70: =J19*(1+'Inc & Exp'!H117) -> 0 | G70: =F70*(1+'Inc & Exp'!$H$117) -> 0 | H70: =G70*(1+'Inc & Exp'!$H$117) -> 0 | I70: =H70*(1+'Inc & Exp'!$H$117) -> 0 | J70: =I70*(1+'Inc & Exp'!$H$117) -> 0
D71: Less vacancy | F71: =F70*'Inc & Exp'!$I$104 -> 0 | G71: =G70*'Inc & Exp'!$I$104 -> 0 | H71: =H70*'Inc & Exp'!$I$104 -> 0 | I71: =I70*'Inc & Exp'!$I$104 -> 0 | J71: =J70*'Inc & Exp'!$I$104 -> 0
D72: Net Commercial Income | F72: =F70-F71 -> 0 | G72: =G70-G71 -> 0 | H72: =H70-H71 -> 0 | I72: =I70-I71 -> 0 | J72: =J70-J71 -> 0
C73: Effective Rental Income | F73: =F69+F72 -> 0 | G73: =G69+G72 -> 0 | H73: =H69+H72 -> 0 | I73: =I69+I72 -> 0 | J73: =J69+J72 -> 0
D74: Other Income | F74: =J23*(1+'Inc & Exp'!H118) -> 0 | G74: =F74*(1+'Inc & Exp'!$H$118) -> 0 | H74: =G74*(1+'Inc & Exp'!$H$118) -> 0 | I74: =H74*(1+'Inc & Exp'!$H$118) -> 0 | J74: =I74*(1+'Inc & Exp'!$H$118) -> 0
C75: Total Gross Income | F75: =F73+F74 -> 0 | G75: =G73+G74 -> 0 | H75: =H73+H74 -> 0 | I75: =I73+I74 -> 0 | J75: =J73+J74 -> 0
D76: Operating Subsidies | F76: ='Inc & Exp'!C133+'Inc & Exp'!D133 -> 0 | G76: ='Inc & Exp'!C134+'Inc & Exp'!D134 -> 0 | H76: ='Inc & Exp'!C135+'Inc & Exp'!D135 -> 0 | I76: ='Inc & Exp'!C136+'Inc & Exp'!D136 -> 0 | J76: ='Inc & Exp'!C137+'Inc & Exp'!D137 -> 0
D77: Draw on Operating Reserves | F77: ='Inc & Exp'!E133 -> 0 | G77: ='Inc & Exp'!E134 -> 0 | H77: ='Inc & Exp'!E135 -> 0 | I77: ='Inc & Exp'!E136 -> 0 | J77: ='Inc & Exp'!E137 -> 0
C78: Total Effective Income | F78: =F75+F76+F77 -> 0 | G78: =G75+G76+G77 -> 0 | H78: =H75+H76+H77 -> 0 | I78: =I75+I76+I77 -> 0 | J78: =J75+J76+J77 -> 0
C80: EXPENSES:
D81: Administrative | F81: =J30*(1+'Inc & Exp'!$I$201) -> 0 | G81: =F81*(1+'Inc & Exp'!$I$201) -> 0 | H81: =G81*(1+'Inc & Exp'!$I$201) -> 0 | I81: =H81*(1+'Inc & Exp'!$I$201) -> 0 | J81: =I81*(1+'Inc & Exp'!$I$201) -> 0
D82: Maintenance & Repair | F82: =J31*(1+'Inc & Exp'!$I$201) -> 0 | G82: =F82*(1+'Inc & Exp'!$I$201) -> 0 | H82: =G82*(1+'Inc & Exp'!$I$201) -> 0 | I82: =H82*(1+'Inc & Exp'!$I$201) -> 0 | J82: =I82*(1+'Inc & Exp'!$I$201) -> 0
D83: Resident Services | F83: =J32*(1+'Inc & Exp'!$I$201) -> 0 | G83: =F83*(1+'Inc & Exp'!$I$201) -> 0 | H83: =G83*(1+'Inc & Exp'!$I$201) -> 0 | I83: =H83*(1+'Inc & Exp'!$I$201) -> 0 | J83: =I83*(1+'Inc & Exp'!$I$201) -> 0
D84: Security | F84: =J33*(1+'Inc & Exp'!$I$201) -> 0 | G84: =F84*(1+'Inc & Exp'!$I$201) -> 0 | H84: =G84*(1+'Inc & Exp'!$I$201) -> 0 | I84: =H84*(1+'Inc & Exp'!$I$201) -> 0 | J84: =I84*(1+'Inc & Exp'!$I$201) -> 0
D85: Electricity | F85: =J34*(1+'Inc & Exp'!$I$201) -> 0 | G85: =F85*(1+'Inc & Exp'!$I$201) -> 0 | H85: =G85*(1+'Inc & Exp'!$I$201) -> 0 | I85: =H85*(1+'Inc & Exp'!$I$201) -> 0 | J85: =I85*(1+'Inc & Exp'!$I$201) -> 0
D86: Gas | F86: =J35*(1+'Inc & Exp'!$I$201) -> 0 | G86: =F86*(1+'Inc & Exp'!$I$201) -> 0 | H86: =G86*(1+'Inc & Exp'!$I$201) -> 0 | I86: =H86*(1+'Inc & Exp'!$I$201) -> 0 | J86: =I86*(1+'Inc & Exp'!$I$201) -> 0
D87: Oil | F87: =J36*(1+'Inc & Exp'!$I$201) -> 0 | G87: =F87*(1+'Inc & Exp'!$I$201) -> 0 | H87: =G87*(1+'Inc & Exp'!$I$201) -> 0 | I87: =H87*(1+'Inc & Exp'!$I$201) -> 0 | J87: =I87*(1+'Inc & Exp'!$I$201) -> 0
D88: Water & Sewer | F88: =J37*(1+'Inc & Exp'!$I$199) -> 0 | G88: =F88*(1+'Inc & Exp'!$I$199) -> 0 | H88: =G88*(1+'Inc & Exp'!$I$199) -> 0 | I88: =H88*(1+'Inc & Exp'!$I$199) -> 0 | J88: =I88*(1+'Inc & Exp'!$I$199) -> 0
D89: Replacement Reserve | F89: =J38*(1+'Inc & Exp'!$I$201) -> 0 | G89: =F89*(1+'Inc & Exp'!$I$201) -> 0 | H89: =G89*(1+'Inc & Exp'!$I$201) -> 0 | I89: =H89*(1+'Inc & Exp'!$I$201) -> 0 | J89: =I89*(1+'Inc & Exp'!$I$201) -> 0
D90: Real Estate Taxes | F90: =J39*(1+'Inc & Exp'!$I$200) -> 0 | G90: =F90*(1+'Inc & Exp'!$I$200) -> 0 | H90: =G90*(1+'Inc & Exp'!$I$200) -> 0 | I90: =H90*(1+'Inc & Exp'!$I$200) -> 0 | J90: =I90*(1+'Inc & Exp'!$I$200) -> 0
D91: Other Taxes | F91: =J40*(1+'Inc & Exp'!$I$200) -> 0 | G91: =F91*(1+'Inc & Exp'!$I$200) -> 0 | H91: =G91*(1+'Inc & Exp'!$I$200) -> 0 | I91: =H91*(1+'Inc & Exp'!$I$200) -> 0 | J91: =I91*(1+'Inc & Exp'!$I$200) -> 0
D92: Insurance | F92: =J41*(1+'Inc & Exp'!$I$201) -> 0 | G92: =F92*(1+'Inc & Exp'!$I$201) -> 0 | H92: =G92*(1+'Inc & Exp'!$I$201) -> 0 | I92: =H92*(1+'Inc & Exp'!$I$201) -> 0 | J92: =I92*(1+'Inc & Exp'!$I$201) -> 0
D93: Other: | F93: =J42*(1+'Inc & Exp'!$I$201) -> 0 | G93: =F93*(1+'Inc & Exp'!$I$201) -> 0 | H93: =G93*(1+'Inc & Exp'!$I$201) -> 0 | I93: =H93*(1+'Inc & Exp'!$I$201) -> 0 | J93: =I93*(1+'Inc & Exp'!$I$201) -> 0
C94: Total Operating Expenses | F94: =SUM(F81:F93) -> 0 | G94: =SUM(G81:G93) -> 0 | H94: =SUM(H81:H93) -> 0 | I94: =SUM(I81:I93) -> 0 | J94: =SUM(J81:J93) -> 0
C96: NET OPERATING INCOME | F96: =F78-F94 -> 0 | G96: =G78-G94 -> 0 | H96: =H78-H94 -> 0 | I96: =I78-I94 -> 0 | J96: =J78-J94 -> 0
D98: Debt Service | F98: ='Inc & Exp'!$G$217 -> 0 | G98: ='Inc & Exp'!$G$217 -> 0 | H98: ='Inc & Exp'!$G$217 -> 0 | I98: ='Inc & Exp'!$G$217 -> 0 | J98: ='Inc & Exp'!$G$217 -> 0
D99: Debt Service Coverage | F99: =IF(F98>0,F96/F98," ") ->  | G99: =IF(G98>0,G96/G98," ") ->  | H99: =IF(H98>0,H96/H98," ") ->  | I99: =IF(I98>0,I96/I98," ") ->  | J99: =IF(J98>0,J96/J98," ") -> 
D100: Project Cash Flow | F100: =F96-F98 -> 0 | G100: =G96-G98 -> 0 | H100: =H96-H98 -> 0 | I100: =I96-I98 -> 0 | J100: =J96-J98 -> 0
I103: Ten-year projected cash flow | J103: =SUM(F100:J100,F49:J49) -> 0
B107: =B54 -> NH Housing Financing Application | J107: Page 3 of 4
B108: 20-Year Operating Proforma (Years 11-15)
F111: Year 11 | G111: Year 12 | H111: Year 13 | I111: Year 14 | J111: Year 15
E112: Calendar Year: | F112: =IF(J59>0,J59+1," N/A") -> N/A | G112: =IF(F112>0,F112+1," N/A") -> N/A | H112: =IF(G112>0,G112+1," N/A") -> N/A | I112: =IF(H112>0,H112+1," N/A") -> N/A | J112: =IF(I112>0,I112+1," N/A") -> N/A
C113: INCOME:
D114: Market Rate Units | F114: =J61*(1+'Inc & Exp'!$I111) -> 0 | G114: =F114*(1+'Inc & Exp'!$I111) -> 0 | H114: =G114*(1+'Inc & Exp'!$I111) -> 0 | I114: =H114*(1+'Inc & Exp'!$I111) -> 0 | J114: =I114*(1+'Inc & Exp'!$I111) -> 0
D115: Tax Credit Units | F115: =J62*(1+'Inc & Exp'!$I112) -> 0 | G115: =F115*(1+'Inc & Exp'!$I112) -> 0 | H115: =G115*(1+'Inc & Exp'!$I112) -> 0 | I115: =H115*(1+'Inc & Exp'!$I112) -> 0 | J115: =I115*(1+'Inc & Exp'!$I112) -> 0
D116: HOME Units | F116: =J63*(1+'Inc & Exp'!$I113) -> 0 | G116: =F116*(1+'Inc & Exp'!$I113) -> 0 | H116: =G116*(1+'Inc & Exp'!$I113) -> 0 | I116: =H116*(1+'Inc & Exp'!$I113) -> 0 | J116: =I116*(1+'Inc & Exp'!$I113) -> 0
D117: HTF Units | F117: =J64*(1+'Inc & Exp'!$I114) -> 0 | G117: =F117*(1+'Inc & Exp'!$I114) -> 0 | H117: =G117*(1+'Inc & Exp'!$I114) -> 0 | I117: =H117*(1+'Inc & Exp'!$I114) -> 0 | J117: =I117*(1+'Inc & Exp'!$I114) -> 0
D118: 811 Units | F118: =J65*(1+'Inc & Exp'!$I115) -> 0 | G118: =F118*(1+'Inc & Exp'!$I115) -> 0 | H118: =G118*(1+'Inc & Exp'!$I115) -> 0 | I118: =H118*(1+'Inc & Exp'!$I115) -> 0 | J118: =I118*(1+'Inc & Exp'!$I115) -> 0
D119: Rental Assisted Units | F119: =J66*(1+'Inc & Exp'!$I116) -> 0 | G119: =F119*(1+'Inc & Exp'!$I116) -> 0 | H119: =G119*(1+'Inc & Exp'!$I116) -> 0 | I119: =H119*(1+'Inc & Exp'!$I116) -> 0 | J119: =I119*(1+'Inc & Exp'!$I116) -> 0
C120: Gross Potential Income | F120: =SUM(F114:F119) -> 0 | G120: =SUM(G114:G119) -> 0 | H120: =SUM(H114:H119) -> 0 | I120: =SUM(I114:I119) -> 0 | J120: =SUM(J114:J119) -> 0
D121: Less vacancy | F121: =(F114*'Inc & Exp'!$I$98)+(F115*'Inc & Exp'!$I$99)+(F116*'Inc & Exp'!$I$100)+(F117*'Inc & Exp'!$I$101)+(F118*'Inc & Exp'!$I$102)+(F119*'Inc & Exp'!$I$103) -> 0 | G121: =(G114*'Inc & Exp'!$I$98)+(G115*'Inc & Exp'!$I$99)+(G116*'Inc & Exp'!$I$100)+(G117*'Inc & Exp'!$I$101)+(G118*'Inc & Exp'!$I$102)+(G119*'Inc & Exp'!$I$103) -> 0 | H121: =(H114*'Inc & Exp'!$I$98)+(H115*'Inc & Exp'!$I$99)+(H116*'Inc & Exp'!$I$100)+(H117*'Inc & Exp'!$I$101)+(H118*'Inc & Exp'!$I$102)+(H119*'Inc & Exp'!$I$103) -> 0 | I121: =(I114*'Inc & Exp'!$I$98)+(I115*'Inc & Exp'!$I$99)+(I116*'Inc & Exp'!$I$100)+(I117*'Inc & Exp'!$I$101)+(I118*'Inc & Exp'!$I$102)+(I119*'Inc & Exp'!$I$103) -> 0 | J121: =(J114*'Inc & Exp'!$I$98)+(J115*'Inc & Exp'!$I$99)+(J116*'Inc & Exp'!$I$100)+(J117*'Inc & Exp'!$I$101)+(J118*'Inc & Exp'!$I$102)+(J119*'Inc & Exp'!$I$103) -> 0
C122: Effective Gross Residential Income | F122: =F120-F121 -> 0 | G122: =G120-G121 -> 0 | H122: =H120-H121 -> 0 | I122: =I120-I121 -> 0 | J122: =J120-J121 -> 0
D123: Commercial Income | F123: =J70*(1+'Inc & Exp'!$H$117) -> 0 | G123: =F123*(1+'Inc & Exp'!$H$117) -> 0 | H123: =G123*(1+'Inc & Exp'!$H$117) -> 0 | I123: =H123*(1+'Inc & Exp'!$H$117) -> 0 | J123: =I123*(1+'Inc & Exp'!$H$117) -> 0
D124: Less vacancy | F124: =F123*'Inc & Exp'!$I$104 -> 0 | G124: =G123*'Inc & Exp'!$I$104 -> 0 | H124: =H123*'Inc & Exp'!$I$104 -> 0 | I124: =I123*'Inc & Exp'!$I$104 -> 0 | J124: =J123*'Inc & Exp'!$I$104 -> 0
D125: Net Commercial Income | F125: =F123-F124 -> 0 | G125: =G123-G124 -> 0 | H125: =H123-H124 -> 0 | I125: =I123-I124 -> 0 | J125: =J123-J124 -> 0
C126: Effective Rental Income | F126: =F122+F125 -> 0 | G126: =G122+G125 -> 0 | H126: =H122+H125 -> 0 | I126: =I122+I125 -> 0 | J126: =J122+J125 -> 0
D127: Other Income | F127: =J74*(1+'Inc & Exp'!$H$118) -> 0 | G127: =F127*(1+'Inc & Exp'!$H$118) -> 0 | H127: =G127*(1+'Inc & Exp'!$H$118) -> 0 | I127: =H127*(1+'Inc & Exp'!$H$118) -> 0 | J127: =I127*(1+'Inc & Exp'!$H$118) -> 0
C128: Total Gross Income | F128: =F126+F127 -> 0 | G128: =G126+G127 -> 0 | H128: =H126+H127 -> 0 | I128: =I126+I127 -> 0 | J128: =J126+J127 -> 0
D129: Operating Subsidies | F129: ='Inc & Exp'!G128+'Inc & Exp'!H128 -> 0 | G129: ='Inc & Exp'!G129+'Inc & Exp'!H129 -> 0 | H129: ='Inc & Exp'!G130+'Inc & Exp'!H130 -> 0 | I129: ='Inc & Exp'!G131+'Inc & Exp'!H131 -> 0 | J129: ='Inc & Exp'!G132+'Inc & Exp'!H132 -> 0
D130: Draw on Operating Reserves | F130: ='Inc & Exp'!I128 -> 0 | G130: ='Inc & Exp'!I129 -> 0 | H130: ='Inc & Exp'!I130 -> 0 | I130: ='Inc & Exp'!I131 -> 0 | J130: ='Inc & Exp'!I132 -> 0
C131: Total Effective Income | F131: =F128+F129+F130 -> 0 | G131: =G128+G129+G130 -> 0 | H131: =H128+H129+H130 -> 0 | I131: =I128+I129+I130 -> 0 | J131: =J128+J129+J130 -> 0
C133: EXPENSES:
D134: Administrative | F134: =J81*(1+'Inc & Exp'!$I$201) -> 0 | G134: =F134*(1+'Inc & Exp'!$I$201) -> 0 | H134: =G134*(1+'Inc & Exp'!$I$201) -> 0 | I134: =H134*(1+'Inc & Exp'!$I$201) -> 0 | J134: =I134*(1+'Inc & Exp'!$I$201) -> 0
D135: Maintenance & Repair | F135: =J82*(1+'Inc & Exp'!$I$201) -> 0 | G135: =F135*(1+'Inc & Exp'!$I$201) -> 0 | H135: =G135*(1+'Inc & Exp'!$I$201) -> 0 | I135: =H135*(1+'Inc & Exp'!$I$201) -> 0 | J135: =I135*(1+'Inc & Exp'!$I$201) -> 0
D136: Resident Services | F136: =J83*(1+'Inc & Exp'!$I$201) -> 0 | G136: =F136*(1+'Inc & Exp'!$I$201) -> 0 | H136: =G136*(1+'Inc & Exp'!$I$201) -> 0 | I136: =H136*(1+'Inc & Exp'!$I$201) -> 0 | J136: =I136*(1+'Inc & Exp'!$I$201) -> 0
D137: Security | F137: =J84*(1+'Inc & Exp'!$I$201) -> 0 | G137: =F137*(1+'Inc & Exp'!$I$201) -> 0 | H137: =G137*(1+'Inc & Exp'!$I$201) -> 0 | I137: =H137*(1+'Inc & Exp'!$I$201) -> 0 | J137: =I137*(1+'Inc & Exp'!$I$201) -> 0
D138: Electricity | F138: =J85*(1+'Inc & Exp'!$I$201) -> 0 | G138: =F138*(1+'Inc & Exp'!$I$201) -> 0 | H138: =G138*(1+'Inc & Exp'!$I$201) -> 0 | I138: =H138*(1+'Inc & Exp'!$I$201) -> 0 | J138: =I138*(1+'Inc & Exp'!$I$201) -> 0
D139: Gas | F139: =J86*(1+'Inc & Exp'!$I$201) -> 0 | G139: =F139*(1+'Inc & Exp'!$I$201) -> 0 | H139: =G139*(1+'Inc & Exp'!$I$201) -> 0 | I139: =H139*(1+'Inc & Exp'!$I$201) -> 0 | J139: =I139*(1+'Inc & Exp'!$I$201) -> 0
D140: Oil | F140: =J87*(1+'Inc & Exp'!$I$201) -> 0 | G140: =F140*(1+'Inc & Exp'!$I$201) -> 0 | H140: =G140*(1+'Inc & Exp'!$I$201) -> 0 | I140: =H140*(1+'Inc & Exp'!$I$201) -> 0 | J140: =I140*(1+'Inc & Exp'!$I$201) -> 0
D141: Water & Sewer | F141: =J88*(1+'Inc & Exp'!$I$199) -> 0 | G141: =F141*(1+'Inc & Exp'!$I$199) -> 0 | H141: =G141*(1+'Inc & Exp'!$I$199) -> 0 | I141: =H141*(1+'Inc & Exp'!$I$199) -> 0 | J141: =I141*(1+'Inc & Exp'!$I$199) -> 0
D142: Replacement Reserve | F142: =J89*(1+'Inc & Exp'!$I$201) -> 0 | G142: =F142*(1+'Inc & Exp'!$I$201) -> 0 | H142: =G142*(1+'Inc & Exp'!$I$201) -> 0 | I142: =H142*(1+'Inc & Exp'!$I$201) -> 0 | J142: =I142*(1+'Inc & Exp'!$I$201) -> 0
D143: Real Estate Taxes | F143: =J90*(1+'Inc & Exp'!$I$200) -> 0 | G143: =F143*(1+'Inc & Exp'!$I$200) -> 0 | H143: =G143*(1+'Inc & Exp'!$I$200) -> 0 | I143: =H143*(1+'Inc & Exp'!$I$200) -> 0 | J143: =I143*(1+'Inc & Exp'!$I$200) -> 0
D144: Other Taxes | F144: =J91*(1+'Inc & Exp'!$I$200) -> 0 | G144: =F144*(1+'Inc & Exp'!$I$200) -> 0 | H144: =G144*(1+'Inc & Exp'!$I$200) -> 0 | I144: =H144*(1+'Inc & Exp'!$I$200) -> 0 | J144: =I144*(1+'Inc & Exp'!$I$200) -> 0
D145: Insurance | F145: =J92*(1+'Inc & Exp'!$I$201) -> 0 | G145: =F145*(1+'Inc & Exp'!$I$201) -> 0 | H145: =G145*(1+'Inc & Exp'!$I$201) -> 0 | I145: =H145*(1+'Inc & Exp'!$I$201) -> 0 | J145: =I145*(1+'Inc & Exp'!$I$201) -> 0
D146: Other: | E146: =IF(+'LIHTC Info'!D48=""," ",'LIHTC Info'!D48) ->  | F146: =J93*(1+'Inc & Exp'!$I$201) -> 0 | G146: =F146*(1+'Inc & Exp'!$I$201) -> 0 | H146: =G146*(1+'Inc & Exp'!$I$201) -> 0 | I146: =H146*(1+'Inc & Exp'!$I$201) -> 0 | J146: =I146*(1+'Inc & Exp'!$I$201) -> 0
C147: Total Operating Expenses | F147: =SUM(F134:F146) -> 0 | G147: =SUM(G134:G146) -> 0 | H147: =SUM(H134:H146) -> 0 | I147: =SUM(I134:I146) -> 0 | J147: =SUM(J134:J146) -> 0
C149: NET OPERATING INCOME | F149: =F131-F147 -> 0 | G149: =G131-G147 -> 0 | H149: =H131-H147 -> 0 | I149: =I131-I147 -> 0 | J149: =J131-J147 -> 0
D151: Debt Service | F151: ='Inc & Exp'!$G$217 -> 0 | G151: ='Inc & Exp'!$G$217 -> 0 | H151: ='Inc & Exp'!$G$217 -> 0 | I151: ='Inc & Exp'!$G$217 -> 0 | J151: ='Inc & Exp'!$G$217 -> 0
D152: Debt Service Coverage | F152: =IF(F151>0,F149/F151," ") ->  | G152: =IF(G151>0,G149/G151," ") ->  | H152: =IF(H151>0,H149/H151," ") ->  | I152: =IF(I151>0,I149/I151," ") ->  | J152: =IF(J151>0,J149/J151," ") -> 
D153: Project Cash Flow | F153: =F149-F151 -> 0 | G153: =G149-G151 -> 0 | H153: =H149-H151 -> 0 | I153: =I149-I151 -> 0 | J153: =J149-J151 -> 0
D154: Operating Deficit | F154: =IF(F153>0,0,F153) -> 0 | G154: =IF(G153>0,0,G153) -> 0 | H154: =IF(H153>0,0,H153) -> 0 | I154: 0 | J154: 0
B160: =B107 -> NH Housing Financing Application | J160: Page 4 of 4
B161: 20-Year Operating Proforma (Years 16-20)
F164: Year 16 | G164: Year 17 | H164: Year 18 | I164: Year 19 | J164: Year 20
E165: Calendar Year: | F165: =IF(J112>0,J112+1," N/A") -> N/A | G165: =IF(F165>0,F165+1," N/A") -> N/A | H165: =IF(G165>0,G165+1," N/A") -> N/A | I165: =IF(H165>0,H165+1," N/A") -> N/A | J165: =IF(I165>0,I165+1," N/A") -> N/A
C166: INCOME:
D167: Market Rate Units | F167: =J114*(1+'Inc & Exp'!$I111) -> 0 | G167: =F167*(1+'Inc & Exp'!$I111) -> 0 | H167: =G167*(1+'Inc & Exp'!$I111) -> 0 | I167: =H167*(1+'Inc & Exp'!$I111) -> 0 | J167: =I167*(1+'Inc & Exp'!$I111) -> 0
D168: Tax Credit Units | F168: =J115*(1+'Inc & Exp'!$I112) -> 0 | G168: =F168*(1+'Inc & Exp'!$I112) -> 0 | H168: =G168*(1+'Inc & Exp'!$I112) -> 0 | I168: =H168*(1+'Inc & Exp'!$I112) -> 0 | J168: =I168*(1+'Inc & Exp'!$I112) -> 0
D169: HOME Units | F169: =J116*(1+'Inc & Exp'!$I113) -> 0 | G169: =F169*(1+'Inc & Exp'!$I113) -> 0 | H169: =G169*(1+'Inc & Exp'!$I113) -> 0 | I169: =H169*(1+'Inc & Exp'!$I113) -> 0 | J169: =I169*(1+'Inc & Exp'!$I113) -> 0
D170: HTF Units | F170: =J117*(1+'Inc & Exp'!$I114) -> 0 | G170: =F170*(1+'Inc & Exp'!$I114) -> 0 | H170: =G170*(1+'Inc & Exp'!$I114) -> 0 | I170: =H170*(1+'Inc & Exp'!$I114) -> 0 | J170: =I170*(1+'Inc & Exp'!$I114) -> 0
D171: 811 Units | F171: =J118*(1+'Inc & Exp'!$I115) -> 0 | G171: =F171*(1+'Inc & Exp'!$I115) -> 0 | H171: =G171*(1+'Inc & Exp'!$I115) -> 0 | I171: =H171*(1+'Inc & Exp'!$I115) -> 0 | J171: =I171*(1+'Inc & Exp'!$I115) -> 0
D172: Rental Assisted Units | F172: =J119*(1+'Inc & Exp'!$I116) -> 0 | G172: =F172*(1+'Inc & Exp'!$I116) -> 0 | H172: =G172*(1+'Inc & Exp'!$I116) -> 0 | I172: =H172*(1+'Inc & Exp'!$I116) -> 0 | J172: =I172*(1+'Inc & Exp'!$I116) -> 0
C173: Gross Potential Income | F173: =SUM(F167:F172) -> 0 | G173: =SUM(G167:G172) -> 0 | H173: =SUM(H167:H172) -> 0 | I173: =SUM(I167:I172) -> 0 | J173: =SUM(J167:J172) -> 0
D174: Less vacancy | F174: =(F167*'Inc & Exp'!$I$98)+(F168*'Inc & Exp'!$I$99)+(F169*'Inc & Exp'!$I$100)+(F170*'Inc & Exp'!$I$101)+(F171*'Inc & Exp'!$I$102)+(F172*'Inc & Exp'!$I$103) -> 0 | G174: =(G167*'Inc & Exp'!$I$98)+(G168*'Inc & Exp'!$I$99)+(G169*'Inc & Exp'!$I$100)+(G170*'Inc & Exp'!$I$101)+(G171*'Inc & Exp'!$I$102)+(G172*'Inc & Exp'!$I$103) -> 0 | H174: =(H167*'Inc & Exp'!$I$98)+(H168*'Inc & Exp'!$I$99)+(H169*'Inc & Exp'!$I$100)+(H170*'Inc & Exp'!$I$101)+(H171*'Inc & Exp'!$I$102)+(H172*'Inc & Exp'!$I$103) -> 0 | I174: =(I167*'Inc & Exp'!$I$98)+(I168*'Inc & Exp'!$I$99)+(I169*'Inc & Exp'!$I$100)+(I170*'Inc & Exp'!$I$101)+(I171*'Inc & Exp'!$I$102)+(I172*'Inc & Exp'!$I$103) -> 0 | J174: =(J167*'Inc & Exp'!$I$98)+(J168*'Inc & Exp'!$I$99)+(J169*'Inc & Exp'!$I$100)+(J170*'Inc & Exp'!$I$101)+(J171*'Inc & Exp'!$I$102)+(J172*'Inc & Exp'!$I$103) -> 0
C175: Effective Gross Residential Income | F175: =F173-F174 -> 0 | G175: =G173-G174 -> 0 | H175: =H173-H174 -> 0 | I175: =I173-I174 -> 0 | J175: =J173-J174 -> 0
D176: Commercial Income | F176: =J123*(1+'Inc & Exp'!$H$117) -> 0 | G176: =F176*(1+'Inc & Exp'!$H$117) -> 0 | H176: =G176*(1+'Inc & Exp'!$H$117) -> 0 | I176: =H176*(1+'Inc & Exp'!$H$117) -> 0 | J176: =I176*(1+'Inc & Exp'!$H$117) -> 0
D177: Less vacancy | F177: =F176*'Inc & Exp'!$I$104 -> 0 | G177: =G176*'Inc & Exp'!$I$104 -> 0 | H177: =H176*'Inc & Exp'!$I$104 -> 0 | I177: =I176*'Inc & Exp'!$I$104 -> 0 | J177: =J176*'Inc & Exp'!$I$104 -> 0
D178: Net Commercial Income | F178: =F176-F177 -> 0 | G178: =G176-G177 -> 0 | H178: =H176-H177 -> 0 | I178: =I176-I177 -> 0 | J178: =J176-J177 -> 0
C179: Effective Rental Income | F179: =F175+F178 -> 0 | G179: =G175+G178 -> 0 | H179: =H175+H178 -> 0 | I179: =I175+I178 -> 0 | J179: =J175+J178 -> 0
D180: Other Income | F180: =J127*(1+'Inc & Exp'!$H$118) -> 0 | G180: =F180*(1+'Inc & Exp'!$H$118) -> 0 | H180: =G180*(1+'Inc & Exp'!$H$118) -> 0 | I180: =H180*(1+'Inc & Exp'!$H$118) -> 0 | J180: =I180*(1+'Inc & Exp'!$H$118) -> 0
C181: Total Gross Income | F181: =F179+F180 -> 0 | G181: =G179+G180 -> 0 | H181: =H179+H180 -> 0 | I181: =I179+I180 -> 0 | J181: =J179+J180 -> 0
D182: Operating Subsidies | F182: ='Inc & Exp'!G133+'Inc & Exp'!H133 -> 0 | G182: ='Inc & Exp'!G134+'Inc & Exp'!H134 -> 0 | H182: ='Inc & Exp'!G135+'Inc & Exp'!H135 -> 0 | I182: ='Inc & Exp'!G136+'Inc & Exp'!H136 -> 0 | J182: ='Inc & Exp'!G137+'Inc & Exp'!H137 -> 0
D183: Draw on Operating Reserves | F183: ='Inc & Exp'!I133 -> 0 | G183: ='Inc & Exp'!I134 -> 0 | H183: ='Inc & Exp'!I135 -> 0 | I183: ='Inc & Exp'!I136 -> 0 | J183: ='Inc & Exp'!I137 -> 0
C184: Total Effective Income | F184: =F181+F182+F183 -> 0 | G184: =G181+G182+G183 -> 0 | H184: =H181+H182+H183 -> 0 | I184: =I181+I182+I183 -> 0 | J184: =J181+J182+J183 -> 0
C186: EXPENSES:
D187: Administrative | F187: =J134*(1+'Inc & Exp'!$I$201) -> 0 | G187: =F187*(1+'Inc & Exp'!$I$201) -> 0 | H187: =G187*(1+'Inc & Exp'!$I$201) -> 0 | I187: =H187*(1+'Inc & Exp'!$I$201) -> 0 | J187: =I187*(1+'Inc & Exp'!$I$201) -> 0
D188: Maintenance & Repair | F188: =J135*(1+'Inc & Exp'!$I$201) -> 0 | G188: =F188*(1+'Inc & Exp'!$I$201) -> 0 | H188: =G188*(1+'Inc & Exp'!$I$201) -> 0 | I188: =H188*(1+'Inc & Exp'!$I$201) -> 0 | J188: =I188*(1+'Inc & Exp'!$I$201) -> 0
D189: Resident Services | F189: =J136*(1+'Inc & Exp'!$I$201) -> 0 | G189: =F189*(1+'Inc & Exp'!$I$201) -> 0 | H189: =G189*(1+'Inc & Exp'!$I$201) -> 0 | I189: =H189*(1+'Inc & Exp'!$I$201) -> 0 | J189: =I189*(1+'Inc & Exp'!$I$201) -> 0
D190: Security | F190: =J137*(1+'Inc & Exp'!$I$201) -> 0 | G190: =F190*(1+'Inc & Exp'!$I$201) -> 0 | H190: =G190*(1+'Inc & Exp'!$I$201) -> 0 | I190: =H190*(1+'Inc & Exp'!$I$201) -> 0 | J190: =I190*(1+'Inc & Exp'!$I$201) -> 0
D191: Electricity | F191: =J138*(1+'Inc & Exp'!$I$201) -> 0 | G191: =F191*(1+'Inc & Exp'!$I$201) -> 0 | H191: =G191*(1+'Inc & Exp'!$I$201) -> 0 | I191: =H191*(1+'Inc & Exp'!$I$201) -> 0 | J191: =I191*(1+'Inc & Exp'!$I$201) -> 0
D192: Gas | F192: =J139*(1+'Inc & Exp'!$I$201) -> 0 | G192: =F192*(1+'Inc & Exp'!$I$201) -> 0 | H192: =G192*(1+'Inc & Exp'!$I$201) -> 0 | I192: =H192*(1+'Inc & Exp'!$I$201) -> 0 | J192: =I192*(1+'Inc & Exp'!$I$201) -> 0
D193: Oil | F193: =J140*(1+'Inc & Exp'!$I$201) -> 0 | G193: =F193*(1+'Inc & Exp'!$I$201) -> 0 | H193: =G193*(1+'Inc & Exp'!$I$201) -> 0 | I193: =H193*(1+'Inc & Exp'!$I$201) -> 0 | J193: =I193*(1+'Inc & Exp'!$I$201) -> 0
D194: Water & Sewer | F194: =J141*(1+'Inc & Exp'!$I$199) -> 0 | G194: =F194*(1+'Inc & Exp'!$I$199) -> 0 | H194: =G194*(1+'Inc & Exp'!$I$199) -> 0 | I194: =H194*(1+'Inc & Exp'!$I$199) -> 0 | J194: =I194*(1+'Inc & Exp'!$I$199) -> 0
D195: Replacement Reserve | F195: =J142*(1+'Inc & Exp'!$I$201) -> 0 | G195: =F195*(1+'Inc & Exp'!$I$201) -> 0 | H195: =G195*(1+'Inc & Exp'!$I$201) -> 0 | I195: =H195*(1+'Inc & Exp'!$I$201) -> 0 | J195: =I195*(1+'Inc & Exp'!$I$201) -> 0
D196: Real Estate Taxes | F196: =J143*(1+'Inc & Exp'!$I$200) -> 0 | G196: =F196*(1+'Inc & Exp'!$I$200) -> 0 | H196: =G196*(1+'Inc & Exp'!$I$200) -> 0 | I196: =H196*(1+'Inc & Exp'!$I$200) -> 0 | J196: =I196*(1+'Inc & Exp'!$I$200) -> 0
D197: Other Taxes | F197: =J144*(1+'Inc & Exp'!$I$200) -> 0 | G197: =F197*(1+'Inc & Exp'!$I$200) -> 0 | H197: =G197*(1+'Inc & Exp'!$I$200) -> 0 | I197: =H197*(1+'Inc & Exp'!$I$200) -> 0 | J197: =I197*(1+'Inc & Exp'!$I$200) -> 0
D198: Insurance | F198: =J145*(1+'Inc & Exp'!$I$201) -> 0 | G198: =F198*(1+'Inc & Exp'!$I$201) -> 0 | H198: =G198*(1+'Inc & Exp'!$I$201) -> 0 | I198: =H198*(1+'Inc & Exp'!$I$201) -> 0 | J198: =I198*(1+'Inc & Exp'!$I$201) -> 0
D199: Other: | E199: =IF(+'LIHTC Info'!D115=""," ",'LIHTC Info'!D115) ->  | F199: =J146*(1+'Inc & Exp'!$I$201) -> 0 | G199: =F199*(1+'Inc & Exp'!$I$201) -> 0 | H199: =G199*(1+'Inc & Exp'!$I$201) -> 0 | I199: =H199*(1+'Inc & Exp'!$I$201) -> 0 | J199: =I199*(1+'Inc & Exp'!$I$201) -> 0
C200: Total Operating Expenses | F200: =SUM(F187:F199) -> 0 | G200: =SUM(G187:G199) -> 0 | H200: =SUM(H187:H199) -> 0 | I200: =SUM(I187:I199) -> 0 | J200: =SUM(J187:J199) -> 0
C202: NET OPERATING INCOME | F202: =F184-F200 -> 0 | G202: =G184-G200 -> 0 | H202: =H184-H200 -> 0 | I202: =I184-I200 -> 0 | J202: =J184-J200 -> 0
D204: Debt Service | F204: ='Inc & Exp'!$G$217 -> 0 | G204: ='Inc & Exp'!$G$217 -> 0 | H204: ='Inc & Exp'!$G$217 -> 0 | I204: ='Inc & Exp'!$G$217 -> 0 | J204: ='Inc & Exp'!$G$217 -> 0
D205: Debt Service Coverage | F205: =IF(F204>0,F202/F204," ") ->  | G205: =IF(G204>0,G202/G204," ") ->  | H205: =IF(H204>0,H202/H204," ") ->  | I205: =IF(I204>0,I202/I204," ") ->  | J205: =IF(J204>0,J202/J204," ") -> 
D206: Project Cash Flow | F206: =F202-F204 -> 0 | G206: =G202-G204 -> 0 | H206: =H202-H204 -> 0 | I206: =I202-I204 -> 0 | J206: =J202-J204 -> 0
D207: Operating Deficit | F207: =IF(F206>0,0,F206) -> 0 | G207: =IF(G206>0,0,G206) -> 0 | H207: =IF(H206>0,0,H206) -> 0 | I207: =IF(I206>0,0,I206) -> 0 | J207: =IF(J206>0,0,J206) -> 0
I209: Operating Deficit | J209: =SUM(F207:J207,F154:J154) -> 0
I210: Operating Reserve | J210: ='Closing S&U'!$E$186 -> 0

Sheet LIHTC Info
A1: LOW INCOME HOUSING TAX CREDITS
A2: ='Closing S&U'!A2 -> Un-named Project
C4: Percent of Project Which Qualifies for Tax Credit:
A6: 1 | B6: . | C6: Low-Income Units* | E6: ='Project Info'!N69-'Project Info'!D69 -> 0 | G6: Total Units | H6: ='Project Info'!N69 -> 0
A7: =A6+1 -> 2 | B7: . | C7: Percent of Units | E7: =IF(H6>0,E6/H6,0) -> 0
A9: =A7+1 -> 3 | B9: . | C9: Low-Income Square Feet* | F9: (net rentable) | G9: Total Area | H9: ='Project Info'!F126 -> 0 | I9: (net rentable)
A10: =A9+1 -> 4 | B10: . | C10: Percent of Area | E10: =IF(H9>0,E9/H9,0) -> 0
D11: * Applies to only housing units that qualify for tax credits
A12: =A10+1 -> 5 | B12: . | C12: Applicable fraction | E12: =IF(E10>E7,E7,E10) -> 0 | F12: (This is the lower of 2 or 4 above.)
A13: =A12+1 -> 6 | B13: . | C13: Is the project utilizing tax-exempt financing? | I13: ("yes" or "no")
A14: 7 | B14: . | C14: Enter applicable percentage for acquisition credit if project qualifies** | H14: 0 | I14: (.04 or actual)
A15: 8 | B15: . | C15: Enter applicable percentage for rehabilitation credit or new construction** | H15: 0.09 | I15: (.04,.09 or actual)
A16: 9 | B16: . | C16: How much financing is non-qualified (federally subsidized?) | H16: 0 | I16: (Enter $s)
A17: 10 | B17: . | C17: What grant funds must be subtracted from acquisition basis? | H17: 0 | I17: (Enter $s)
A18: 11 | B18: . | C18: What grant funds must be subtracted from rehabilitation basis? | H18: 0 | I18: (Enter $s)
C19: ** If you have or intend to lock into an applicable percentage enter the actual percentages for the month in which you locked in.
C20: Historic Tax Credit:
A21: =A18+1 -> 12 | B21: . | C21: Does the project qualify for historic rehabilitation tax credits? | H21: no | I21: ("yes" or "no")
A22: =A21+1 -> 13 | B22: . | C22: If yes, what are the rehabilitation costs which are not qualified for
C23: historic credits? | H23: 0 | I23: (Enter $s)
C25: Project Qualification for 130%:
A26: =A22+1 -> 14 | B26: . | C26: Is the project located in a qualified census tract (QCT) or | I26: ("yes" or "no")
C27: difficult to develop area (DDA)? OR does the project require the basis boost | H27: =IF(H26="","",IF(OR(CODE(H26)=121,CODE(H26)=89),0,1)) -> 
C28: to be financially feasible (25% of units MUST be 50% AMI)? | I28: Rehabilitation/
G29: Acquisition | I29: Construction
C30: Calculation of Maximum Tax Credit Amount | G30: Credit | I30: Credit
A31: =A26+1 -> 15 | B31: . | C31: Total Eligible Development Costs | G31: =G159 -> 0 | I31: =H159 -> 0
A32: =A31+1 -> 16 | B32: . | C32: Less: Portion of Grants Allocated to Basis | G32: =H17 -> 0 | I32: =H18 -> 0
A33: 17 | B33: . | C33: Less: 20% Historic Rehab Credit Basis Reduction | G33: 0 | I33: =IF(H159="","",IF(CODE(H21)=121,(H159-H23)*0.2,"0")) -> 0
A34: 18 | B34: . | C34: Less: Non-qualified source of financing | G34: 0 | I34: 0
A35: 19 | B35: . | C35: Subtotal: Eligible Basis | G35: =G31-G32-G33-G34 -> 0 | I35: =I31-I32-I33-I34 -> 0
A36: 20 | B36: . | C36: Adjustment for Basis Boost | I36: =IF(H26<>" ",IF(H27=0,1.3,1),1) -> 1
A37: 21 | B37: . | C37: Percent Low-Income | G37: =ROUND(+E12,3) -> 0 | I37: =ROUND(+E12,3) -> 0
A38: 22 | B38: . | C38: Qualified Basis | G38: =G35*G37 -> 0 | I38: =I35*I36*I37 -> 0
A39: 23 | B39: . | C39: Applicable Percentage | G39: =IF(H14="","",H14) -> 0 | I39: =IF(H15="","",H15) -> 0.09
A40: 24 | B40: . | C40: Maximum Annual Tax Credit Amount | G40: =G38*G39 -> 0 | I40: =I38*I39 -> 0
A41: 25 | B41: . | C41: Total Annual Tax Credit Amount | H41: 467844
A42: 26 | B42: . | C42: Estimated Net*** LIHTC Equity Yield$ | G42: per dollar | H42: =H41*F42*10*0.9999 -> 0
A43: 27 | B43: . | C43: Est. Net Historic Tax Credit Syn. Yield $ | G43: per dollar | H43: =I33*F43 -> 0
A44: 28 | B44: . | C44: Total Equity Generated from Tax Credits | H44: =H43+H42 -> 0
A45: 29 | B45: . | C45: Applicant's Estimate of Net Tax Credit Equity | H45: ='Closing S&U'!G7 -> 0 | I45: (Closing S&U Tab, Line 2)
C46: *** Equity yield should be net of all syndication and bridge loan related costs.
A52: =A45+1 -> 30 | B52: . | C52: Does the owner agree to extend the project's rent restrictions 30 or 60 years, per the QAP? | I52: ("yes" or "no")
C53: (See QAP for extended discussion of extended use restrictions).
A55: =A52+1 -> 31 | C55: All projects must be smoke free within the building(s); do you agree to meet this | I55: ("yes" or "no")
C56: requirement for the term of the LIHTC LURA?
A58: =A55+1 -> 32 | C58: All project sponsors must provide written notice to the local Public Housing Authority | I58: ("yes" or "no")
C59: with jurisdiction over the project location (or, where there is no local PHA, the Section 8
C60: Administrator for the State of NH) that the project will accept tenant-based vouchers.
C61: Do you agree to meet this requirement for the term of the LIHTC LURA?
A63: =A58+1 -> 33 | B63: . | C63: Minimum Set Aside Election: (Check one) | F63: 20% at 50%
F64: 40% at 60%
F65: Average Income Test
C67: DEVELOPMENT BUDGET AND CALCULATION OF TAX CREDIT BASIS: | G67: =IF(E159=(G159+H159+I159),"","Warning: TDC does not match basis/non basis column totals!") -> 
C68: Note: Some items automatically placed in the appropriate basis column for convenience - please confirm each item
F69: $
F70: Percentage of
D71: =E159-(G159+H159+I159) -> 0 | E71: $ | F71: Costs Not | G71: $ $ $
E72: Total | F72: in Depreciable | G72: Acquisition | H72: New Cons/Rehab | I72: Not In
E73: Residential | F73: Basis | G73: Credit Basis | H73: Credit Basis | I73: Basis
C74: ACQUISITION & CONSTRUCTION
A75: =A63+1 -> 34 | B75: . | C75: ='Closing S&U'!C115 -> Land | E75: ='Closing S&U'!E115 -> 0 | F75: 0 | G75: 0 | H75: 0 | I75: 0
A76: =A75+1 -> 35 | B76: . | C76: ='Closing S&U'!C116 -> Existing Building | E76: ='Closing S&U'!E116 -> 0 | F76: 0 | G76: 0 | H76: 0 | I76: 0
A77: =A76+1 -> 36 | B77: . | C77: ='Closing S&U'!C117 -> Construction Budget | E77: ='Closing S&U'!E117 -> 0 | F77: 0 | G77: 0 | H77: 0 | I77: 0
A78: =A77+1 -> 37 | B78: . | C78: ='Closing S&U'!C118 -> Construction Contingency | E78: ='Closing S&U'!E118 -> 0 | F78: 0 | G78: 0 | H78: 0 | I78: 0
A79: =A78+1 -> 38 | B79: . | C79: ='Closing S&U'!C119 -> 0 | E79: ='Closing S&U'!E119 -> 0 | F79: 0 | G79: 0 | H79: 0 | I79: 0
C80: Subtotal | E80: =SUM(E75:E79) -> 0 | G80: =SUM(G75:G79) -> 0 | H80: =SUM(H75:H79) -> 0 | I80: =SUM(I75:I79) -> 0
C81: ARCHITECTURAL AND ENGINEERING
A82: =A79+1 -> 39 | B82: . | C82: ='Closing S&U'!C122 -> Architect Fee-Design | E82: ='Closing S&U'!E122 -> 0 | F82: 0 | G82: 0 | H82: 0 | I82: 0
A83: =A82+1 -> 40 | B83: . | C83: ='Closing S&U'!C123 -> Architect Fee-Inspection | E83: ='Closing S&U'!E123 -> 0 | F83: 0 | G83: 0 | H83: 0 | I83: 0
A84: 41 | B84: . | C84: ='Closing S&U'!C124 -> Engineering Fees | E84: ='Closing S&U'!E124 -> 0 | F84: 0 | G84: 0 | H84: 0 | I84: 0
A85: 42 | C85: ='Closing S&U'!C125 -> Historic Consultant Fees | E85: ='Closing S&U'!E125 -> 0 | F85: 0 | G85: 0 | H85: 0 | I85: 0
A86: 43 | C86: ='Closing S&U'!C126 -> Solar Consultant Fees | E86: ='Closing S&U'!E126 -> 0 | F86: 0 | G86: 0 | H86: 0 | I86: 0
A87: 44 | C87: ='Closing S&U'!C127 -> 0 | E87: ='Closing S&U'!E127 -> 0 | F87: 0 | G87: 0 | H87: 0 | I87: 0
A88: 45 | B88: . | C88: ='Closing S&U'!C128 -> 0 | E88: ='Closing S&U'!E128 -> 0 | F88: 0 | G88: 0 | H88: 0 | I88: 0
C89: Subtotal | E89: =SUM(E82:E88) -> 0 | G89: =SUM(G82:G88) -> 0 | H89: =SUM(H82:H88) -> 0 | I89: =SUM(I82:I88) -> 0
C90: INTERIM CONSTRUCTION EXPENSE
A91: =A88+1 -> 46 | B91: . | C91: ='Closing S&U'!C131 -> Const. Loan Origination Fee | E91: ='Closing S&U'!E131 -> 0 | F91: 0 | G91: 0 | H91: 0 | I91: 0
A92: =A91+1 -> 47 | B92: . | C92: ='Closing S&U'!C132 -> Const. Interest | E92: ='Closing S&U'!E132 -> 0 | F92: 0 | G92: 0 | H92: 0 | I92: 0
A93: 48 | B93: . | C93: ='Closing S&U'!C133 -> Const. Insurance | E93: ='Closing S&U'!E133 -> 0 | F93: 0 | G93: 0 | H93: 0 | I93: 0
A94: 49 | B94: . | C94: ='Closing S&U'!C134 -> Const. Bond Fee | E94: ='Closing S&U'!E134 -> 0 | F94: 0 | G94: 0 | H94: 0 | I94: 0
A95: 50 | B95: . | C95: ='Closing S&U'!C135 -> Lender's Counsel | E95: ='Closing S&U'!E135 -> 0 | F95: 0 | G95: 0 | H95: 0 | I95: 0
A96: 51 | B96: . | C96: ='Closing S&U'!C136 -> Taxes During Construction | E96: ='Closing S&U'!E136 -> 0 | F96: 0 | G96: 0 | H96: 0 | I96: 0
A97: 52 | B97: . | C97: ='Closing S&U'!C137 -> Permits | E97: ='Closing S&U'!E137 -> 0 | F97: 0 | G97: 0 | H97: 0 | I97: 0
A98: 53 | B98: . | C98: ='Closing S&U'!C138 -> 0 | E98: ='Closing S&U'!E138 -> 0 | F98: 0 | G98: 0 | H98: 0 | I98: 0
A99: 54 | B99: . | C99: ='Closing S&U'!C139 -> 0 | E99: ='Closing S&U'!E139 -> 0 | F99: 0 | G99: 0 | H99: 0 | I99: 0
C100: Subtotal | E100: =SUM(E91:E99) -> 0 | G100: =SUM(G91:G99) -> 0 | H100: =SUM(H91:H99) -> 0 | I100: =SUM(I91:I99) -> 0
C101: FINANCING FEES AND EXPENSE
A102: =A99+1 -> 55 | B102: . | C102: ='Closing S&U'!C142 -> Perm. Loan Origination Fee | E102: ='Closing S&U'!E142 -> 0 | F102: 0 | G102: 0 | H102: 0 | I102: 0
A103: =A102+1 -> 56 | B103: . | C103: ='Closing S&U'!C143 -> Perm. Loan Credit Enhance | E103: ='Closing S&U'!E143 -> 0 | F103: 0 | G103: 0 | H103: 0 | I103: 0
A104: 57 | B104: . | C104: ='Closing S&U'!C144 -> Tax Credit Fee | E104: ='Closing S&U'!E144 -> 0 | F104: 0 | G104: 0 | H104: 0 | I104: 0
A105: 58 | B105: . | C105: ='Closing S&U'!C145 -> Title Insurance and Record | E105: ='Closing S&U'!E145 -> 0 | F105: 0 | G105: 0 | H105: 0 | I105: 0
A106: 59 | C106: ='Closing S&U'!C146 -> Transfer Tax | E106: ='Closing S&U'!E146 -> 0 | F106: 0 | G106: 0 | H106: 0 | I106: 0
A107: 60 | C107: ='Closing S&U'!C147 -> Lender's Counsel | E107: ='Closing S&U'!E147 -> 0 | F107: 0 | G107: 0 | H107: 0 | I107: 0
A108: 61 | C108: ='Closing S&U'!C148 -> Bond Premium | E108: ='Closing S&U'!E148 -> 0 | F108: 0 | G108: 0 | H108: 0 | I108: 0
A109: 62 | C109: ='Closing S&U'!C149 -> Financing Application Fee | E109: ='Closing S&U'!E149 -> 0 | F109: 0 | G109: 0 | H109: 0 | I109: 0
A110: 63 | B110: . | C110: ='Closing S&U'!C150 -> Upfront MIP Fee | E110: ='Closing S&U'!E150 -> 0 | F110: 0 | G110: 0 | H110: 0 | I110: 0
A111: 64 | B111: . | C111: ='Closing S&U'!C151 -> FFB Trustee Fee | E111: ='Closing S&U'!E151 -> 0 | F111: 0 | G111: 0 | H111: 0 | I111: 0
A112: 65 | B112: . | C112: ='Closing S&U'!C152 -> Soft Cost Contingency | E112: ='Closing S&U'!E152 -> 0 | F112: 0 | G112: 0 | H112: 0 | I112: 0
A113: 66 | B113: . | C113: ='Closing S&U'!C153 -> 0 | E113: ='Closing S&U'!E153 -> 0 | F113: 0 | G113: 0 | H113: 0 | I113: 0
C114: Subtotal | E114: =SUM(E102:E113) -> 0 | G114: =SUM(G102:G113) -> 0 | H114: =SUM(H102:H113) -> 0 | I114: =SUM(I102:I113) -> 0
F119: $
F120: Percentage of
E121: $ | F121: Costs Not | G121: $ $ $
E122: Total | F122: in Depreciable | G122: Acquisition | H122: Rehabilitation | I122: Not In
E123: Residential | F123: Basis | G123: Credit Basis | H123: Credit Basis | I123: Basis
C124: OTHER SOFT COSTS
A125: =A113+1 -> 67 | B125: . | C125: ='Closing S&U'!C156 -> Appraisal | E125: ='Closing S&U'!E156 -> 0 | F125: 0 | G125: 0 | H125: 0 | I125: 0
A126: =A125+1 -> 68 | B126: . | C126: ='Closing S&U'!C157 -> Market Study | E126: ='Closing S&U'!E157 -> 0 | F126: 0 | G126: 0 | H126: 0 | I126: 0
A127: 69 | B127: . | C127: ='Closing S&U'!C158 -> Environmental Report | E127: ='Closing S&U'!E158 -> 0 | F127: 0 | G127: 0 | H127: 0 | I127: 0
A128: 70 | B128: . | C128: ='Closing S&U'!C159 -> Site Survey | E128: ='Closing S&U'!E159 -> 0 | F128: 0 | G128: 0 | H128: 0 | I128: 0
A129: 71 | B129: . | C129: ='Closing S&U'!C160 -> Relocation Costs | E129: ='Closing S&U'!E160 -> 0 | F129: 0 | G129: 0 | H129: 0 | I129: 0
A130: 72 | B130: . | C130: ='Closing S&U'!C161 -> Legal Fees | E130: ='Closing S&U'!E161 -> 0 | F130: 0 | G130: 0 | H130: 0 | I130: 0
A131: 73 | B131: . | C131: ='Closing S&U'!C162 -> Accounting Fees | E131: ='Closing S&U'!E162 -> 0 | F131: 0 | G131: 0 | H131: 0 | I131: 0
A132: 74 | B132: . | C132: ='Closing S&U'!C163 -> NHHFA Const. Admin. Svcs. Fee | E132: ='Closing S&U'!E163 -> 0 | F132: 0 | G132: 0 | H132: 0 | I132: 0
A133: 75 | B133: . | C133: ='Closing S&U'!C164 -> 0 | E133: ='Closing S&U'!E164 -> 0 | F133: 0 | G133: 0 | H133: 0 | I133: 0
C134: Subtotal | E134: =SUM(E125:E133) -> 0 | G134: =SUM(G125:G133) -> 0 | H134: =SUM(H125:H133) -> 0 | I134: =SUM(I125:I133) -> 0
C135: DEVELOPER FEE
A136: =A133+1 -> 76 | B136: . | C136: ='Closing S&U'!C172 -> Devel. Overhead and Profit | E136: ='Closing S&U'!E172 -> 0 | F136: 0 | G136: 0 | H136: 0 | I136: 0
A137: =A136+1 -> 77 | B137: . | C137: ='Closing S&U'!C173 -> Development Consultant Fee | E137: ='Closing S&U'!E173 -> 0 | F137: 0 | G137: 0 | H137: 0 | I137: 0
C138: Subtotal | E138: =SUM(E136:E137) -> 0 | G138: =SUM(G136:G137) -> 0 | H138: =SUM(H136:H137) -> 0 | I138: =SUM(I136:I137) -> 0
C139: SYNDICATION EXPENSES
A140: =A137+1 -> 78 | B140: . | C140: ='Closing S&U'!C176 -> Syndication Legal | E140: ='Closing S&U'!E176 -> 0 | F140: 0 | G140: 0 | H140: 0 | I140: 0
A141: =A140+1 -> 79 | B141: . | C141: ='Closing S&U'!C177 -> Syndication Accounting | E141: ='Closing S&U'!E177 -> 0 | F141: 0 | G141: 0 | H141: 0 | I141: 0
A142: 80 | B142: . | C142: ='Closing S&U'!C178 -> Syndication Fees | E142: ='Closing S&U'!E178 -> 0 | F142: 0 | G142: 0 | H142: 0 | I142: 0
A143: 81 | B143: . | C143: ='Closing S&U'!C179 -> Syndication Consultant | E143: ='Closing S&U'!E179 -> 0 | F143: 0 | G143: 0 | H143: 0 | I143: 0
A144: 82 | B144: . | C144: ='Closing S&U'!C180 -> Bridge Loan Origination Fee | E144: ='Closing S&U'!E180 -> 0 | F144: 0 | G144: 0 | H144: 0 | I144: 0
A145: 83 | B145: . | C145: ='Closing S&U'!C181 -> Bridge Loan Interest | E145: ='Closing S&U'!E181 -> 0 | F145: 0 | G145: 0 | H145: 0 | I145: 0
A146: 84 | B146: . | C146: ='Closing S&U'!C182 -> Investor Servicing (capital) | E146: ='Closing S&U'!E182 -> 0 | F146: 0 | G146: 0 | H146: 0 | I146: 0
A147: 85 | B147: . | C147: ='Closing S&U'!C183 -> 0 | E147: ='Closing S&U'!E183 -> 0 | F147: 0 | G147: 0 | H147: 0 | I147: 0
C148: Subtotal | E148: =SUM(E140:E147) -> 0 | G148: =SUM(G140:G147) -> 0 | H148: =SUM(H140:H147) -> 0 | I148: =SUM(I140:I147) -> 0
C149: RESERVES- (reserves cannot exceed maximum under NHHFA underwriting standards)
A150: =A147+1 -> 86 | B150: . | C150: ='Closing S&U'!C186 -> Operating Reserve | E150: ='Closing S&U'!E186 -> 0 | F150: 0 | G150: 0 | H150: 0 | I150: 0
A151: =A150+1 -> 87 | B151: . | C151: ='Closing S&U'!C187 -> FFB Operating Reserve | E151: ='Closing S&U'!E187 -> 0 | F151: 0 | G151: 0 | H151: 0 | I151: 0
A152: 88 | B152: . | C152: ='Closing S&U'!C188 -> Replacement Reserve | E152: ='Closing S&U'!E188 -> 0 | F152: 0 | G152: 0 | H152: 0 | I152: 0
A153: =A150+1 -> 87 | B153: . | C153: ='Closing S&U'!C189 -> Insurance Escrow | E153: ='Closing S&U'!E189 -> 0 | F153: 0 | G153: 0 | H153: 0 | I153: 0
A154: 88 | B154: . | C154: ='Closing S&U'!C190 -> Real Estate Tax Escrow | E154: ='Closing S&U'!E190 -> 0 | F154: 0 | G154: 0 | H154: 0 | I154: 0
A155: 89 | C155: ='Closing S&U'!C191 -> Tax Credit Monitor Fee | E155: ='Closing S&U'!E191 -> 0
A156: =A153+1 -> 88 | B156: . | C156: ='Closing S&U'!C192 -> 0 | E156: ='Closing S&U'!E192 -> 0 | F156: 0 | G156: 0 | H156: 0 | I156: 0
C157: Subtotal | E157: =SUM(E150:E156) -> 0 | G157: =SUM(G150:G156) -> 0 | H157: =SUM(H150:H156) -> 0 | I157: =SUM(I150:I156) -> 0
A159: =A156+1 -> 89 | B159: . | C159: Total Development Cost | E159: =E$80+E$89+E$100+E$114+E$134+E$138+E$148+E$157 -> 0 | G159: =G$80+G$89+G$100+G$114+G$134+G$138+G$148+G$157 -> 0 | H159: =H$80+H$89+H$100+H$114+H$134+H$138+H$148+H$157 -> 0 | I159: =I$80+I$89+I$100+I$114+I$134+I$138+I$148+I$157 -> 0
A160: =A159+1 -> 90 | C160: TDC Net of Syndication Costs | E160: ='Closing S&U'!E197 -> 0
A161: =A160+1 -> 91 | B161: . | C161: Eligible Basis | G161: =G67 -> 
H162: =IF(G161="","","Variance TDC/Basis:") ->  | I162: =IF(H162="","",E159-(G159+H159+I159)) -> 
C163: Note: To determine the credit amount the project qualifies for, a gap analysis will be used. The gap will be calculated using
C164: Total Development Cost less syndication costs, and total equity from tax credits also net of syndication costs.

Sheet Mgt Agt Quest
C1: MANAGEMENT AGENT QUESTIONNAIRE
A3: Please use an "x" to fill in check boxes - form will automatically tally score.
A4: Note: This form used for LIHTC Application Scoring and for Threshold Determination
A5: Additional explanation/notes can be added below
A6: Management Company Profiled:
F8: Scoring
A9: Questions 1 – 7 are used in LIHTC scoring. | D9: Yes | E9: No
A10: 1 | B10: Does the Agent have experience managing and/or own properties receiving subsidies or rental assistance other than Low Income Housing Tax Credit (LIHTC)? | E10: ⁭ | F10: =IF(D10="x",1,0) -> 0
C11: If yes, more than five years of experience? | E11: ⁭ | F11: =IF(D11="x",1,0) -> 0
C12: If yes, identify the Contract Administrator and/or Compliance Agency and the number of properties, number of units, location and years of experience.
A13: 2 | B13: Does the Agent have experience managing LIHTC properties? | D13: ⁭ | E13: ⁭ | F13: =IF(D13="x",1,0) -> 0
C14: If yes, more than five years experience? | E14: ⁭ | F14: =IF(D14="x",1,0) -> 0
C15: If yes, identify the compliance agency and the number of properties, number of units, location and years of experience.
A16: 3 | B16: In the past 3 years has the Agent undergone a LIHTC Compliance Monitoring Review? | F16: =IF(D16="x",1,0) -> 0
C17: If yes, identify the compliance agency.
A18: 4 | B18: In the past 6 years, has the Agent received an unsatisfactory Monitoring Review of any property by a Compliance Agency or Contract Administrator? (Please skip to question 5 if not applicable.) | F18: =IF(D18="x",-1,1) -> 1
C19: If yes, explain circumstances and resolutions.
A20: 5 | B20: In the past 3 years has the Agent managed/owned a property that has experienced any of the following? (Please skip to question 6 if not applicable.)
C21: Persistent (2 consecutive years) and/or numerous (a finding with more than 50% of areas inspected) poor physical condition issues within the control of management. | F21: =IF(D21="x",-1,1) -> 1
C22: Persistent (2 consecutive years) late/incomplete submission of required documents (audits, budgets, certifications or other administrative or regulatory documents) to the contract administrator or compliance agency. | D22: ⁭ | E22: ⁭ | F22: =IF(D22="x",-1,1) -> 1
B23: Check all that apply:
B24: ⁭ | C24: Mortgage delinquent over 30 days
B25: ⁭ | C25: Low Debt to Coverage Ratio (DCR below 1.00)
B26: ⁭ | C26: Rental delinquency, greater than 7% of gross rent
B27: ⁭ | C27: High vacancy, greater than 8% for more than 60 days
B28: ⁭ | C28: Negative operating budget
B29: ⁭ | C29: In litigation
A30: 6 | B30: Does at least one person of the Agent’s staff possess a designation of training and proficiency from one of the Authority’s nationally recognized Tax Credit trainers? See LIHTC Compliance on website for trainers www.nhhfa.org. | D30: ⁭ | E30: ⁭ | F30: =IF(D30="x",1,0) -> 0
C31: If yes, list the specific designation by staff and date or attach documentation.
A32: 7 | B32: Does at least one person of the Agent’s staff attend annual LIHTC training? | D32: ⁭ | E32: ⁭ | F32: =IF(D32="x",1,0) -> 0
C33: If yes, list the specific training attended by staff and date or attach certificate of training.
C34: Total Self Scoring | F34: =SUM(D9:F32) -> 3
B35: Page 2 Non-Scoring Section
D36: Yes | E36: No
A37: 8 | B37: In the past 6 years have any non-compliance 8823’s been issued to properties managed/owned by Agent? | D37: ⁭ | E37: ⁭ | F37: If yes, please explain:
C38: If yes, are there any 8823’s not corrected? | D38: ⁭ | E38: ⁭
A39: 9 | B39: In the past 6 years of the properties managed/owned, have any issues of non-compliance of the special conditions of the LURA been discovered? | D39: ⁭ | E39: ⁭ | F39: Explain:
C40: If yes, are there any issues not corrected? | D40: ⁭ | E40: ⁭
A41: 10 | B41: In the past 6 years, has the Agent been found in violation of any state or local codes? | F41: If yes, please explain:
A43: 11 | B43: In the past 6 years, has the Agent been found in violation of any Fair Housing Law? | D43: ⁭ | E43: ⁭ | F43: If yes, please explain:
A45: 12 | B45: Is the Management Agent aware of the specific requirements, restrictions and compliance of this property and/or program? | D45: ⁭ | E45: ⁭
A46: 13 | B46: Can the Agent demonstrate their ability to provide management and maintenance services required for this type of property? (consider funding restrictions and compliance, documents and forms, distance from management, tenant demographics, neighborhood). | D46: ⁭ | E46: ⁭
A47: 14 | B47: Does the Agent intend to contract out any portion of the management functions? | D47: ⁭ | E47: ⁭ | F47: If yes, please explain:
A49: 15 | B49: Are the Agent and all staff (including maintenance) who participate directly in the management of the property aware of the Fair Housing and Equal Opportunity (FHEO), Americans with Disabilities (ADA) and Section 504? | D49: ⁭ | E49: ⁭ | F49: If yes, list the specific training attended by staff and date or attach certificates of training:
A51: 16 | B51: Is the Management Agent eligible for or have a surety bond? | D51: ⁭ | E51: ⁭
A52: 17 | B52: Is there an identity of interest between the ownership and management entities? | D52: ⁭ | E52: ⁭ | F52: If yes, please explain:
A54: 18 | B54: Have any properties that the Agent (or any of its executive professional or supervisory personnel) managed or currently manage ever experienced a default? | D54: ⁭ | E54: ⁭ | F54: If yes, please explain:
A56: 19 | B56: In the past 10 years has the Agent or any Principal or Officer of the Agent filed bankruptcy or had judgments levied against a firm that they were a Principal of? | F56: If yes, please explain:
A58: Note that further information may be requested.
A60: I,
A61: hereby certify that the information set forth herein, and in any attachments in support thereof, is true, correct and complete to the best of my knowledge and belief.
A63: Name of Firm:
A64: Title:
A65: Date:
A67: Additional Notes:

Sheet Const S&U
A1: Disbursement Schedule | D1: Project: | E1: =+'Project Info'!E4 -> 0
C2: Budget | D2: Expended Prior to Closing | E2: Paid at Closing | F2: Total expended thru closing | G2: Month 1 Draw | H2: Month 2 Draw | I2: Month 3 Draw | J2: Month 4 Draw | K2: Month 5 Draw | L2: Month 6 Draw | M2: Month 7 Draw | N2: Month 8 Draw | O2: Month 9 Draw | P2: Month 10 Draw | Q2: Month 11 Draw | R2: Month 12 Draw | S2: Month 13 Draw | T2: Month 14 Draw | U2: Month 15 Draw | V2: Month 16 Draw | W2: Month 17 Draw | X2: Month 18 Draw | Y2: Month 19 Draw | Z2: Month 20 Draw | AA2: Month 21 Draw | AB2: Month 22 Draw | AC2: Month 23 Draw | AD2: Month 24 Draw | AE2: Month 25 Draw | AF2: Month 26 Draw | AG2: Month 27 Draw | AH2: Month 28 Draw | AI2: Month 29 Draw | AJ2: Month 30 Draw | AL2: Total to Date | AN2: Balance to Complete
A3: Sources of Funds:
A4: ='Closing S&U'!C6 -> Developer's Cash Equity | C4: ='Closing S&U'!G6 -> 0 | F4: =D4+E4 -> 0 | AL4: =SUM(F4:AJ4) -> 0 | AN4: =C4-AL4 -> 0
A5: LIHTC Equity | C5: ='LIHTC Info'!H44 -> 0 | F5: 0 | AL5: =SUM(F5:AJ5) -> 0 | AN5: 0
A6: ='Closing S&U'!C8 -> HTC Equity | C6: ='Closing S&U'!G8 -> 0 | F6: 0
A7: ='Closing S&U'!C9 -> Other Equity: | B7: ='Closing S&U'!D9 -> 0 | C7: ='Closing S&U'!G9 -> 0 | F7: 0 | AL7: 0 | AN7: 0
A8: ='Closing S&U'!C10 -> Developer Fee Loan | C8: ='Closing S&U'!G10 -> 0 | F8: 0 | AL8: 0 | AN8: 0
A9: ='Closing S&U'!C11 -> Other Source: | B9: ='Closing S&U'!D11 -> 0 | C9: ='Closing S&U'!G11 -> 0 | F9: 0 | AL9: 0 | AN9: 0
A10: ='Closing S&U'!C15 -> Grant: | B10: ='Closing S&U'!D15 -> 0 | C10: ='Closing S&U'!F15 -> 0 | F10: =D10+E10 -> 0 | AL10: 0 | AN10: 0
A11: ='Closing S&U'!C16 -> Grant: | B11: ='Closing S&U'!D16 -> 0 | C11: ='Closing S&U'!F16 -> 0 | F11: 0 | AL11: 0 | AN11: 0
A12: ='Closing S&U'!C20 -> NH Housing Capital Subsidy Funds | C12: ='Closing S&U'!F20 -> 0 | F12: 0 | AL12: 0 | AN12: 0
A13: ='Closing S&U'!C22 -> Subordinate Debt | B13: ='Closing S&U'!D23 -> 0 | C13: ='Closing S&U'!F22 -> 0 | F13: 0 | AL13: 0 | AN13: 0
A14: ='Closing S&U'!C24 -> Subordinate Debt | B14: ='Closing S&U'!D25 -> 0 | C14: ='Closing S&U'!F24 -> 0 | F14: 0 | AL14: 0 | AN14: 0
A15: ='Closing S&U'!C26 -> Subordinate Debt | B15: ='Closing S&U'!D27 -> 0 | C15: ='Closing S&U'!F26 -> 0 | F15: =D15+E15 -> 0 | AL15: 0 | AN15: 0
A16: ='Closing S&U'!C28 -> Subordinate Debt | B16: ='Closing S&U'!D29 -> 0 | C16: ='Closing S&U'!F28 -> 0 | F16: =D16+E16 -> 0 | AL16: 0 | AN16: 0
A17: ='Closing S&U'!C33 -> NH Housing Long-Term Loan | C17: ='Closing S&U'!F33 -> 0 | F17: 0 | AL17: 0
A18: ='Closing S&U'!C35 -> Other Long-Term Mortgage | B18: ='Closing S&U'!D36 -> 0 | C18: ='Closing S&U'!F35 -> 0 | F18: 0 | AL18: 0
A19: ='Closing S&U'!C37 -> Other Long-Term Mortgage | B19: ='Closing S&U'!D38 -> 0 | C19: ='Closing S&U'!F37 -> 
A20: ='Closing S&U'!C44 -> Construction Loan | B20: ='Closing S&U'!D45 -> 0 | C20: ='Closing S&U'!F44 -> 0 | F20: 0 | AL20: 0 | AN20: 0
A21: ='Closing S&U'!C47 -> Other Interim Loan | B21: ='Closing S&U'!D48 -> 0 | C21: ='Closing S&U'!F47 -> 0 | F21: 0 | AL21: 0 | AN21: 0
A22: ='Closing S&U'!C50 -> Tax Credit Bridge Loan | B22: ='Closing S&U'!D51 -> 0 | C22: ='Closing S&U'!F50 -> 0 | F22: 0 | AL22: 0 | AN22: 0
A23: Total Sources of Funds | C23: =SUM(C4:C22) -> 0 | D23: 0 | E23: 0 | F23: 0 | G23: 0 | H23: 0 | I23: 0 | J23: 0 | K23: 0 | L23: 0 | M23: 0 | N23: 0 | O23: 0 | P23: 0 | Q23: 0 | R23: =SUM(R4:R22) -> 0 | S23: 0 | T23: 0 | U23: 0 | V23: 0 | W23: 0 | X23: 0 | Y23: 0 | Z23: 0 | AA23: 0 | AB23: 0 | AC23: 0 | AD23: 0 | AE23: 0 | AF23: 0 | AG23: 0 | AH23: 0 | AI23: 0 | AJ23: 0 | AL23: =SUM(AL4:AL22) -> 0 | AN23: =SUM(AN4:AN22) -> 0
A25: Uses of Funds:
A26: Acquisition & Construction
A27: Land | C27: ='Closing S&U'!G115 -> 0 | F27: =D27+E27 -> 0 | AL27: =SUM(F27:AJ27) -> 0 | AN27: =+C27-AL27 -> 0
A28: Existing Building | C28: ='Closing S&U'!G116 -> 0 | F28: =D28+E28 -> 0 | AL28: =SUM(F28:AJ28) -> 0 | AN28: =+C28-AL28 -> 0
A29: Construction Budget | C29: ='Closing S&U'!G117 -> 0 | F29: =D29+E29 -> 0 | AL29: 0 | AN29: =+C29-AL29 -> 0
A30: Construction Contingency | C30: ='Closing S&U'!G118 -> 0 | F30: =D30+E30 -> 0 | AL30: 0 | AN30: =+C30-AL30 -> 0
A31: Other Acquisition & Construction | C31: ='Closing S&U'!G119 -> 0 | F31: =D31+E31 -> 0 | AL31: 0 | AN31: =+C31-AL31 -> 0
A32: Architectural & Engineering
A33: Architect Fee-Design | C33: ='Closing S&U'!G122 -> 0 | F33: =+D33+E33 -> 0 | AL33: =SUM(F33:AJ33) -> 0 | AN33: =+C33-AL33 -> 0
A34: Architect Fee-Inspection | C34: ='Closing S&U'!G123 -> 0 | F34: 0 | AL34: =SUM(F34:AJ34) -> 0 | AN34: 0
A35: Engineering Fees | C35: ='Closing S&U'!G124 -> 0 | F35: 0 | AL35: 0 | AN35: 0
A36: ='Closing S&U'!C125 -> Historic Consultant Fees | C36: ='Closing S&U'!G125 -> 0 | F36: 0 | AL36: 0 | AN36: 0
A37: ='Closing S&U'!C126 -> Solar Consultant Fees | C37: ='Closing S&U'!G126 -> 0 | F37: 0 | AL37: 0 | AN37: 0
A38: ='Closing S&U'!C127 -> 0 | C38: ='Closing S&U'!G127 -> 0 | F38: 0 | AL38: 0 | AN38: 0
A39: ='Closing S&U'!C128 -> 0 | C39: ='Closing S&U'!G128 -> 0 | F39: 0 | AL39: 0 | AN39: 0
A40: Interim Construction Expense
A41: ='Closing S&U'!C131 -> Const. Loan Origination Fee | C41: ='Closing S&U'!G131 -> 0 | F41: =+D41+E41 -> 0 | AL41: =SUM(F41:AJ41) -> 0 | AN41: =+C41-AL41 -> 0
A42: ='Closing S&U'!C132 -> Const. Interest | C42: ='Closing S&U'!G132 -> 0 | F42: 0 | AL42: =SUM(F42:AJ42) -> 0 | AN42: 0
A43: ='Closing S&U'!C133 -> Const. Insurance | C43: ='Closing S&U'!G133 -> 0 | F43: 0 | AL43: 0 | AN43: 0
A44: ='Closing S&U'!C134 -> Const. Bond Fee | C44: ='Closing S&U'!G134 -> 0 | F44: 0 | AL44: 0 | AN44: 0
A45: ='Closing S&U'!C135 -> Lender's Counsel | C45: ='Closing S&U'!G135 -> 0 | F45: 0 | AL45: 0 | AN45: 0
A46: ='Closing S&U'!C136 -> Taxes During Construction | C46: ='Closing S&U'!G136 -> 0 | F46: 0 | AL46: 0 | AN46: 0
A47: ='Closing S&U'!C137 -> Permits | C47: ='Closing S&U'!G137 -> 0 | F47: 0 | AL47: 0 | AN47: 0
A48: ='Closing S&U'!C138 -> 0 | C48: ='Closing S&U'!G138 -> 0 | F48: 0 | AL48: 0 | AN48: 0
A49: ='Closing S&U'!C139 -> 0 | C49: ='Closing S&U'!G139 -> 0 | F49: 0 | AL49: 0 | AN49: 0
A50: Financing Fees and Expenses
A51: ='Closing S&U'!C142 -> Perm. Loan Origination Fee | C51: ='Closing S&U'!G142 -> 0 | F51: =+D51+E51 -> 0 | AL51: =SUM(F51:AJ51) -> 0 | AN51: =+C51-AL51 -> 0
A52: ='Closing S&U'!C143 -> Perm. Loan Credit Enhance | C52: ='Closing S&U'!G143 -> 0 | F52: 0 | AL52: =SUM(F52:AJ52) -> 0 | AN52: 0
A53: ='Closing S&U'!C144 -> Tax Credit Fee | C53: ='Closing S&U'!G144 -> 0 | F53: 0 | AL53: 0 | AN53: 0
A54: ='Closing S&U'!C145 -> Title Insurance and Record | C54: ='Closing S&U'!G145 -> 0 | F54: 0 | AL54: 0 | AN54: 0
A55: ='Closing S&U'!C146 -> Transfer Tax | C55: ='Closing S&U'!G146 -> 0 | F55: 0 | AL55: 0 | AN55: 0
A56: ='Closing S&U'!C147 -> Lender's Counsel | C56: ='Closing S&U'!G147 -> 0 | F56: 0 | AL56: 0 | AN56: 0
A57: ='Closing S&U'!C148 -> Bond Premium | C57: ='Closing S&U'!G148 -> 0 | F57: 0 | AL57: 0 | AN57: 0
A58: ='Closing S&U'!C149 -> Financing Application Fee | C58: ='Closing S&U'!G149 -> 0 | F58: 0 | AL58: 0 | AN58: 0
A59: ='Closing S&U'!C150 -> Upfront MIP Fee | C59: ='Closing S&U'!G150 -> 0 | F59: =+D59+E59 -> 0 | AL59: 0 | AN59: =+C59-AL59 -> 0
A60: ='Closing S&U'!C151 -> FFB Trustee Fee | C60: ='Closing S&U'!G151 -> 0 | F60: 0 | AL60: 0 | AN60: 0
A61: ='Closing S&U'!C152 -> Soft Cost Contingency | C61: ='Closing S&U'!G152 -> 0 | F61: =+D61+E61 -> 0 | AL61: 0 | AN61: =+C61-AL61 -> 0
A62: ='Closing S&U'!C153 -> 0 | C62: ='Closing S&U'!G153 -> 0 | F62: 0 | AL62: 0 | AN62: 0
A63: Other Soft Costs
A64: Appraisal | C64: ='Closing S&U'!G156 -> 0 | F64: =+D64+E64 -> 0 | AL64: =SUM(F64:AJ64) -> 0 | AN64: =+C64-AL64 -> 0
A65: Market Study | C65: ='Closing S&U'!G157 -> 0 | F65: 0 | AL65: =SUM(F65:AJ65) -> 0 | AN65: 0
A66: Environmental Report | C66: ='Closing S&U'!G158 -> 0 | F66: 0 | AL66: 0 | AN66: 0
A67: Site Survey | C67: ='Closing S&U'!G159 -> 0 | F67: 0 | AL67: 0 | AN67: 0
A68: Relocation Expenses | C68: ='Closing S&U'!G160 -> 0 | F68: 0 | AL68: 0 | AN68: 0
A69: Legal Fees | C69: ='Closing S&U'!G161 -> 0 | F69: 0 | AL69: 0 | AN69: 0
A70: Accounting Fees | C70: ='Closing S&U'!G162 -> 0 | F70: =+D70+E70 -> 0 | AL70: 0 | AN70: 0
A71: NHHFA Const. Admin Svcs. Fee | C71: ='Closing S&U'!G163 -> 0 | F71: 0 | AL71: 0 | AN71: 0
A72: ='Closing S&U'!C164 -> 0 | C72: ='Closing S&U'!G164 -> 0 | F72: 0 | AL72: 0 | AN72: 0
A73: Development Fees
A74: Devel Overhead and Profit | C74: ='Closing S&U'!G172 -> 0 | F74: =+D74+E74 -> 0 | AL74: =SUM(F74:AK74) -> 0 | AN74: =+C74-AL74 -> 0
A75: Consultant Fee | C75: ='Closing S&U'!G173 -> 0 | F75: =+D75+E75 -> 0 | AL75: =SUM(F75:AJ75) -> 0 | AN75: =+C75-AL75 -> 0
A77: Syndication Expenses
A78: Syndication Legal | C78: ='Closing S&U'!G176 -> 0 | F78: =+D78+E78 -> 0 | AL78: =SUM(F78:AJ78) -> 0 | AN78: =+C78-AL78 -> 0
A79: Syndication Accounting | C79: ='Closing S&U'!G177 -> 0 | F79: 0 | AL79: =SUM(F79:AJ79) -> 0 | AN79: 0
A80: Syndication Fees | C80: ='Closing S&U'!G178 -> 0 | F80: 0 | AL80: 0 | AN80: 0
A81: Syndication Consultant | C81: ='Closing S&U'!G179 -> 0 | F81: 0 | AL81: 0 | AN81: 0
A82: Bridge Loan Origination Fee | C82: ='Closing S&U'!G180 -> 0 | F82: 0 | AL82: 0 | AN82: 0
A83: Bridge Loan Interest | C83: ='Closing S&U'!G181 -> 0 | F83: 0 | AL83: 0 | AN83: 0
A84: Investor Servicing (capital) | C84: ='Closing S&U'!G182 -> 0 | F84: 0 | AL84: 0 | AN84: 0
A85: ='Closing S&U'!C183 -> 0 | C85: ='Closing S&U'!G183 -> 0 | F85: 0 | AL85: 0 | AN85: 0
A86: Reserves (See NHHFA Policies)
A87: ='Closing S&U'!C186 -> Operating Reserve | C87: ='Closing S&U'!G186 -> 0 | F87: =D87+E87 -> 0 | AL87: =SUM(F87:AJ87) -> 0 | AN87: =+C87-AL87 -> 0
A88: ='Closing S&U'!C187 -> FFB Operating Reserve | C88: ='Closing S&U'!G187 -> 0 | F88: 0 | AL88: =SUM(F88:AJ88) -> 0 | AN88: 0
A89: ='Closing S&U'!C188 -> Replacement Reserve | C89: ='Closing S&U'!G188 -> 0 | F89: 0 | AL89: 0 | AN89: 0
A90: ='Closing S&U'!C189 -> Insurance Escrow | C90: ='Closing S&U'!G189 -> 0 | F90: 0 | AL90: 0 | AN90: 0
A91: ='Closing S&U'!C190 -> Real Estate Tax Escrow | C91: ='Closing S&U'!G190 -> 0 | F91: =D91+E91 -> 0 | AL91: 0 | AN91: =+C91-AL91 -> 0
A92: ='Closing S&U'!C191 -> Tax Credit Monitor Fee | C92: ='Closing S&U'!G191 -> 0 | F92: 0 | AL92: 0 | AN92: 0
A93: ='Closing S&U'!C192 -> 0 | C93: ='Closing S&U'!G192 -> 0 | F93: =D93+E93 -> 0 | AL93: 0 | AN93: 0
A94: Other
A95: TA Loan Payoff | F95: 0 | AL95: =SUM(F95:AJ95) -> 0 | AN95: =+C95-AL95 -> 0
A96: Construction Loan Payoff | F96: 0 | AL96: =SUM(F96:AJ96) -> 0 | AN96: =+C96-AL96 -> 0
A97: Total Uses of Funds | C97: =SUM(C27:C96) -> 0 | D97: =SUM(D27:D96) -> 0 | E97: =SUM(E27:E96) -> 0 | F97: =SUM(F27:F96) -> 0 | G97: =SUM(G27:G96) -> 0 | H97: =SUM(H27:H96) -> 0 | I97: =SUM(I27:I96) -> 0 | J97: =SUM(J27:J96) -> 0 | K97: =SUM(K27:K96) -> 0 | L97: =SUM(L27:L96) -> 0 | M97: =SUM(M27:M96) -> 0 | N97: =SUM(N27:N96) -> 0 | O97: =SUM(O27:O96) -> 0 | P97: =SUM(P27:P96) -> 0 | Q97: =SUM(Q27:Q96) -> 0 | R97: =SUM(R27:R96) -> 0 | S97: =SUM(S27:S96) -> 0 | T97: =SUM(T27:T96) -> 0 | U97: =SUM(U27:U96) -> 0 | V97: =SUM(V27:V96) -> 0 | W97: =SUM(W27:W96) -> 0 | X97: =SUM(X27:X96) -> 0 | Y97: =SUM(Y27:Y96) -> 0 | Z97: =SUM(Z27:Z96) -> 0 | AA97: =SUM(AA27:AA96) -> 0 | AB97: =SUM(AB27:AB96) -> 0 | AC97: =SUM(AC27:AC96) -> 0 | AD97: =SUM(AD27:AD96) -> 0 | AE97: =SUM(AE27:AE96) -> 0 | AF97: =SUM(AF27:AF96) -> 0 | AG97: =SUM(AG27:AG96) -> 0 | AH97: =SUM(AH27:AH96) -> 0 | AI97: =SUM(AI27:AI96) -> 0 | AJ97: =SUM(AJ27:AJ96) -> 0 | AL97: =SUM(AL27:AL96) -> 0 | AN97: =SUM(AN27:AN96) -> 0
A99: Total Checks:
A100: Source and Use Check | C100: =C23-C97 -> 0 | D100: =D23-D97 -> 0 | E100: =E23-E97 -> 0 | F100: =F23-F97 -> 0 | G100: =G23-G97 -> 0 | H100: =H23-H97 -> 0 | I100: =I23-I97 -> 0 | J100: =J23-J97 -> 0 | K100: =K23-K97 -> 0 | L100: =L23-L97 -> 0 | M100: =M23-M97 -> 0 | N100: =N23-N97 -> 0 | O100: =O23-O97 -> 0 | P100: =P23-P97 -> 0 | Q100: =Q23-Q97 -> 0 | R100: =R23-R97 -> 0 | S100: =S23-S97 -> 0 | T100: =T23-T97 -> 0 | U100: =U23-U97 -> 0 | V100: =V23-V97 -> 0 | W100: =W23-W97 -> 0 | X100: =X23-X97 -> 0 | Y100: =Y23-Y97 -> 0 | Z100: =Z23-Z97 -> 0 | AA100: =AA23-AA97 -> 0 | AB100: =AB23-AB97 -> 0 | AC100: =AC23-AC97 -> 0 | AD100: =AD23-AD97 -> 0 | AE100: =AE23-AE97 -> 0 | AF100: =AF23-AF97 -> 0 | AG100: =AG23-AG97 -> 0 | AH100: =AH23-AH97 -> 0 | AI100: =AI23-AI97 -> 0 | AJ100: =AJ23-AJ97 -> 0 | AK100: =AK23-AK97 -> 0 | AL100: =AL23-AL97 -> 0 | AM100: =AM23-AM97 -> 0 | AN100: =AN23-AN97 -> 0

Sheet Dev Fee
A1: Developer Fee Schedule
A3: Project Name | B3: ='Project Info'!E4 -> 0
B5: Developer Fees
A7: The developer fee is not a guaranteed or automatic budgetary figure, and must be approved by the Authority
A8: within the context of each project. The fee will be strictly limited, with any violations of the developer
A9: certification of development cost forwarded to the IRS using IRS form 8823. For purposes of calculating the
A10: maximum developer fee allowed, the Authority does not distinguish between the developer fee and fees for
A11: consultants doing those tasks typically done by a developer, regardless of whether the applicant is a for-
A12: profit or non-profit entity. "Consultant fees" counted as developer fee do not include professional fees such
A13: as architectural, engineering, or appraisal fees.
A15: Maximum Developer Fee Calculation
A17: 1. The maximum fee in any case shall not exceed 15% of total development costs: | C17: ='Closing S&U'!G174/'Closing S&U'!G195 -> 
A19: 2. Projects primarily relating to acquisition, with renovation/new construction (including contingency) equaling
A20: less than 50% of total development costs, not including land. Can be general occupancy or age-restricted.
A22: 6300 | B22: per unit | C22: =A22*'Project Info'!N69 -> 0
G23: Remove when published!
A24: 3. General occupancy projects (at least 25% 2BR units, and no age-restricted or >62 age designation)
D25: # of units | G25: Old | H25: 0.12 | R25: "# units over 100 | S25: # units over 40 | T25: # units over 10 | U25: # units under 11 | W25: check
A26: 22000 | B26: per unit for first 10 units | C26: =IF(U27>0,U27*A26,0) -> 0 | D26: ='Project Info'!N69 -> 0 | G26: 21000 | H26: =G26*1.12 -> 23520 | R26: =IF($D$26>100,($D$26-100),0) -> 0 | S26: =IF($D$26>40,($D$26-40),0) -> 0 | T26: =IF($D$26>10,($D$26-10),0) -> 0 | U26: =IF(D26>10,10,D26) -> 0 | W26: =10*A26 -> 220000
A27: 18000 | B27: per unit for next 30 units | C27: =IF(T27>0,T27*A27,0) -> 0 | G27: 17000 | H27: =G27*1.12 -> 19040 | R27: =IF(R26>100,100,D26-100) -> -100 | S27: =IF(S26>60,60,D26-40) -> -40 | T27: =IF(T26>30,30,D26-10) -> -10 | U27: =U26 -> 0 | W27: =30*A27 -> 540000
A28: 15000 | B28: per unit for next 60 units | C28: =IF(S27>0,S27*A28,0) -> 0 | D28: Total Fee | G28: 14000 | H28: =G28*1.12 -> 15680 | W28: =10*A28 -> 150000
A29: 6500 | B29: per unit for any unit above 100 | C29: =IF(R26>0,R26*A29,0) -> 0 | D29: =SUM(C26:C29) -> 0 | G29: 6000 | H29: =G29*1.12 -> 6720 | W29: =0*A29 -> 0
D30: % of TDC
D31: =D29/'Closing S&U'!G195 ->  | W31: =SUM(W26:W30) -> 910000
A33: 4. Age-restricted or other projects (with senior >62 age designation or otherwise not meeting #3 above)
D34: # of units | H34: 0.12 | R34: "# units over 100 | S34: # units over 40 | T34: # units over 10 | U34: # units under 11
A35: 20000 | B35: per unit for first 10 units | C35: =IF(U36>0,U36*A35,0) -> 0 | D35: =D26 -> 0 | G35: 19000 | H35: =G35*1.12 -> 21280 | R35: =IF($D$26>100,($D$26-100),0) -> 0 | S35: =IF($D$26>40,($D$26-40),0) -> 0 | T35: =IF($D$26>10,($D$26-10),0) -> 0 | U35: =IF(D35>10,10,D35) -> 0 | W35: =10*A35 -> 200000
A36: 16000 | B36: per unit for next 30 units | C36: =IF(T36>0,T36*A36,0) -> 0 | G36: 15000 | H36: =G36*1.12 -> 16800 | R36: =IF(R35>100,100,D35-100) -> -100 | S36: =IF(S35>60,60,D35-40) -> -40 | T36: =IF(T35>30,30,D35-10) -> -10 | U36: =U35 -> 0 | W36: =30*A36 -> 480000
A37: 13500 | B37: per unit for next 60 units | C37: =IF(S36>0,S36*A37,0) -> 0 | D37: Total Fee | G37: 13000 | H37: =G37*1.12 -> 14560 | W37: =10*A37 -> 135000
A38: 6500 | B38: per unit for any unit above 100 | C38: =IF(R36>0,R36*A38,0) -> 0 | D38: =SUM(C35:C38) -> 0 | G38: 6000 | H38: =G38*1.12 -> 6720 | W38: =0*A38 -> 0
D39: % of TDC | W39: =SUM(W35:W38) -> 815000
D40: =D38/'Closing S&U'!G195 -> 
A42: 5. Projects financed through the issuance of Tax Exempt Bonds are eligible for a developer fee | D42: =('Closing S&U'!G195-'Closing S&U'!G174)*0.15 -> 0
A43: up to 15% of the total development cost (not including developer fee).
B44: =IFERROR(IF((((G7+F20)/'Project Info'!N69)>230000),"EQUITY & SUBSIDY EXCEEDS QAP MAXIMUM",""),"") -> 
A45: Tax Exempt Bonds ONLY | B45: REQUIRED DEFERRED DEVELOPER FEE | D45: =IF(ISBLANK('Project Info'!G29),D42-D38,D42-D29) -> 0

Sheet Gap Analysis (hidden)
A1: ='Project Info'!E4 -> 0
B2: LIHTC GAP ANALYSIS
A5: Note: For use by NH Housing Only
A7: EQUITY GAP DETERMINATION
A9: Total Sources of Mortgage Debt | D9: ='Closing S&U'!F20+'Closing S&U'!F22+'Closing S&U'!F24+'Closing S&U'!F26+'Closing S&U'!F28+'Closing S&U'!F33+'Closing S&U'!F35+'Closing S&U'!F37 -> 0
A10: Developer fee loan | D10: ='Closing S&U'!G10 -> 0
A11: Grants | D11: ='Closing S&U'!F15+'Closing S&U'!F16 -> 0
A12: Other | D12: ='Closing S&U'!G11 -> 0
A13: Total Non-Credit Sources of Funds | D13: =SUM(D9:D12) -> 0
A15: Total Equity Needed | D15: ='LIHTC Info'!E159 -> 0
A17: Historic Tax Credits (20% of elig historic basis) | C17: ='LIHTC Info'!I33 -> 0
A18: Historic Tax Credit purchase rate: | C18: ='LIHTC Info'!F43 -> 0
A19: Calculated Equity from Historic Tax Credits | D19: =C18*C17 -> 0
A21: Equity Needed from LIHTC | D21: =D15-D19 -> 0
A23: 30 Percent PV Credit Rate | B23: Total Acquis Credit Allowable | D23: ='LIHTC Info'!G159 -> 0
A24: Assumed Credit Rate: | B24: ='LIHTC Info'!H14 -> 0
A26: QCT/DDA Credit Rate Allowed | B26: Yes=1.3, No=0 | D26: =IF('LIHTC Info'!H26="yes",1.3,0) -> 1.3
A27: If Yes, Rehab/Construct Basis increased to 130% of Eligible Basis
A29: 70 Percent PV Credit Rate | B29: Total Rehab Credit Allowable | D29: =IF(D26=1.3,+('LIHTC Info'!H159*B30*D26),('LIHTC Info'!H159*B30)) -> 0
A30: Assumed Credit Rate: | B30: ='LIHTC Info'!H15 -> 0.09
A32: Total Low Income Tax Credit - "Basis Eligible" | D32: =D29+D23 -> 0
A34: Low Income Equity Purchase Rate | C34: ='LIHTC Info'!F42 -> 0
A35: Annual Credit Allocation-Maximum Needed | D35: =IF(C34=0,"",(D21/C34)/10) -> 
A37: Recommened Credit Allocation: | C37: =IF(D32>D35,D35,D32) -> 0
A38: TOTAL EQUITY FROM LIHTC | D38: =(C37*10)*C34 -> 0
A39: FINANCING GAP | D39: ='Closing S&U'!E190-D38-D19-D13 -> 0

Sheet Exh A (hidden)
C1: 9% credit | E1: 0.09 | G1: Total 9% Basis | H1: ='LIHTC Info'!H159 -> 0
A2: Credit Rate Assumptions: | C2: 4% credit | E2: ='LIHTC Info'!H14 -> 0 | G2: Total 4% Basis | H2: ='LIHTC Info'!G159 -> 0
C3: Month of Lock In (for 4% Acq. Credits) | E3: =1/2020 -> 00:00:42.772 | G3: Total # of Buildings | H3: ='Project Info'!I114 -> 0
A5: Carryover Allocation Agreement - Exhibit A | F5: Table Page 1 of 1
A7: Project Name: | B7: ='Project Info'!E4:I4 -> 
A9: Building BIN # | B9: NH-11-00000 | C9: NH-11-00000 | D9: NH-11-00000 | E9: NH-11-00000 | F9: NH-11-00000 | G9: NH-11-00000 | H9: Total
A10: Building Address or
A11: Site Description
A13: Building Type: New Construction
A14: Rehab or Acquisition | B14: New Construct | C14: =B14 -> New Construct | D14: =B14 -> New Construct | E14: =B14 -> New Construct | F14: =B14 -> New Construct | G14: =B14 -> New Construct
A16: Expected Placed
A17: in Service Date | B17: =1/0/0 ->  | C17: =B17 ->  | D17: =C17 ->  | E17: =D17 ->  | F17: =E17 ->  | G17: =F17 -> 
A19: Reasonably Anticipated
A20: Eligible Basis | B20: =$H$1/$H$3 -> 
A22: Eligible for DDA/QCT? | B22: =IF('LIHTC Info'!H26="","",'LIHTC Info'!H26) ->  | C22: =B22 ->  | D22: =C22 ->  | E22: =D22 ->  | F22: =E22 ->  | G22: =F22 -> 
A23: Adjusted Eligible Basis | B23: =IF(B22="yes",($A$24*B20),B20) -> 
A24: 1.3
A25: Estimated Applicable
A26: Fraction** | B26: ='LIHTC Info'!$I$37 -> 0 | C26: =B26 -> 0 | D26: =B26 -> 0 | E26: =B26 -> 0 | F26: =B26 -> 0 | G26: =B26 -> 0
A28: Estimated Qualified Basis | B28: =B23*B26 -> 
A30: Maximum Credit Percentage *** | B30: =$E$1 -> 0.09 | C30: 0.09 | D30: 0.09 | E30: 0.09 | F30: 0.09 | G30: 0.09
A32: Maximum Credit Allocated **** | B32: =ROUND((B30*B28),0.1) ->  | H32: =SUM(B32:G32) -> 
A34: Maximum Credit Calculated | B34: =B30*B28 ->  | H34: =SUM(B34:G34) -> 
A35: * Required to be provided only if the owner has elected to fix the credit percentage pursuant to Section 42(b)(2)(A)(ii)(I).
A37: **If provided, these figures are estimates for computation purposes only. For purposes of the Carryover Allocation Agreement, "reasonably expected basis"
A38: pursuant to Section 42(h)(1)(E)(ii) need not be the same as eligible basis and is computed for an entire project, rather than building by building.
A40: ***If the Owner has elected to fix the credit percentage pursuant to Section 42(b)(2)(A)(ii)(I), this credit percentage is fixed and binding upon all buildings
A41: in the project with respect to which the election is made, and upon the Owner and all successors as Owners of those buildings
A42: in the project. If no such election has been made, this credit percentage is an estimate for purposes of making the Carryover Allocation Agreement.
A44: ****If a separate housing credit dollar amount is not identified with respect to each building in the project, this allocation is made on a project basis pursuant to
A45: Section 42(h)(1)(F) of the Code.
A49: Carryover Allocation Agreement - Exhibit A | F49: Table Page 2 of 3
A51: Project Name: | B51: =B7 -> 
A53: Building BIN # | B53: NH-07-00000 | C53: NH-07-00000 | D53: NH-07-00000 | E53: NH-07-00000 | F53: NH-07-00000 | G53: NH-07-00000 | H53: Total
A54: Building Address or
A55: Site Description
A57: Building Type: New Construction
A58: Rehab or Acquisition | B58: New Construct | C58: New Construct | D58: New Construct | E58: New Construct | F58: New Construct | G58: New Construct
A60: Expected Placed
A61: in Service Date | B61: =B17 ->  | C61: =B61 ->  | D61: =C61 ->  | E61: =D61 ->  | F61: =E61 ->  | G61: =F61 -> 
A63: Reasonably Anticipated
A64: Eligible Basis | B64: =$H$1/$H$3 -> 
A66: Eligible for DDA/QCT? | B66: =B22 ->  | C66: =B66 ->  | D66: =C66 ->  | E66: =D66 ->  | F66: =E66 ->  | G66: =F66 -> 
A67: Adjusted Eligible Basis | B67: =IF(B66="yes",($A$24*B64),B64) -> 
A68: 1.3
A69: Estimated Applicable
A70: Fraction** | B70: ='LIHTC Info'!I37 -> 0 | C70: =B70 -> 0 | D70: =B70 -> 0 | E70: =B70 -> 0 | F70: =B70 -> 0 | G70: =B70 -> 0
A72: Estimated Qualified Basis | B72: =B67*B70 -> 
A74: Maximum Credit Percentage *** | B74: =$E$1 -> 0.09 | C74: =$E$1 -> 0.09 | D74: 0.09 | E74: 0.09 | F74: 0.09 | G74: 0.09
A76: Maximum Credit Allocated **** | B76: =ROUND((B74*B72),0.1) ->  | H76: =SUM(B76:G76) -> 
A78: Maximum Credit Calculated | B78: =B74*B72 ->  | H78: =SUM(B78:G78) -> 
A79: * Required to be provided only if the owner has elected to fix the credit percentage pursuant to Section 42(b)(2)(A)(ii)(I).
A81: **If provided, these figures are estimates for computation purposes only. For purposes of the Carryover Allocation Agreement, "reasonably expected basis"
A82: pursuant to Section 42(h)(1)(E)(ii) need not be the same as eligible basis and is computed for an entire project, rather than building by building.
A84: ***If the Owner has elected to fix the credit percentage pursuant to Section 42(b)(2)(A)(ii)(I), this credit percentage is fixed and binding upon all buildings
A85: in the project with respect to which the election is made, and upon the Owner and all successors as Owners of those buildings
A86: in the project. If no such election has been made, this credit percentage is an estimate for purposes of making the Carryover Allocation Agreement.
A88: ****If a separate housing credit dollar amount is not identified with respect to each building in the project, this allocation is made on a project basis pursuant to
A89: Section 42(h)(1)(F) of the Code.
A95: Carryover Allocation Agreement - Exhibit A | F95: Table Page 3 of 3
A97: Project Name: | B97: =B7 -> 
A99: Building BIN # | B99: NH-07-00000 | C99: NH-07-00000 | D99: NH-07-00000 | E99: NH-07-00000 | F99: NH-07-00000 | G99: NH-07-00000 | H99: Total
A100: Building Address or
A101: Site Description
A103: Building Type: New Construction
A104: Rehab or Acquisition | B104: New Construct | C104: New Construct | D104: New Construct | E104: New Construct | F104: New Construct | G104: New Construct
A106: Expected Placed
A107: in Service Date | B107: =B61 ->  | C107: =B107 ->  | D107: =C107 ->  | E107: =D107 ->  | F107: =E107 ->  | G107: =F107 -> 
A109: Reasonably Anticipated
A110: Eligible Basis | B110: =$H$1/$H$3 -> 
A112: Eligible for DDA/QCT? | B112: =B66 ->  | C112: =B112 ->  | D112: =C112 ->  | E112: =D112 ->  | F112: =E112 ->  | G112: =F112 -> 
A113: Adjusted Eligible Basis | B113: =IF(B112="yes",($A$24*B110),B110) -> 
A114: 1.3
A115: Estimated Applicable
A116: Fraction** | B116: ='LIHTC Info'!$I$37 -> 0 | C116: ='LIHTC Info'!$I$37 -> 0 | D116: ='LIHTC Info'!$I$37 -> 0 | E116: ='LIHTC Info'!$I$37 -> 0 | F116: ='LIHTC Info'!$I$37 -> 0 | G116: ='LIHTC Info'!$I$37 -> 0
A118: Estimated Qualified Basis | B118: =B113*B116 -> 
A120: Maximum Credit Percentage *** | B120: =$E$1 -> 0.09 | C120: 0.09 | D120: 0.09 | E120: 0.09 | F120: 0.09 | G120: 0.09
A122: Maximum Credit Allocated **** | B122: =ROUND((B120*B118),0.1) ->  | H122: =SUM(B122:G122) -> 
A124: Maximum Credit Calculated | B124: =B120*B118 ->  | H124: =SUM(B124:G124) -> 
A125: * Required to be provided only if the owner has elected to fix the credit percentage pursuant to Section 42(b)(2)(A)(ii)(I).
A127: **If provided, these figures are estimates for computation purposes only. For purposes of the Carryover Allocation Agreement, "reasonably expected basis"
A128: pursuant to Section 42(h)(1)(E)(ii) need not be the same as eligible basis and is computed for an entire project, rather than building by building.
A130: ***If the Owner has elected to fix the credit percentage pursuant to Section 42(b)(2)(A)(ii)(I), this credit percentage is fixed and binding upon all buildings
A131: in the project with respect to which the election is made, and upon the Owner and all successors as Owners of those buildings
A132: in the project. If no such election has been made, this credit percentage is an estimate for purposes of making the Carryover Allocation Agreement.
A134: ****If a separate housing credit dollar amount is not identified with respect to each building in the project, this allocation is made on a project basis pursuant to
A135: Section 42(h)(1)(F) of the Code.

Sheet Risk Sharing (hidden)
A1: NHHFA | B1: Sources and Uses of Funds
A2: Section 911 Subsidy Layering Review
A4: Project Name: | B4: ='Project Info'!E4 -> 0
A5: NHHFA Project No.:
A7: SOURCES
A8: Debt Sources:
A9: HUD Loans/programs (HOME)
A10: Other Government Assistance
A11: Other Loans
A12: NHHFA Tax Exempt Bond | B12: 0
A13: Deferred Developer Fee | B13: 0
A14: Other
A15: Debt Subtotal | B15: 0
A17: Equity:
A18: Grants
A19: Estimated Net Syndication Proceeds | B19: 0
A20: Additional Sponsor Equity - Investsment Earnings | B20: 0
A21: Other Equity Sources
A22: Equity Subtotal | B22: 0
A23: TOTAL SOURCES | B23: 0
A26: USES
A28: Mortgageable Replacement Cost Uses
A29: Acquisition | B29: 0
A30: Construction | B30: 0
A31: General Requirements | B31: included in construction estimate
A32: Builders General Overhead | B32: included in construction estimate
A33: Construction Contingency | B33: included in construction estimate
A34: Furnishings, Fixtures and Equipment | B34: included in construction estimate
A35: Permits | B35: 0
A36: Architect | B36: 0
A37: Engineer | B37: 0
A38: Construction Administration/Consulting | B38: 0
A39: Origination Fee | B39: 0
A40: Construction Interest | B40: 0
A41: Construction Insurance | B41: 0
A42: Bond Issuance | B42: 0
A43: Credit Enhancement | B43: 0
A44: Transfer Tax | B44: 0
A45: Title Ins. and Recording | B45: 0
A46: Tax Credit Fee | B46: 0
A47: Lender Legal | B47: 0
A48: Appraisal | B48: 0
A49: Market Study | B49: 0
A50: Environmental Report | B50: 0
A51: Survey | B51: 0
A52: Legal | B52: 0
A53: Accounting | B53: 0
A54: Taxes | B54: 0
A55: Insurance | B55: 0
A56: Soft Cost Contingency | B56: 0
A57: Rent Up Reserve | B57: 0
A58: Relocation | B58: 0
A59: Marketing Reserve | B59: 0
A60: Replacement Reserve | B60: 0
A61: Asbestos Removal | B61: 0
A62: Prepaid Tax Credit Monitoring Fee | B62: 0
A63: Subtotal Mortgageable Replacement Cost Uses | B63: 0
A65: Non-Mortgageable Replacement Cost Uses
A67: Working Capital Reserve
A68: Operating Deficit Reserve | B68: 0
A70: Developer Fee | B70: 0
A71: Subtotal Non-Mortgageable Uses | B71: 0
A73: Total Uses | B73: 0
A85: NEW HAMPSHIRE HOUSING FINANCE AUTHORITY
A86: SECTION 911 SUBSIDY LAYER REVIEW
B87: 0
A88: STANDARD 1: BUILDERS PROFIT
A90: Project Name | B90: 0
A91: NHHFA Project No. | B91: 0
A93: Identity of Interest | B93: No
A94: NCSHA Standards for Tax Credit Administration | B94: Yes
A95: NHHFA Tax Credit Allocation Plan | B95: Yes
A97: Construction Costs (everything) | B97: 0
A99: See Note below
A100: DETERMINATION: | B100: Actual | C100: Maximum
A102: General Conditions
A103: Percent of Construction Costs
A104: Builder's Overhead
A105: Percent of Construction Costs
A106: Builder's Profit
A107: Percent of Construction Costs
A109: Note: Project not yet bid.
A115: NEW HAMPSHIRE HOUSING FINANCE AUTHORITY
A116: SECTION 911 SUBSIDY LAYERING REVIEW
B117: 0
A118: STANDARD 2: DEVELOPER'S FEE
A120: Project Name: | C120: 0
A121: NHHFA Project No.: | C121: 0
A123: Identity of Interest: | C123: No
A124: NHHFA Tax Credit Allocation Plan: | C124: Yes
A126: Total Rehab/Const Cost | C126: 0
A127: Total Development Cost | C127: 0
A128: less Developer fee in Budget | C128: 0
A129: Adjusted Total Development Cost | C129: 0
A130: Adjusted Rehab/Const Cost: | C130: 0
A132: Percent Rehabilitation to Adjusted TDC | C132: ERR
A134: See Attached NHHFA QAP Developer Fee Schedule for Project
A165: STANDARD 3: SYNDICATION EXPENSES
A167: Project Name: | B167: 0
A168: NHHFA Project No.: | B168: 0
B169: 0
A171: Gross Syndication Proceeds: | B171: 0
A172: Type of Syndication:
A174: Syndication Expenses:
A175: Commissions/Finders Fees:
A176: Consultant's Fees:
A177: Legal
A178: Accounting
A179: Other
A180: Total Syndication Expenses: | B180: 0
A182: Net Syndication Proceeds: | B182: 0
A184: DETERMINATION: | B184: Actual | C184: Maximum Allowed
A185: Total Syndication Expenses: | B185: 0 | C185: 0
A186: Percent of Gross Syndication Proceeds | B186: ERR | C186: ERR
A195: SECTION 542(C) | B195: DATA ELEMENTS
A196: (Risk Sharing Program) | B196: APPENDIX 11
A198: HOUSING FINANCE AGENCY INFORMATION
A199: HFA: | B199: New Hampshire Housing Finance Authority
A200: Contact:
A201: Phone:
A203: Project Name:
A204: Project Number:
A205: Project Number - Section 8:
A206: City:
A207: Street Address
A208: State
A209: Zip Code
A210: Congressional District
A211: Project Census Tract
A212: Project County Code
A213: PMSA
A214: Superseded Project No. :
A215: Mortgage Amount
A216: Total Number of Units
A217: Number of Section 8 Units
A218: Occupant type
A219: Sponsor/Mortgagor Type
A220: Production Method
A225: Initial Endorsement:
A226: Final Endorsement:
A227: Addendum to the Risk Sharing Agreement:
A229: # Units Affordable by families at:
A230: 50% median income #units
A231: 50% median income %units
A232: 60% median income #units
A233: 60% median income %units
A235: Type of Building
A236: Total Buildings in Project
A237: Year Built
A238: Unit Type (#of bedrooms)
A239: Units Efficiency
A240: Units One Bedroom
A241: Units Two Bedroom
A242: Units Three Bedroom
A243: Four Plus Bedroom
A244: Units Elderly
A245: Units Handicapped
A246: Non-revenue Units
A247: Units - Total
A248: SRO
A249: B&C
A250: Non-Elderly
A251: Commercial Square FT
A252: Elevator
A253: Non-Elevator
A254: Replacement Cost $
A255: Acquisition Cost $
A256: Per Unit Per Annum Expenses
A257: Total annual project expense
A258: Debt Service Coverage
A259: Loan to Value Ratio
A260: Loan to Replacement Cost
A261: Mortgagor Name
A262: Type of Permanent Financing Code
A263: Bond Interest Rate
A264: Variable Bond Rate
A265: Maturity Date
A266: Mortgage Term in Months
A267: Holding Mortgagee Number
A268: Servicing Mortgagee Number
A269: 1st MIP Paid Amount
A270: 1st Payment Date
A271: Financed with/Tax Exempt Bonds
A272: Tax Credit Financing
A273: Special Financing Grants and Loans
A274: Federal Loans
A275: Federal Grants
A276: State Loans
A277: State Grants
A278: Local Loans
A279: Local Grants
A280: Other with remarks
A281: Mortgage Insurance Premium
A282: Total HFA's Fees
A283: Other Fees, if any
A284: Initial Operating Deficit | B284: 0
A285: Term of Deficit Escrow in months | B285: 0
A287: THIS INFORMATION WILL BE PUT INTO THE SYSTEM BY FO STAFF BASED ON
A288: INFORMATION RECEIVED FROM HFAs AT REQUEST FOR HUD-RETAINED REVIEW
A289: PROJECT SPECIFIC INFORMATION
... 47 more rows

Sheet Change Log (hidden)
A1: Change Date | B1: Item | C1: Notes
A2: 2019-02-21 | B2: Fixed Control C macro error | C2: No more errors, Ctrl+c now works.
A3: 2019-02-21 | B3: Renamed tabs to ease navigation & colored based on project type | C3: Not married to these names, however, we should be more descriptive on what the tabs are
A4: 2019-02-21 | B4: Added instruction tab | C4: This will help alleviate some questions on what to fill out for different project types
A5: 2018-04-09 | B5: Updated tabs for income averaging
A6: 2018-04-09 | B6: Changed active X controls | C6: Application can be edited online now
A7: 2019-04-09 | B7: Deleted print summary tab
A8: 2019-04-09 | B8: Increased the developer fee 12% | C8: Cleaned up writing on tab, naming of project type. Will delete on publishing.
A9: 2019-04-09 | B9: Change font on application tabs
A10: 2019-04-15 | B10: Changes to the Gap Analysis tab & Exh A
A11: 2019-04-15 | B11: Add additional cagetories to professional fees. Renamed category.
A12: 2019-04-15 | B12: Added upfront MIP, trustee fee, and application fee to Financing Fees and Expenses
A13: 2019-04-23 | B13: Split financial page into three tabs
A14: 2019-04-23 | B14: Updated income bands on rent tab to auto poplulate
A15: 2019-04-23 | B15: Cleaned up broken links, formulas.
A16: 2019-04-23 | B16: Updated construction tab for a 24 month construction period.
A17: 2019-04-30 | B17: Updated LIHTC boost language rows 14 & 20 on the LIHTC tab
A18: 2019-04-30 | B18: Moved basis/not in basis warning to top of development budget/basis calculation section.
A19: 2019-04-30 | B19: Added row 31 & 31 on the LIHTC tab
A20: 2019-04-30 | B20: Broke out equity types in sources. Linked to LIHTC tab.
A21: 2019-04-30 | B21: Removed reference to max LIHTC's for a GO.
A22: 2019-04-30 | B22: Removed developer fee calc on Closing S&U tab - was only pulling GO
A23: 2019-04-30 | B23: Added TDC/Basis warning calc to LIHTC tab
A24: 2019-04-30 | B24: Added % of TDC for budget categories - Closing S&U tab | C24: These are hidden unless the category has information filled out.
A25: 2019-05-02 | B25: Added choice for propane or natural gas on line 22 of Project Info.
A26: 2019-05-02 | B26: Added FFB Operating Reserve to line 126 of Closing S&U tab
A27: 2019-05-02 | B27: Corrected cell H157 on the Inc & Exp tab to include the commerical management fee | C27: Discussed with Ginny
A28: 2019-05-06 | B28: Removed the auto-update for the date.
A29: 2019-05-06 | B29: Update print preview on all tabs.
A30: 2019-05-06 | B30: Updated dev team tab to accommodate an email address for contacts.
A31: 2019-05-06 | B31: Added energy/solar, and HTC consultant to dev team tab.
A32: 2019-05-06 | B32: Hid the NHHFA-only tabs.

Sheet Module1 (hidden)

Sheet Module2 (hidden)
